OFFICE,EXPENSE_TYPE,PAYEE,PERS_SERV_BEGIN_DATE,PERS_SERV_END/CHECK_DATE,TITLE/DESCRIPTION,PAYTYPE,AMOUNT,NOTE,REPORT_PERIOD_BEGIN_DATE,REPORT_PERIOD_END_DATE
"SENATOR ERIC L. ADAMS","PERSONAL SERVICE","ADAMS, ERIC L",2011-03-31,2011-09-28,MEMBER,RA,39749.97,,2011-04-01,2011-09-30
"SENATOR ERIC L. ADAMS","PERSONAL SERVICE","ADAMS, ERIC L",,2011-04-13,"RNKG MIN MEM SEN COMM CONSUMER PROT",RA,6750.00,,2011-04-01,2011-09-30
"SENATOR ERIC L. ADAMS","PERSONAL SERVICE","BROWN, FAY J",2011-03-17,2011-09-14,"CONSTITUENT LIAISON",SA,7500.09,,2011-04-01,2011-09-30
"SENATOR ERIC L. ADAMS","PERSONAL SERVICE","COX, KAREN O",2011-03-17,2011-09-14,"CHIEF ADMINISTRATIVE ASSISTANT",SA,20000.11,,2011-04-01,2011-09-30
"SENATOR ERIC L. ADAMS","PERSONAL SERVICE","EISDORFER, JOEL",2011-03-17,2011-09-14,"CONSTITUENT LIAISON",SA,7500.09,,2011-04-01,2011-09-30
"SENATOR ERIC L. ADAMS","PERSONAL SERVICE","FISCHER, BRADLEY M",2011-03-17,2011-09-14,COUNSEL,SA,35406.93,,2011-04-01,2011-09-30
"SENATOR ERIC L. ADAMS","PERSONAL SERVICE","FORD, KAREN J",2011-03-17,2011-09-14,SCHEDULER,RA,14769.27,,2011-04-01,2011-09-30
"SENATOR ERIC L. ADAMS","PERSONAL SERVICE","HAMILTON, JESSE E",2011-03-17,2011-09-14,"CONSTITUENT LIAISON",SA,12500.02,,2011-04-01,2011-09-30
"SENATOR ERIC L. ADAMS","PERSONAL SERVICE","HARRIS, MARY T",2011-03-17,2011-09-14,"DIRECTOR OF LEGISLATION",RA,20000.11,,2011-04-01,2011-09-30
"SENATOR ERIC L. ADAMS","PERSONAL SERVICE","LIPKIND, REUVEN",2011-03-17,2011-09-14,"DIRECTOR OF CONSTITUENT SERVICES",RA,17500.08,,2011-04-01,2011-09-30
"SENATOR ERIC L. ADAMS","PERSONAL SERVICE","MARTIN, INGRID P",2011-03-17,2011-09-14,"CHIEF OF STAFF",SA,50000.08,,2011-04-01,2011-09-30
"SENATOR ERIC L. ADAMS","PERSONAL SERVICE","ROBERTS, ERNEST M",2011-03-17,2011-05-25,"CONSTITUENT LIAISON",RA,6346.18,,2011-04-01,2011-09-30
"SENATOR ERIC L. ADAMS","PERSONAL SERVICE","ROBERTS, ERNEST M",,2011-08-31,"LUMP SUM VACATION PAYMENT",VA,3354.24,,2011-04-01,2011-09-30
"SENATOR ERIC L. ADAMS","PERSONAL SERVICE","WILLIAMS, JENNIFER L",2011-03-17,2011-03-23,"DEPUTY COMMUNICATIONS DIRECTOR",RA,1692.32,,2011-04-01,2011-09-30
"SENATOR ERIC L. ADAMS","PERSONAL SERVICE","WILLIAMS, JENNIFER L",,2011-06-08,"LUMP SUM VACATION PAYMENT",VA,2967.71,,2011-04-01,2011-09-30
"SENATOR ERIC L. ADAMS","PERSONAL SERVICE","WIMBERLY, SHEILA A",2011-03-17,2011-09-14,"DEPUTY CHIEF OF STAFF",RA,15000.05,,2011-04-01,2011-09-30
"SENATOR ERIC L. ADAMS","MAINTENANCE & OPERATIONS","AT&T DIRECT MARKETING",,2011-04-05,"D.O. TELEPHONE SERVICES - VOUCHER# 1873",VENDOR,0.88,,2011-04-01,2011-09-30
"SENATOR ERIC L. ADAMS","MAINTENANCE & OPERATIONS","BROOKLYN UNION GAS COMPANY",,2011-04-05,"D.O. GAS SERVICE - VOUCHER# 1923",VENDOR,420.47,,2011-04-01,2011-09-30
"SENATOR ERIC L. ADAMS","MAINTENANCE & OPERATIONS","EBSCO INDUSTRIES INC DBA EBSCO INFORMATION SERVICES",,2011-04-18,"SUBSCRIPTIONS/PUBLICATIONS - VOUCHER# 2184",VENDOR,470.08,,2011-04-01,2011-09-30
"SENATOR ERIC L. ADAMS","MAINTENANCE & OPERATIONS","UNITED PROTECTIVE SYSTEMS",,2011-04-18,"D.O. ALARM SYSTEM - VOUCHER# 2172",VENDOR,107.75,,2011-04-01,2011-09-30
"SENATOR ERIC L. ADAMS","MAINTENANCE & OPERATIONS",VERIZON,,2011-04-21,"D.O. TELEPHONE SERVICES - VOUCHER# 2010",VENDOR,222.09,,2011-04-01,2011-09-30
"SENATOR ERIC L. ADAMS","MAINTENANCE & OPERATIONS","K & L REALTY, LLC.",,2011-04-27,"D.O. LEASE - VOUCHER# 2408",VENDOR,4167.45,,2011-04-01,2011-09-30
"SENATOR ERIC L. ADAMS","MAINTENANCE & OPERATIONS","JOURNAL VOUCHER",,2011-05-02,"D.O. ELECTRIC SERVICE - VOUCHER# 2485Z",VENDOR,322.76,,2011-04-01,2011-09-30
"SENATOR ERIC L. ADAMS","MAINTENANCE & OPERATIONS","BROOKLYN UNION GAS COMPANY",,2011-05-10,"D.O. GAS SERVICE - VOUCHER# 2675",VENDOR,231.65,,2011-04-01,2011-09-30
"SENATOR ERIC L. ADAMS","MAINTENANCE & OPERATIONS","JOURNAL VOUCHER",,2011-05-11,"D.O. ELECTRIC SERVICE - VOUCHER# 2728Z",VENDOR,341.75,,2011-04-01,2011-09-30
"SENATOR ERIC L. ADAMS","MAINTENANCE & OPERATIONS","EBSCO INDUSTRIES INC DBA EBSCO INFORMATION SERVICES",,2011-05-24,"SUBSCRIPTIONS/PUBLICATIONS - VOUCHER# 2900",VENDOR,20.80,,2011-04-01,2011-09-30
"SENATOR ERIC L. ADAMS","MAINTENANCE & OPERATIONS","K & L REALTY, LLC.",,2011-05-24,"D.O. LEASE - VOUCHER# 2947",VENDOR,4167.45,,2011-04-01,2011-09-30
"SENATOR ERIC L. ADAMS","MAINTENANCE & OPERATIONS","BROOKLYN UNION GAS COMPANY",,2011-06-01,"D.O. GAS SERVICE - VOUCHER# 3153",VENDOR,134.92,,2011-04-01,2011-09-30
"SENATOR ERIC L. ADAMS","MAINTENANCE & OPERATIONS",VERIZON,,2011-06-01,"D.O. TELEPHONE SERVICES - VOUCHER# 3092",VENDOR,202.37,,2011-04-01,2011-09-30
"SENATOR ERIC L. ADAMS","MAINTENANCE & OPERATIONS","UNITED PROTECTIVE SYSTEMS",,2011-06-07,"D.O. ALARM SYSTEM - VOUCHER# 3225",VENDOR,107.75,,2011-04-01,2011-09-30
"SENATOR ERIC L. ADAMS","MAINTENANCE & OPERATIONS",VERIZON,,2011-06-07,"D.O. TELEPHONE SERVICES - VOUCHER# 3224",VENDOR,208.27,,2011-04-01,2011-09-30
"SENATOR ERIC L. ADAMS","MAINTENANCE & OPERATIONS","JOURNAL VOUCHER",,2011-06-09,"D.O. ELECTRIC SERVICE - VOUCHER# 3279Z",VENDOR,345.31,,2011-04-01,2011-09-30
"SENATOR ERIC L. ADAMS","MAINTENANCE & OPERATIONS","AT&T DIRECT MARKETING",,2011-06-14,"D.O. TELEPHONE SERVICES - VOUCHER# 3364",VENDOR,1.13,,2011-04-01,2011-09-30
"SENATOR ERIC L. ADAMS","MAINTENANCE & OPERATIONS","K & L REALTY, LLC.",,2011-06-29,"D.O. LEASE - VOUCHER# 3701",VENDOR,4167.45,,2011-04-01,2011-09-30
"SENATOR ERIC L. ADAMS","MAINTENANCE & OPERATIONS","AT&T DIRECT MARKETING",,2011-07-06,"D.O. TELEPHONE SERVICES - VOUCHER# 3831",VENDOR,1.64,,2011-04-01,2011-09-30
"SENATOR ERIC L. ADAMS","MAINTENANCE & OPERATIONS","JOURNAL VOUCHER",,2011-07-06,"D.O. ELECTRIC SERVICE - VOUCHER# 3882Z",VENDOR,277.13,,2011-04-01,2011-09-30
"SENATOR ERIC L. ADAMS","MAINTENANCE & OPERATIONS",VERIZON,,2011-07-12,"D.O. TELEPHONE SERVICES - VOUCHER# 3937",VENDOR,215.56,,2011-04-01,2011-09-30
"SENATOR ERIC L. ADAMS","MAINTENANCE & OPERATIONS","UNITED PROTECTIVE SYSTEMS",,2011-07-19,"D.O. ALARM SYSTEM - VOUCHER# 4023",VENDOR,107.75,,2011-04-01,2011-09-30
"SENATOR ERIC L. ADAMS","MAINTENANCE & OPERATIONS","K & L REALTY, LLC.",,2011-07-26,"D.O. LEASE - VOUCHER# 4180",VENDOR,4167.45,,2011-04-01,2011-09-30
"SENATOR ERIC L. ADAMS","MAINTENANCE & OPERATIONS","AT&T DIRECT MARKETING",,2011-08-02,"D.O. TELEPHONE SERVICES - VOUCHER# 4273",VENDOR,1.16,,2011-04-01,2011-09-30
"SENATOR ERIC L. ADAMS","MAINTENANCE & OPERATIONS","BROOKLYN UNION GAS COMPANY",,2011-08-02,"D.O. GAS SERVICE - VOUCHER# 4322",VENDOR,46.54,,2011-04-01,2011-09-30
"SENATOR ERIC L. ADAMS","MAINTENANCE & OPERATIONS","JOURNAL VOUCHER",,2011-08-04,"D.O. ELECTRIC SERVICE - VOUCHER# 4366Z",VENDOR,383.60,,2011-04-01,2011-09-30
"SENATOR ERIC L. ADAMS","MAINTENANCE & OPERATIONS","UNITED PROTECTIVE SYSTEMS",,2011-08-16,"D.O. ALARM SYSTEM - VOUCHER# 4449",VENDOR,215.50,,2011-04-01,2011-09-30
"SENATOR ERIC L. ADAMS","MAINTENANCE & OPERATIONS",VERIZON,,2011-08-16,"D.O. TELEPHONE SERVICES - VOUCHER# 4448",VENDOR,204.15,,2011-04-01,2011-09-30
"SENATOR ERIC L. ADAMS","MAINTENANCE & OPERATIONS","K & L REALTY, LLC.",,2011-08-23,"D.O. LEASE - VOUCHER# 4641",VENDOR,4167.45,,2011-04-01,2011-09-30
"SENATOR ERIC L. ADAMS","MAINTENANCE & OPERATIONS","JOURNAL VOUCHER",,2011-09-07,"D.O. ELECTRIC SERVICE - VOUCHER# 4833Z",VENDOR,375.30,,2011-04-01,2011-09-30
"SENATOR ERIC L. ADAMS","MAINTENANCE & OPERATIONS","BROOKLYN UNION GAS COMPANY",,2011-09-08,"D.O. GAS SERVICE - VOUCHER# 4831",VENDOR,28.03,,2011-04-01,2011-09-30
"SENATOR ERIC L. ADAMS","MAINTENANCE & OPERATIONS","MAILFINANCE INC. DBA HASLER",,2011-09-08,"D.O. MAILING EQUIPMENT LEASE - VOUCHER# 4812",VENDOR,149.97,,2011-04-01,2011-09-30
"SENATOR ERIC L. ADAMS","MAINTENANCE & OPERATIONS","UNITED PROTECTIVE SYSTEMS",,2011-09-13,"D.O. ALARM SYSTEM - VOUCHER# 4867",VENDOR,107.75,,2011-04-01,2011-09-30
"SENATOR ERIC L. ADAMS","MAINTENANCE & OPERATIONS","AT&T DIRECT MARKETING",,2011-09-20,"D.O. TELEPHONE SERVICES - VOUCHER# 4972",VENDOR,0.56,,2011-04-01,2011-09-30
"SENATOR ERIC L. ADAMS","MAINTENANCE & OPERATIONS","JOURNAL VOUCHER",,2011-09-28,"D.O. ELECTRIC SERVICE - VOUCHER# 5184Z",VENDOR,492.09,,2011-04-01,2011-09-30
"SENATOR ERIC L. ADAMS","MAINTENANCE & OPERATIONS","K & L REALTY, LLC.",,2011-09-28,"D.O. LEASE - VOUCHER# 5125",VENDOR,4167.45,,2011-04-01,2011-09-30
"SENATOR ERIC L. ADAMS","MEMBER TRAVEL","ADAMS,ERIC",,2011-07-12,"LEGISLATIVE DUTIES-ALBANY - VOUCHER# 3889T",VENDOR,832.00,,2011-04-01,2011-09-30
"SENATOR ERIC L. ADAMS","MEMBER TRAVEL","ADAMS,ERIC",,2011-07-12,"LEGISLATIVE DUTIES-ALBANY - VOUCHER# 3890T",VENDOR,1516.00,,2011-04-01,2011-09-30
"SENATOR ERIC L. ADAMS","MEMBER TRAVEL","ADAMS,ERIC",,2011-07-12,"LEGISLATIVE DUTIES-ALBANY - VOUCHER# 3891T",VENDOR,1267.00,,2011-04-01,2011-09-30
"SENATOR ERIC L. ADAMS","MEMBER TRAVEL","ADAMS,ERIC",,2011-07-12,"LEGISLATIVE DUTIES-ALBANY - VOUCHER# 3892T",VENDOR,283.00,,2011-04-01,2011-09-30
"SENATOR ERIC L. ADAMS","MEMBER TRAVEL","ADAMS,ERIC",,2011-07-12,"LEGISLATIVE DUTIES-ALBANY - VOUCHER# 3893T",VENDOR,887.00,,2011-04-01,2011-09-30
"SENATOR ERIC L. ADAMS","MEMBER TRAVEL","ADAMS,ERIC",,2011-07-12,"LEGISLATIVE DUTIES-ALBANY - VOUCHER# 3894T",VENDOR,1229.00,,2011-04-01,2011-09-30
"SENATOR ERIC L. ADAMS","MEMBER TRAVEL","ADAMS,ERIC",,2011-07-12,"LEGISLATIVE DUTIES-ALBANY - VOUCHER# 3895T",VENDOR,1200.00,,2011-04-01,2011-09-30
"SENATOR ERIC L. ADAMS","MEMBER TRAVEL","ADAMS,ERIC",,2011-07-12,"LEGISLATIVE DUTIES-ALBANY - VOUCHER# 3896T",VENDOR,1474.00,,2011-04-01,2011-09-30
"SENATOR ERIC L. ADAMS","MEMBER TRAVEL","ADAMS,ERIC",,2011-07-12,"LEGISLATIVE DUTIES-ALBANY - VOUCHER# 3897T",VENDOR,1230.00,,2011-04-01,2011-09-30
"SENATOR ERIC L. ADAMS","MEMBER TRAVEL","ADAMS,ERIC",,2011-07-12,"LEGISLATIVE DUTIES-ALBANY - VOUCHER# 3898T",VENDOR,1417.00,,2011-04-01,2011-09-30
"SENATOR ERIC L. ADAMS","MEMBER TRAVEL","ADAMS,ERIC",,2011-07-12,"LEGISLATIVE DUTIES-ALBANY - VOUCHER# 3899T",VENDOR,1274.00,,2011-04-01,2011-09-30
"SENATOR ERIC L. ADAMS","MEMBER TRAVEL","ADAMS,ERIC",,2011-07-12,"LEGISLATIVE DUTIES-ALBANY - VOUCHER# 3900T",VENDOR,1144.79,,2011-04-01,2011-09-30
"SENATOR ERIC L. ADAMS","MEMBER TRAVEL","ADAMS,ERIC",,2011-07-12,"LEGISLATIVE DUTIES-ALBANY - VOUCHER# 3901T",VENDOR,958.00,,2011-04-01,2011-09-30
"SENATOR ERIC L. ADAMS","MEMBER TRAVEL","ADAMS,ERIC",,2011-07-12,"LEGISLATIVE DUTIES-ALBANY - VOUCHER# 3902T",VENDOR,1545.00,,2011-04-01,2011-09-30
"SENATOR ERIC L. ADAMS","ALLOCATED OPERATIONAL EXPENSES",,,,"FIRST CLASS POSTAGE",AOE,1899.63,"See Note Above",2011-04-01,2011-09-30
"SENATOR ERIC L. ADAMS","ALLOCATED OPERATIONAL EXPENSES",,,,"NEWS LETTER POSTAGE",AOE,39223.44,"See Note Above",2011-04-01,2011-09-30
"SENATOR ERIC L. ADAMS","ALLOCATED OPERATIONAL EXPENSES",,,,"BULK RATE POSTAGE",AOE,3263.86,"See Note Above",2011-04-01,2011-09-30
"SENATOR ERIC L. ADAMS","ALLOCATED OPERATIONAL EXPENSES",,,,"LONG DISTANCE TELEPHONE",AOE,156.25,"See Note Above",2011-04-01,2011-09-30
"SENATOR ERIC L. ADAMS","ALLOCATED OPERATIONAL EXPENSES",,,,"OFFICE SUPPLIES",AOE,1221.64,"See Note Above",2011-04-01,2011-09-30
"SENATOR JOSEPH P. ADDABBO, JR.","PERSONAL SERVICE","ADDABBO JR, JOSEPH P",2011-03-31,2011-09-28,MEMBER,RA,39749.97,,2011-04-01,2011-09-30
"SENATOR JOSEPH P. ADDABBO, JR.","PERSONAL SERVICE","ADDABBO JR, JOSEPH P",,2011-04-13,"RK MIN MEM SEN ELECTION COMMITTEE",RA,6750.00,,2011-04-01,2011-09-30
"SENATOR JOSEPH P. ADDABBO, JR.","PERSONAL SERVICE","ADDONISIO, STEVEN S",,2011-06-22,"LUMP SUM VACATION PAYMENT",VA,657.50,"PAYMENT FOR SERVICES RENDERED PRIOR TO MARCH 17, 2011",2011-04-01,2011-09-30
"SENATOR JOSEPH P. ADDABBO, JR.","PERSONAL SERVICE","BRASKY, MICHAEL S",2011-03-17,2011-07-22,"OFFICE MANAGER",RA,14215.41,,2011-04-01,2011-09-30
"SENATOR JOSEPH P. ADDABBO, JR.","PERSONAL SERVICE","CLARK, VICTORIA L",2011-03-17,2011-09-14,"DIRECTOR OF ALBANY OPERATIONS",RA,24700.00,,2011-04-01,2011-09-30
"SENATOR JOSEPH P. ADDABBO, JR.","PERSONAL SERVICE","CLOSE, JUDITH",2011-03-17,2011-09-14,"PRESS SECRETARY",RA,14250.08,,2011-04-01,2011-09-30
"SENATOR JOSEPH P. ADDABBO, JR.","PERSONAL SERVICE","DELLANNO, THOMAS A",2011-03-17,2011-09-14,"ASSISTANT COMMUNITY LIAISON",SA,5148.13,,2011-04-01,2011-09-30
"SENATOR JOSEPH P. ADDABBO, JR.","PERSONAL SERVICE","DELUCIA JR, PETER M",2011-03-17,2011-09-14,"DIRECTOR OF SPECIAL EVENTS",RA,15437.50,,2011-04-01,2011-09-30
"SENATOR JOSEPH P. ADDABBO, JR.","PERSONAL SERVICE","DOREMUS, SANDEE",2011-03-17,2011-09-14,"COMMUNITY LIAISON",RA,13300.17,,2011-04-01,2011-09-30
"SENATOR JOSEPH P. ADDABBO, JR.","PERSONAL SERVICE","GIANNELLI, NEIL C",2011-07-25,2011-09-14,"OFFICE MANAGER",RA,5115.40,,2011-04-01,2011-09-30
"SENATOR JOSEPH P. ADDABBO, JR.","PERSONAL SERVICE","GOTTLIEB, JEFFREY",2011-03-17,2011-05-06,"ASSISTANT COMMUNITY LIAISON",SA,1698.68,,2011-04-01,2011-09-30
"SENATOR JOSEPH P. ADDABBO, JR.","PERSONAL SERVICE","GOTTLIEB, JEFFREY",,2011-08-31,"LUMP SUM VACATION PAYMENT",VA,1346.34,,2011-04-01,2011-09-30
"SENATOR JOSEPH P. ADDABBO, JR.","PERSONAL SERVICE","GOTTLIEB, MARIAN",2011-03-17,2011-09-14,"COMMUNITY LIAISON",SA,9500.14,,2011-04-01,2011-09-30
"SENATOR JOSEPH P. ADDABBO, JR.","PERSONAL SERVICE","GRECH, EVA",2011-03-17,2011-04-13,"COMMUNITY LIAISON",RA,2192.32,,2011-04-01,2011-09-30
"SENATOR JOSEPH P. ADDABBO, JR.","PERSONAL SERVICE","GRECH, EVA",2011-04-14,2011-09-14,"COMMUNITY LIAISON",SA,7632.93,,2011-04-01,2011-09-30
"SENATOR JOSEPH P. ADDABBO, JR.","PERSONAL SERVICE","LOVE, LARRY L",2011-05-26,2011-09-14,COUNSEL,SA,3540.82,,2011-04-01,2011-09-30
"SENATOR JOSEPH P. ADDABBO, JR.","PERSONAL SERVICE","MAUREAU, ALEXANDER",2011-03-17,2011-09-14,"CONSTITUENT LIAISON",RA,13775.19,,2011-04-01,2011-09-30
"SENATOR JOSEPH P. ADDABBO, JR.","PERSONAL SERVICE","MCCABE, PATRICIA",2011-03-17,2011-09-14,"SPECIAL ASSISTANT",RA,26125.06,,2011-04-01,2011-09-30
"SENATOR JOSEPH P. ADDABBO, JR.","PERSONAL SERVICE","PETHO, KRISTI D",2011-03-17,2011-09-14,SCHEDULER,RA,14250.08,,2011-04-01,2011-09-30
"SENATOR JOSEPH P. ADDABBO, JR.","PERSONAL SERVICE","SCADUTO, FRANK S",2011-03-17,2011-09-14,"LEGISLATIVE DIRECTOR",RA,16497.16,,2011-04-01,2011-09-30
"SENATOR JOSEPH P. ADDABBO, JR.","MAINTENANCE & OPERATIONS","AT&T DIRECT MARKETING",,2011-04-05,"D.O. TELEPHONE SERVICES - VOUCHER# 1873",VENDOR,1.70,,2011-04-01,2011-09-30
"SENATOR JOSEPH P. ADDABBO, JR.","MAINTENANCE & OPERATIONS","IRENE D'AMBROSIO",,2011-04-12,"D.O. LEASE- 3 MONTHS - VOUCHER# 2084",VENDOR,4500.00,,2011-04-01,2011-09-30
"SENATOR JOSEPH P. ADDABBO, JR.","MAINTENANCE & OPERATIONS","BROOKLYN UNION GAS COMPANY",,2011-04-18,"D.O. ELECTRIC SERVICE - VOUCHER# 2245",VENDOR,69.26,,2011-04-01,2011-09-30
"SENATOR JOSEPH P. ADDABBO, JR.","MAINTENANCE & OPERATIONS","BROOKLYN UNION GAS COMPANY",,2011-04-18,"D.O. GAS SERVICE - VOUCHER# 2243",VENDOR,43.46,,2011-04-01,2011-09-30
"SENATOR JOSEPH P. ADDABBO, JR.","MAINTENANCE & OPERATIONS","IRENE D'AMBROSIO",,2011-04-18,"D.O. LEASE - VOUCHER# 2251",VENDOR,1500.00,,2011-04-01,2011-09-30
"SENATOR JOSEPH P. ADDABBO, JR.","MAINTENANCE & OPERATIONS",VERIZON,,2011-04-21,"D.O. TELEPHONE SERVICES - VOUCHER# 2010",VENDOR,223.29,,2011-04-01,2011-09-30
"SENATOR JOSEPH P. ADDABBO, JR.","MAINTENANCE & OPERATIONS","CHARLES RICHARDSON",,2011-04-27,"SUBSCRIPTIONS/PUBLICATIONS - VOUCHER# 2371",VENDOR,142.80,,2011-04-01,2011-09-30
"SENATOR JOSEPH P. ADDABBO, JR.","MAINTENANCE & OPERATIONS","IRENE D'AMBROSIO",,2011-04-27,"D.O. LEASE - VOUCHER# 2436",VENDOR,1500.00,,2011-04-01,2011-09-30
"SENATOR JOSEPH P. ADDABBO, JR.","MAINTENANCE & OPERATIONS","MARGHERITA LARUSSA",,2011-04-27,"D.O. LEASE - VOUCHER# 2445",VENDOR,1854.00,,2011-04-01,2011-09-30
"SENATOR JOSEPH P. ADDABBO, JR.","MAINTENANCE & OPERATIONS","JOURNAL VOUCHER",,2011-05-02,"D.O. ELECTRIC SERVICE - VOUCHER# 2485Z",VENDOR,156.97,,2011-04-01,2011-09-30
"SENATOR JOSEPH P. ADDABBO, JR.","MAINTENANCE & OPERATIONS","AT&T DIRECT MARKETING",,2011-05-10,"D.O. TELEPHONE SERVICES - VOUCHER# 2615",VENDOR,3.52,,2011-04-01,2011-09-30
"SENATOR JOSEPH P. ADDABBO, JR.","MAINTENANCE & OPERATIONS","JOURNAL VOUCHER",,2011-05-11,"D.O. ELECTRIC SERVICE - VOUCHER# 2728Z",VENDOR,143.56,,2011-04-01,2011-09-30
"SENATOR JOSEPH P. ADDABBO, JR.","MAINTENANCE & OPERATIONS","BROOKLYN UNION GAS COMPANY",,2011-05-18,"D.O. GAS SERVICE - VOUCHER# 2836",VENDOR,35.10,,2011-04-01,2011-09-30
"SENATOR JOSEPH P. ADDABBO, JR.","MAINTENANCE & OPERATIONS","BROOKLYN UNION GAS COMPANY",,2011-05-18,"D.O. GAS SERVICE - VOUCHER# 2837",VENDOR,32.62,,2011-04-01,2011-09-30
"SENATOR JOSEPH P. ADDABBO, JR.","MAINTENANCE & OPERATIONS","CHARLES RICHARDSON",,2011-05-18,"SUBSCRIPTIONS/PUBLICATIONS - VOUCHER# 2788",VENDOR,72.00,,2011-04-01,2011-09-30
"SENATOR JOSEPH P. ADDABBO, JR.","MAINTENANCE & OPERATIONS","IRENE D'AMBROSIO",,2011-05-24,"D.O. LEASE - VOUCHER# 2976",VENDOR,1500.00,,2011-04-01,2011-09-30
"SENATOR JOSEPH P. ADDABBO, JR.","MAINTENANCE & OPERATIONS","MARGHERITA LARUSSA",,2011-05-24,"D.O. LEASE - VOUCHER# 2985",VENDOR,1854.00,,2011-04-01,2011-09-30
"SENATOR JOSEPH P. ADDABBO, JR.","MAINTENANCE & OPERATIONS",VERIZON,,2011-06-01,"D.O. TELEPHONE SERVICES - VOUCHER# 3092",VENDOR,217.75,,2011-04-01,2011-09-30
"SENATOR JOSEPH P. ADDABBO, JR.","MAINTENANCE & OPERATIONS",VERIZON,,2011-06-07,"D.O. TELEPHONE SERVICES - VOUCHER# 3224",VENDOR,217.47,,2011-04-01,2011-09-30
"SENATOR JOSEPH P. ADDABBO, JR.","MAINTENANCE & OPERATIONS","JOURNAL VOUCHER",,2011-06-09,"D.O. ELECTRIC SERVICE - VOUCHER# 3279Z",VENDOR,146.65,,2011-04-01,2011-09-30
"SENATOR JOSEPH P. ADDABBO, JR.","MAINTENANCE & OPERATIONS","AT&T DIRECT MARKETING",,2011-06-14,"D.O. TELEPHONE SERVICES - VOUCHER# 3364",VENDOR,4.06,,2011-04-01,2011-09-30
"SENATOR JOSEPH P. ADDABBO, JR.","MAINTENANCE & OPERATIONS","CHARLES RICHARDSON",,2011-06-14,"SUBSCRIPTIONS/PUBLICATIONS - VOUCHER# 3386",VENDOR,75.60,,2011-04-01,2011-09-30
"SENATOR JOSEPH P. ADDABBO, JR.","MAINTENANCE & OPERATIONS","BROOKLYN UNION GAS COMPANY",,2011-06-21,"D.O. GAS SERVICE - VOUCHER# 3556",VENDOR,25.46,,2011-04-01,2011-09-30
"SENATOR JOSEPH P. ADDABBO, JR.","MAINTENANCE & OPERATIONS","BROOKLYN UNION GAS COMPANY",,2011-06-21,"D.O. GAS SERVICE - VOUCHER# 3558",VENDOR,27.22,,2011-04-01,2011-09-30
"SENATOR JOSEPH P. ADDABBO, JR.","MAINTENANCE & OPERATIONS","IRENE D'AMBROSIO",,2011-06-29,"D.O. LEASE - VOUCHER# 3731",VENDOR,1500.00,,2011-04-01,2011-09-30
"SENATOR JOSEPH P. ADDABBO, JR.","MAINTENANCE & OPERATIONS","MARGHERITA LARUSSA",,2011-06-29,"D.O. LEASE - VOUCHER# 3740",VENDOR,1854.00,,2011-04-01,2011-09-30
"SENATOR JOSEPH P. ADDABBO, JR.","MAINTENANCE & OPERATIONS","AT&T DIRECT MARKETING",,2011-07-06,"D.O. TELEPHONE SERVICES - VOUCHER# 3831",VENDOR,1.84,,2011-04-01,2011-09-30
"SENATOR JOSEPH P. ADDABBO, JR.","MAINTENANCE & OPERATIONS","JOURNAL VOUCHER",,2011-07-06,"D.O. ELECTRIC SERVICE - VOUCHER# 3882Z",VENDOR,170.41,,2011-04-01,2011-09-30
"SENATOR JOSEPH P. ADDABBO, JR.","MAINTENANCE & OPERATIONS",VERIZON,,2011-07-12,"D.O. TELEPHONE SERVICES - VOUCHER# 3937",VENDOR,318.95,,2011-04-01,2011-09-30
"SENATOR JOSEPH P. ADDABBO, JR.","MAINTENANCE & OPERATIONS","BROOKLYN UNION GAS COMPANY",,2011-07-19,"D.O. GAS SERVICE - VOUCHER# 4100",VENDOR,29.87,,2011-04-01,2011-09-30
"SENATOR JOSEPH P. ADDABBO, JR.","MAINTENANCE & OPERATIONS","CHARLES RICHARDSON",,2011-07-26,"SUBSCRIPTIONS/PUBLICATIONS - VOUCHER# 4146",VENDOR,79.20,,2011-04-01,2011-09-30
"SENATOR JOSEPH P. ADDABBO, JR.","MAINTENANCE & OPERATIONS","IRENE D'AMBROSIO",,2011-07-26,"D.O. LEASE - VOUCHER# 4210",VENDOR,1500.00,,2011-04-01,2011-09-30
"SENATOR JOSEPH P. ADDABBO, JR.","MAINTENANCE & OPERATIONS","MARGHERITA LARUSSA",,2011-07-26,"D.O. LEASE - VOUCHER# 4219",VENDOR,1854.00,,2011-04-01,2011-09-30
"SENATOR JOSEPH P. ADDABBO, JR.","MAINTENANCE & OPERATIONS","AT&T DIRECT MARKETING",,2011-08-02,"D.O. TELEPHONE SERVICES - VOUCHER# 4273",VENDOR,1.58,,2011-04-01,2011-09-30
"SENATOR JOSEPH P. ADDABBO, JR.","MAINTENANCE & OPERATIONS","BROOKLYN UNION GAS COMPANY",,2011-08-02,"D.O. GAS SERVICE - VOUCHER# 4331",VENDOR,28.99,,2011-04-01,2011-09-30
"SENATOR JOSEPH P. ADDABBO, JR.","MAINTENANCE & OPERATIONS","JOURNAL VOUCHER",,2011-08-04,"D.O. ELECTRIC SERVICE - VOUCHER# 4366Z",VENDOR,250.65,,2011-04-01,2011-09-30
"SENATOR JOSEPH P. ADDABBO, JR.","MAINTENANCE & OPERATIONS","CHARLES RICHARDSON",,2011-08-10,"SUBSCRIPTIONS/PUBLICATIONS - VOUCHER# 4381",VENDOR,72.00,,2011-04-01,2011-09-30
"SENATOR JOSEPH P. ADDABBO, JR.","MAINTENANCE & OPERATIONS","BROOKLYN UNION GAS COMPANY",,2011-08-16,"D.O. GAS SERVICE - VOUCHER# 4520",VENDOR,27.22,,2011-04-01,2011-09-30
"SENATOR JOSEPH P. ADDABBO, JR.","MAINTENANCE & OPERATIONS",VERIZON,,2011-08-16,"D.O. TELEPHONE SERVICES - VOUCHER# 4448",VENDOR,226.65,,2011-04-01,2011-09-30
"SENATOR JOSEPH P. ADDABBO, JR.","MAINTENANCE & OPERATIONS","BROOKLYN UNION GAS COMPANY",,2011-08-23,"D.O. GAS SERVICE - VOUCHER# 4634",VENDOR,26.34,,2011-04-01,2011-09-30
"SENATOR JOSEPH P. ADDABBO, JR.","MAINTENANCE & OPERATIONS","IRENE D'AMBROSIO",,2011-08-23,"D.O. LEASE - VOUCHER# 4671",VENDOR,1500.00,,2011-04-01,2011-09-30
"SENATOR JOSEPH P. ADDABBO, JR.","MAINTENANCE & OPERATIONS","MARGHERITA LARUSSA",,2011-08-23,"D.O. LEASE - VOUCHER# 4680",VENDOR,1854.00,,2011-04-01,2011-09-30
"SENATOR JOSEPH P. ADDABBO, JR.","MAINTENANCE & OPERATIONS","JOURNAL VOUCHER",,2011-09-07,"D.O. ELECTRIC SERVICE - VOUCHER# 4833Z",VENDOR,284.98,,2011-04-01,2011-09-30
"SENATOR JOSEPH P. ADDABBO, JR.","MAINTENANCE & OPERATIONS","MAILFINANCE INC. DBA HASLER",,2011-09-08,"D.O. MAILING EQUIPMENT LEASE - VOUCHER# 4812",VENDOR,149.97,,2011-04-01,2011-09-30
"SENATOR JOSEPH P. ADDABBO, JR.","MAINTENANCE & OPERATIONS","AT&T DIRECT MARKETING",,2011-09-20,"D.O. TELEPHONE SERVICES - VOUCHER# 4972",VENDOR,4.36,,2011-04-01,2011-09-30
"SENATOR JOSEPH P. ADDABBO, JR.","MAINTENANCE & OPERATIONS","BROOKLYN UNION GAS COMPANY",,2011-09-20,"D.O. GAS SERVICE - VOUCHER# 5024",VENDOR,28.99,,2011-04-01,2011-09-30
"SENATOR JOSEPH P. ADDABBO, JR.","MAINTENANCE & OPERATIONS","BROOKLYN UNION GAS COMPANY",,2011-09-20,"D.O. GAS SERVICE - VOUCHER# 5026",VENDOR,27.22,,2011-04-01,2011-09-30
"SENATOR JOSEPH P. ADDABBO, JR.","MAINTENANCE & OPERATIONS","CHARLES RICHARDSON",,2011-09-28,"SUBSCRIPTIONS/PUBLICATIONS - VOUCHER# 5090",VENDOR,82.80,,2011-04-01,2011-09-30
"SENATOR JOSEPH P. ADDABBO, JR.","MAINTENANCE & OPERATIONS","IRENE D'AMBROSIO",,2011-09-28,"D.O. LEASE - VOUCHER# 5155",VENDOR,1500.00,,2011-04-01,2011-09-30
"SENATOR JOSEPH P. ADDABBO, JR.","MAINTENANCE & OPERATIONS","JOURNAL VOUCHER",,2011-09-28,"D.O. ELECTRIC SERVICE - VOUCHER# 5184Z",VENDOR,216.46,,2011-04-01,2011-09-30
"SENATOR JOSEPH P. ADDABBO, JR.","MAINTENANCE & OPERATIONS","MARGHERITA LARUSSA",,2011-09-28,"D.O. LEASE - VOUCHER# 5164",VENDOR,1854.00,,2011-04-01,2011-09-30
"SENATOR JOSEPH P. ADDABBO, JR.","MEMBER TRAVEL","ADDABBO,JOSEPH",,2011-04-05,"LEGISLATIVE DUTIES-ALBANY - VOUCHER# 1794T",VENDOR,575.32,,2011-04-01,2011-09-30
"SENATOR JOSEPH P. ADDABBO, JR.","MEMBER TRAVEL","ADDABBO,JOSEPH",,2011-04-13,"LEGISLATIVE DUTIES-ALBANY - VOUCHER# 1940T",VENDOR,740.32,,2011-04-01,2011-09-30
"SENATOR JOSEPH P. ADDABBO, JR.","MEMBER TRAVEL","ADDABBO,JOSEPH",,2011-04-18,"LEGISLATIVE DUTIES-ALBANY - VOUCHER# 2146T",VENDOR,733.82,,2011-04-01,2011-09-30
"SENATOR JOSEPH P. ADDABBO, JR.","MEMBER TRAVEL","ADDABBO,JOSEPH",,2011-04-27,"LEGISLATIVE DUTIES-ALBANY - VOUCHER# 2265T",VENDOR,581.82,,2011-04-01,2011-09-30
"SENATOR JOSEPH P. ADDABBO, JR.","MEMBER TRAVEL","ADDABBO,JOSEPH",,2011-05-18,"LEGISLATIVE DUTIES-ALBANY - VOUCHER# 2704T",VENDOR,575.32,,2011-04-01,2011-09-30
"SENATOR JOSEPH P. ADDABBO, JR.","MEMBER TRAVEL","ADDABBO,JOSEPH",,2011-05-24,"LEGISLATIVE DUTIES-ALBANY - VOUCHER# 2848T",VENDOR,575.32,,2011-04-01,2011-09-30
"SENATOR JOSEPH P. ADDABBO, JR.","MEMBER TRAVEL","ADDABBO,JOSEPH",,2011-06-01,"LEGISLATIVE DUTIES-ALBANY - VOUCHER# 3005T",VENDOR,575.32,,2011-04-01,2011-09-30
"SENATOR JOSEPH P. ADDABBO, JR.","MEMBER TRAVEL","ADDABBO,JOSEPH",,2011-06-07,"LEGISLATIVE DUTIES-ALBANY - VOUCHER# 3170T",VENDOR,575.32,,2011-04-01,2011-09-30
"SENATOR JOSEPH P. ADDABBO, JR.","MEMBER TRAVEL","ADDABBO,JOSEPH",,2011-06-15,"LEGISLATIVE DUTIES-ALBANY - VOUCHER# 3292T",VENDOR,575.32,,2011-04-01,2011-09-30
"SENATOR JOSEPH P. ADDABBO, JR.","MEMBER TRAVEL","ADDABBO,JOSEPH",,2011-06-21,"LEGISLATIVE DUTIES-ALBANY - VOUCHER# 3423T",VENDOR,405.07,,2011-04-01,2011-09-30
"SENATOR JOSEPH P. ADDABBO, JR.","MEMBER TRAVEL","ADDABBO,JOSEPH",,2011-06-29,"LEGISLATIVE DUTIES-ALBANY - VOUCHER# 3567T",VENDOR,410.32,,2011-04-01,2011-09-30
"SENATOR JOSEPH P. ADDABBO, JR.","MEMBER TRAVEL","ADDABBO,JOSEPH",,2011-07-06,"LEGISLATIVE DUTIES-ALBANY - VOUCHER# 3756T",VENDOR,898.82,,2011-04-01,2011-09-30
"SENATOR JOSEPH P. ADDABBO, JR.","MEMBER TRAVEL","ADDABBO,JOSEPH",,2011-07-12,"LEGISLATIVE DUTIES-ALBANY - VOUCHER# 3903T",VENDOR,887.32,,2011-04-01,2011-09-30
"SENATOR JOSEPH P. ADDABBO, JR.","MEMBER TRAVEL","ADDABBO,JOSEPH",,2011-08-02,"TOLLS-ALBANY - VOUCHER# 4241T",VENDOR,269.10,,2011-04-01,2011-09-30
"SENATOR JOSEPH P. ADDABBO, JR.","STAFF TRAVEL","GIANNELLI,NEIL",,2011-08-30,"IDENTIFICATION FOR PERSONNEL - VOUCHER# 4710T",VENDOR,166.50,,2011-04-01,2011-09-30
"SENATOR JOSEPH P. ADDABBO, JR.","ALLOCATED OPERATIONAL EXPENSES",,,,"FIRST CLASS POSTAGE",AOE,2559.29,"See Note Above",2011-04-01,2011-09-30
"SENATOR JOSEPH P. ADDABBO, JR.","ALLOCATED OPERATIONAL EXPENSES",,,,"NEWS LETTER POSTAGE",AOE,57331.96,"See Note Above",2011-04-01,2011-09-30
"SENATOR JOSEPH P. ADDABBO, JR.","ALLOCATED OPERATIONAL EXPENSES",,,,"LONG DISTANCE TELEPHONE",AOE,103.92,"See Note Above",2011-04-01,2011-09-30
"SENATOR JOSEPH P. ADDABBO, JR.","ALLOCATED OPERATIONAL EXPENSES",,,,"OFFICE SUPPLIES",AOE,2204.20,"See Note Above",2011-04-01,2011-09-30
"SENATOR JAMES S. ALESI","PERSONAL SERVICE","ALESI, JAMES S",2011-03-31,2011-09-28,MEMBER,RA,39749.97,,2011-04-01,2011-09-30
"SENATOR JAMES S. ALESI","PERSONAL SERVICE","ALESI, JAMES S",,2011-04-13,"CHAIR OF MAJORITY STEERING COMMITTEE",RA,15375.00,,2011-04-01,2011-09-30
"SENATOR JAMES S. ALESI","PERSONAL SERVICE","GIROUX, JESSICA R",2011-03-17,2011-06-30,COUNSEL,RA,29128.90,,2011-04-01,2011-09-30
"SENATOR JAMES S. ALESI","PERSONAL SERVICE","GIROUX, JESSICA R",,2011-08-31,"LUMP SUM VACATION PAYMENT",VA,4570.72,,2011-04-01,2011-09-30
"SENATOR JAMES S. ALESI","PERSONAL SERVICE","HICKEY, ROBERT M",2011-03-17,2011-09-14,"LEGISLATIVE ASSISTANT",RA,15753.85,,2011-04-01,2011-09-30
"SENATOR JAMES S. ALESI","PERSONAL SERVICE","JOANNETTE, JILL M",2011-03-17,2011-09-14,"LEGISLATIVE ANALYST",RA,21000.07,,2011-04-01,2011-09-30
"SENATOR JAMES S. ALESI","PERSONAL SERVICE","KENNELLEY, LISA A",2011-03-17,2011-09-14,"DIRECTOR OF OPERATIONS",RA,32500.00,,2011-04-01,2011-09-30
"SENATOR JAMES S. ALESI","PERSONAL SERVICE","QUINN III, ROBERT H",2011-03-17,2011-09-14,"SENIOR ADVISOR",RA,36500.10,,2011-04-01,2011-09-30
"SENATOR JAMES S. ALESI","PERSONAL SERVICE","ROBBINS, CAMILLE C",2011-03-17,2011-09-14,"ADMINISTRATIVE ASSISTANT",RA,17765.41,,2011-04-01,2011-09-30
"SENATOR JAMES S. ALESI","PERSONAL SERVICE","RZEPKA, PATRICIA L",2011-03-17,2011-09-14,"DIRECTOR OF CONSTITUENT SERVICES",RA,28750.02,,2011-04-01,2011-09-30
"SENATOR JAMES S. ALESI","PERSONAL SERVICE","SHAFFER, ELIZABETH A",2011-05-31,2011-09-14,"LEGISLATIVE AIDE",RA,10800.00,,2011-04-01,2011-09-30
"SENATOR JAMES S. ALESI","MAINTENANCE & OPERATIONS","AT&T DIRECT MARKETING",,2011-04-05,"D.O. TELEPHONE SERVICES - VOUCHER# 1873",VENDOR,3.00,,2011-04-01,2011-09-30
"SENATOR JAMES S. ALESI","MAINTENANCE & OPERATIONS","FRONTIER TELEPHONE OF ROCHESTER INC.",,2011-04-12,"D.O. TELEPHONE SERVICES - VOUCHER# 2037",VENDOR,185.39,,2011-04-01,2011-09-30
"SENATOR JAMES S. ALESI","MAINTENANCE & OPERATIONS","CARSON CLEANING SERVICE",,2011-04-18,"D.O. CLEANING - VOUCHER# 2208",VENDOR,150.00,,2011-04-01,2011-09-30
"SENATOR JAMES S. ALESI","MAINTENANCE & OPERATIONS","CANAL EAST COMPANY LLC",,2011-04-27,"D.O. LEASE - VOUCHER# 2412",VENDOR,2060.00,,2011-04-01,2011-09-30
"SENATOR JAMES S. ALESI","MAINTENANCE & OPERATIONS","CHARLES RICHARDSON",,2011-04-27,"SUBSCRIPTIONS/PUBLICATIONS - VOUCHER# 2371",VENDOR,193.50,,2011-04-01,2011-09-30
"SENATOR JAMES S. ALESI","MAINTENANCE & OPERATIONS","EBSCO INDUSTRIES INC DBA EBSCO INFORMATION SERVICES",,2011-04-27,"SUBSCRIPTIONS/PUBLICATIONS - VOUCHER# 2352",VENDOR,386.86,,2011-04-01,2011-09-30
"SENATOR JAMES S. ALESI","MAINTENANCE & OPERATIONS","AT&T DIRECT MARKETING",,2011-05-10,"D.O. TELEPHONE SERVICES - VOUCHER# 2615",VENDOR,4.02,,2011-04-01,2011-09-30
"SENATOR JAMES S. ALESI","MAINTENANCE & OPERATIONS","CHARLES RICHARDSON",,2011-05-18,"SUBSCRIPTIONS/PUBLICATIONS - VOUCHER# 2788",VENDOR,88.10,,2011-04-01,2011-09-30
"SENATOR JAMES S. ALESI","MAINTENANCE & OPERATIONS","CANAL EAST COMPANY LLC",,2011-05-24,"D.O. LEASE - VOUCHER# 2952",VENDOR,2060.00,,2011-04-01,2011-09-30
"SENATOR JAMES S. ALESI","MAINTENANCE & OPERATIONS","CARSON CLEANING SERVICE",,2011-05-24,"D.O. CLEANING - VOUCHER# 2920",VENDOR,150.00,,2011-04-01,2011-09-30
"SENATOR JAMES S. ALESI","MAINTENANCE & OPERATIONS","FRONTIER TELEPHONE OF ROCHESTER INC.",,2011-05-24,"D.O. TELEPHONE SERVICES - VOUCHER# 2908",VENDOR,225.83,,2011-04-01,2011-09-30
"SENATOR JAMES S. ALESI","MAINTENANCE & OPERATIONS","AT&T DIRECT MARKETING",,2011-06-14,"D.O. TELEPHONE SERVICES - VOUCHER# 3364",VENDOR,3.65,,2011-04-01,2011-09-30
"SENATOR JAMES S. ALESI","MAINTENANCE & OPERATIONS","CHARLES RICHARDSON",,2011-06-14,"SUBSCRIPTIONS/PUBLICATIONS - VOUCHER# 3386",VENDOR,103.20,,2011-04-01,2011-09-30
"SENATOR JAMES S. ALESI","MAINTENANCE & OPERATIONS","CARSON CLEANING SERVICE",,2011-06-21,"D.O. CLEANING - VOUCHER# 3536",VENDOR,150.00,,2011-04-01,2011-09-30
"SENATOR JAMES S. ALESI","MAINTENANCE & OPERATIONS","CANAL EAST COMPANY LLC",,2011-06-29,"D.O. LEASE - VOUCHER# 3706",VENDOR,2060.00,,2011-04-01,2011-09-30
"SENATOR JAMES S. ALESI","MAINTENANCE & OPERATIONS","FRONTIER TELEPHONE OF ROCHESTER INC.",,2011-06-29,"D.O. TELEPHONE SERVICES - VOUCHER# 3656",VENDOR,144.81,,2011-04-01,2011-09-30
"SENATOR JAMES S. ALESI","MAINTENANCE & OPERATIONS","AT&T DIRECT MARKETING",,2011-07-06,"D.O. TELEPHONE SERVICES - VOUCHER# 3831",VENDOR,2.36,,2011-04-01,2011-09-30
"SENATOR JAMES S. ALESI","MAINTENANCE & OPERATIONS","CARSON CLEANING SERVICE",,2011-07-19,"D.O. CLEANING - VOUCHER# 4068",VENDOR,150.00,,2011-04-01,2011-09-30
"SENATOR JAMES S. ALESI","MAINTENANCE & OPERATIONS","FRONTIER TELEPHONE OF ROCHESTER INC.",,2011-07-19,"D.O. TELEPHONE SERVICES - VOUCHER# 4050",VENDOR,186.62,,2011-04-01,2011-09-30
"SENATOR JAMES S. ALESI","MAINTENANCE & OPERATIONS","CANAL EAST COMPANY LLC",,2011-07-26,"D.O. LEASE - VOUCHER# 4185",VENDOR,2060.00,,2011-04-01,2011-09-30
"SENATOR JAMES S. ALESI","MAINTENANCE & OPERATIONS","CHARLES RICHARDSON",,2011-07-26,"SUBSCRIPTIONS/PUBLICATIONS - VOUCHER# 4146",VENDOR,122.90,,2011-04-01,2011-09-30
"SENATOR JAMES S. ALESI","MAINTENANCE & OPERATIONS","GATEHOUSE MEDIA NY HOLDINGS DBA/MESSENGER POST MEDIA",,2011-07-26,"SUBSCRIPTIONS/PUBLICATIONS - VOUCHER# 4158",VENDOR,39.90,,2011-04-01,2011-09-30
"SENATOR JAMES S. ALESI","MAINTENANCE & OPERATIONS","AT&T DIRECT MARKETING",,2011-08-02,"D.O. TELEPHONE SERVICES - VOUCHER# 4273",VENDOR,1.77,,2011-04-01,2011-09-30
"SENATOR JAMES S. ALESI","MAINTENANCE & OPERATIONS","CARSON CLEANING SERVICE",,2011-08-16,"D.O. CLEANING - VOUCHER# 4488",VENDOR,150.00,,2011-04-01,2011-09-30
"SENATOR JAMES S. ALESI","MAINTENANCE & OPERATIONS","CHARLES RICHARDSON",,2011-08-16,"SUBSCRIPTIONS/PUBLICATIONS - VOUCHER# 4473",VENDOR,78.00,,2011-04-01,2011-09-30
"SENATOR JAMES S. ALESI","MAINTENANCE & OPERATIONS","FRONTIER TELEPHONE OF ROCHESTER INC.",,2011-08-16,"D.O. TELEPHONE SERVICES - VOUCHER# 4464",VENDOR,181.88,,2011-04-01,2011-09-30
"SENATOR JAMES S. ALESI","MAINTENANCE & OPERATIONS","CANAL EAST COMPANY LLC",,2011-08-23,"D.O. LEASE - VOUCHER# 4646",VENDOR,2060.00,,2011-04-01,2011-09-30
"SENATOR JAMES S. ALESI","MAINTENANCE & OPERATIONS","MAILFINANCE INC. DBA HASLER",,2011-09-08,"D.O. MAILING EQUIPMENT LEASE - VOUCHER# 4812",VENDOR,149.97,,2011-04-01,2011-09-30
"SENATOR JAMES S. ALESI","MAINTENANCE & OPERATIONS","AT&T DIRECT MARKETING",,2011-09-20,"D.O. TELEPHONE SERVICES - VOUCHER# 4972",VENDOR,1.48,,2011-04-01,2011-09-30
"SENATOR JAMES S. ALESI","MAINTENANCE & OPERATIONS","CARSON CLEANING SERVICE",,2011-09-20,"D.O. CLEANING - VOUCHER# 4998",VENDOR,150.00,,2011-04-01,2011-09-30
"SENATOR JAMES S. ALESI","MAINTENANCE & OPERATIONS","FRONTIER TELEPHONE OF ROCHESTER INC.",,2011-09-20,"D.O. TELEPHONE SERVICES - VOUCHER# 4982",VENDOR,187.04,,2011-04-01,2011-09-30
"SENATOR JAMES S. ALESI","MAINTENANCE & OPERATIONS","CANAL EAST COMPANY LLC",,2011-09-28,"D.O. LEASE - VOUCHER# 5130",VENDOR,2060.00,,2011-04-01,2011-09-30
"SENATOR JAMES S. ALESI","MAINTENANCE & OPERATIONS","CHARLES RICHARDSON",,2011-09-28,"SUBSCRIPTIONS/PUBLICATIONS - VOUCHER# 5090",VENDOR,89.70,,2011-04-01,2011-09-30
"SENATOR JAMES S. ALESI","MAINTENANCE & OPERATIONS","FRONTIER TELEPHONE OF ROCHESTER INC.",,2011-09-28,"D.O. TELEPHONE SERVICES - VOUCHER# 5086",VENDOR,74.05,,2011-04-01,2011-09-30
"SENATOR JAMES S. ALESI","MEMBER TRAVEL","ALESI, JAMES",,2011-04-05,"LEGISLATIVE DUTIES-ALBANY - VOUCHER# 1795T",VENDOR,784.63,,2011-04-01,2011-09-30
"SENATOR JAMES S. ALESI","MEMBER TRAVEL","ALESI, JAMES",,2011-04-18,"LEGISLATIVE DUTIES-ALBANY - VOUCHER# 2160T",VENDOR,1114.87,,2011-04-01,2011-09-30
"SENATOR JAMES S. ALESI","MEMBER TRAVEL","ALESI, JAMES",,2011-04-18,"LEGISLATIVE DUTIES-ALBANY - VOUCHER# 2161T",VENDOR,949.25,,2011-04-01,2011-09-30
"SENATOR JAMES S. ALESI","MEMBER TRAVEL","ALESI, JAMES",,2011-04-18,"LEGISLATIVE DUTIES-ALBANY - VOUCHER# 2162T",VENDOR,784.30,,2011-04-01,2011-09-30
"SENATOR JAMES S. ALESI","MEMBER TRAVEL","ALESI, JAMES",,2011-05-24,"LEGISLATIVE DUTIES-ALBANY - VOUCHER# 2849T",VENDOR,454.58,,2011-04-01,2011-09-30
"SENATOR JAMES S. ALESI","MEMBER TRAVEL","ALESI, JAMES",,2011-05-24,"LEGISLATIVE DUTIES-ALBANY - VOUCHER# 2850T",VENDOR,618.97,,2011-04-01,2011-09-30
"SENATOR JAMES S. ALESI","MEMBER TRAVEL","ALESI, JAMES",,2011-06-07,"LEGISLATIVE DUTIES-ALBANY - VOUCHER# 3171T",VENDOR,619.30,,2011-04-01,2011-09-30
"SENATOR JAMES S. ALESI","MEMBER TRAVEL","ALESI, JAMES",,2011-06-07,"LEGISLATIVE DUTIES-ALBANY - VOUCHER# 3172T",VENDOR,618.87,,2011-04-01,2011-09-30
"SENATOR JAMES S. ALESI","MEMBER TRAVEL","ALESI, JAMES",,2011-06-21,"LEGISLATIVE DUTIES-ALBANY - VOUCHER# 3424T",VENDOR,1303.54,,2011-04-01,2011-09-30
"SENATOR JAMES S. ALESI","MEMBER TRAVEL","ALESI, JAMES",,2011-06-21,"LEGISLATIVE DUTIES-ALBANY - VOUCHER# 3425T",VENDOR,454.58,,2011-04-01,2011-09-30
"SENATOR JAMES S. ALESI","MEMBER TRAVEL","ALESI, JAMES",,2011-07-19,"LEGISLATIVE DUTIES-ALBANY - VOUCHER# 3984T",VENDOR,1472.73,,2011-04-01,2011-09-30
"SENATOR JAMES S. ALESI","MEMBER TRAVEL","ALESI, JAMES",,2011-07-19,"LEGISLATIVE DUTIES-ALBANY - VOUCHER# 3985T",VENDOR,1278.40,,2011-04-01,2011-09-30
"SENATOR JAMES S. ALESI","MEMBER TRAVEL","ALESI, JAMES",,2011-07-19,"LEGISLATIVE DUTIES-ALBANY - VOUCHER# 3986T",VENDOR,1277.21,,2011-04-01,2011-09-30
"SENATOR JAMES S. ALESI","STAFF TRAVEL","QUINN,ROBERT",,2011-05-18,"MEETING-ALBANY - VOUCHER# 2739T",VENDOR,244.58,,2011-04-01,2011-09-30
"SENATOR JAMES S. ALESI","STAFF TRAVEL","GIROUX,JESSICA",,2011-07-06,"MEETING-MANHATTAN - VOUCHER# 3805T",VENDOR,119.00,,2011-04-01,2011-09-30
"SENATOR JAMES S. ALESI","STAFF TRAVEL","JOANNETTE,JILL",,2011-07-06,"MEETING-MANHATTAN - VOUCHER# 3806T",VENDOR,543.00,,2011-04-01,2011-09-30
"SENATOR JAMES S. ALESI","STAFF TRAVEL","JOANNETTE,JILL",,2011-08-16,"MEETING-MANHATTAN - VOUCHER# 4431T",VENDOR,394.40,,2011-04-01,2011-09-30
"SENATOR JAMES S. ALESI","ALLOCATED OPERATIONAL EXPENSES",,,,"FIRST CLASS POSTAGE",AOE,1348.63,"See Note Above",2011-04-01,2011-09-30
"SENATOR JAMES S. ALESI","ALLOCATED OPERATIONAL EXPENSES",,,,"BULK RATE POSTAGE",AOE,132929.01,"See Note Above",2011-04-01,2011-09-30
"SENATOR JAMES S. ALESI","ALLOCATED OPERATIONAL EXPENSES",,,,"LONG DISTANCE TELEPHONE",AOE,26.69,"See Note Above",2011-04-01,2011-09-30
"SENATOR JAMES S. ALESI","ALLOCATED OPERATIONAL EXPENSES",,,,"OFFICE SUPPLIES",AOE,205.59,"See Note Above",2011-04-01,2011-09-30
"SENATOR ANTHONY P. AVELLA, JR.","PERSONAL SERVICE","AVELLA JR, ANTHONY P",,2011-09-28,MEMBER,RA,39749.97,,2011-04-01,2011-09-30
"SENATOR ANTHONY P. AVELLA, JR.","PERSONAL SERVICE","AULOVA, ANNA",2011-03-17,2011-09-14,"DISTRICT REPRESENTATIVE",RA,15500.03,,2011-04-01,2011-09-30
"SENATOR ANTHONY P. AVELLA, JR.","PERSONAL SERVICE","CHIRLIN, JOHN D",,2011-04-27,"LUMP SUM VACATION PAYMENT",VA,10384.62,"PAYMENT FOR SERVICES RENDERED PRIOR TO MARCH 17, 2011",2011-04-01,2011-09-30
"SENATOR ANTHONY P. AVELLA, JR.","PERSONAL SERVICE","CHIRLIN, JOHN D",2011-04-04,2011-06-24,"SPECIAL ASSISTANT",TE,20120.75,,2011-04-01,2011-09-30
"SENATOR ANTHONY P. AVELLA, JR.","PERSONAL SERVICE","FLEMING, EDWARD H",2011-03-17,2011-09-14,"DEPUTY CHIEF OF STAFF",RA,22534.67,,2011-04-01,2011-09-30
"SENATOR ANTHONY P. AVELLA, JR.","PERSONAL SERVICE","GRAZIANO, PAUL D",2011-03-03,2011-08-01,"SPECIAL ASSISTANT",TE,5500.00,,2011-04-01,2011-09-30
"SENATOR ANTHONY P. AVELLA, JR.","PERSONAL SERVICE","HAMMER, FRANCESCA D",2011-03-17,2011-09-14,"ADMINISTRATIVE ASSISTANT",SA,2480.80,,2011-04-01,2011-09-30
"SENATOR ANTHONY P. AVELLA, JR.","PERSONAL SERVICE","JUNG, DAWA",2011-03-17,2011-09-14,"DISTRICT REPRESENTATIVE",RA,17676.99,,2011-04-01,2011-09-30
"SENATOR ANTHONY P. AVELLA, JR.","PERSONAL SERVICE","MEDINA, JULIE",2011-09-07,2011-09-14,"DISTRICT REPRESENTATIVE",RA,576.92,,2011-04-01,2011-09-30
"SENATOR ANTHONY P. AVELLA, JR.","PERSONAL SERVICE","RANTZAKLIS, EVANGELOS T",2011-03-17,2011-09-14,"DIRECTOR OF ALBANY OPERATIONS",RA,20000.11,,2011-04-01,2011-09-30
"SENATOR ANTHONY P. AVELLA, JR.","PERSONAL SERVICE","SAN MIGUEL, XAVIER A",2011-03-17,2011-09-14,"DISTRICT REPRESENTATIVE",RA,15500.03,,2011-04-01,2011-09-30
"SENATOR ANTHONY P. AVELLA, JR.","PERSONAL SERVICE","SCHACHTER, BESSIE R",2011-03-17,2011-09-14,"DISTRICT REPRESENTATIVE",RA,17200.95,,2011-04-01,2011-09-30
"SENATOR ANTHONY P. AVELLA, JR.","PERSONAL SERVICE","SHEEHAN, REBECCA A",2011-03-17,2011-09-14,"LEGISLATIVE COUNSEL",RA,32500.00,,2011-04-01,2011-09-30
"SENATOR ANTHONY P. AVELLA, JR.","PERSONAL SERVICE","URBINDER, SETH",2011-03-17,2011-09-14,"CHIEF OF STAFF",RA,25000.04,,2011-04-01,2011-09-30
"SENATOR ANTHONY P. AVELLA, JR.","PERSONAL SERVICE","WALTROUS, ZOE S",2011-03-17,2011-07-11,"DISTRICT REPRESENTATIVE",RA,11846.21,,2011-04-01,2011-09-30
"SENATOR ANTHONY P. AVELLA, JR.","PERSONAL SERVICE","WALTROUS, ZOE S",,2011-08-31,"LUMP SUM VACATION PAYMENT",VA,1663.85,,2011-04-01,2011-09-30
"SENATOR ANTHONY P. AVELLA, JR.","MAINTENANCE & OPERATIONS","AT&T DIRECT MARKETING",,2011-04-05,"D.O. TELEPHONE SERVICES - VOUCHER# 1873",VENDOR,4.41,,2011-04-01,2011-09-30
"SENATOR ANTHONY P. AVELLA, JR.","MAINTENANCE & OPERATIONS","COMMERCIAL SITES LLC",,2011-04-18,"D.O. CLEANING - VOUCHER# 2221",VENDOR,411.74,,2011-04-01,2011-09-30
"SENATOR ANTHONY P. AVELLA, JR.","MAINTENANCE & OPERATIONS",VERIZON,,2011-04-21,"D.O. TELEPHONE SERVICES - VOUCHER# 2010",VENDOR,520.86,,2011-04-01,2011-09-30
"SENATOR ANTHONY P. AVELLA, JR.","MAINTENANCE & OPERATIONS","COMMERCIAL SITES LLC",,2011-04-27,"D.O. LEASE - VOUCHER# 2449",VENDOR,4143.58,,2011-04-01,2011-09-30
"SENATOR ANTHONY P. AVELLA, JR.","MAINTENANCE & OPERATIONS","NEW YORK MARKING DEVICES CORP",,2011-05-03,"RUBBER STAMPS - VOUCHER# 2495",VENDOR,17.00,,2011-04-01,2011-09-30
"SENATOR ANTHONY P. AVELLA, JR.","MAINTENANCE & OPERATIONS","AT&T DIRECT MARKETING",,2011-05-10,"D.O. TELEPHONE SERVICES - VOUCHER# 2615",VENDOR,10.80,,2011-04-01,2011-09-30
"SENATOR ANTHONY P. AVELLA, JR.","MAINTENANCE & OPERATIONS","COMMERCIAL SITES LLC",,2011-05-18,"D.O. CLEANING - VOUCHER# 2806",VENDOR,411.74,,2011-04-01,2011-09-30
"SENATOR ANTHONY P. AVELLA, JR.","MAINTENANCE & OPERATIONS","COMMERCIAL SITES LLC",,2011-05-24,"D.O. LEASE - VOUCHER# 2989",VENDOR,4143.58,,2011-04-01,2011-09-30
"SENATOR ANTHONY P. AVELLA, JR.","MAINTENANCE & OPERATIONS",VERIZON,,2011-06-01,"D.O. TELEPHONE SERVICES - VOUCHER# 3092",VENDOR,136.73,,2011-04-01,2011-09-30
"SENATOR ANTHONY P. AVELLA, JR.","MAINTENANCE & OPERATIONS",VERIZON,,2011-06-07,"D.O. TELEPHONE SERVICES - VOUCHER# 3224",VENDOR,149.18,,2011-04-01,2011-09-30
"SENATOR ANTHONY P. AVELLA, JR.","MAINTENANCE & OPERATIONS","AT&T DIRECT MARKETING",,2011-06-14,"D.O. TELEPHONE SERVICES - VOUCHER# 3364",VENDOR,3.13,,2011-04-01,2011-09-30
"SENATOR ANTHONY P. AVELLA, JR.","MAINTENANCE & OPERATIONS","COMMERCIAL SITES LLC",,2011-06-14,"D.O. CLEANING - VOUCHER# 3401",VENDOR,411.74,,2011-04-01,2011-09-30
"SENATOR ANTHONY P. AVELLA, JR.","MAINTENANCE & OPERATIONS","COMMERCIAL SITES LLC",,2011-06-29,"D.O. LEASE - VOUCHER# 3744",VENDOR,4143.58,,2011-04-01,2011-09-30
"SENATOR ANTHONY P. AVELLA, JR.","MAINTENANCE & OPERATIONS","AT&T DIRECT MARKETING",,2011-07-06,"D.O. TELEPHONE SERVICES - VOUCHER# 3831",VENDOR,0.86,,2011-04-01,2011-09-30
"SENATOR ANTHONY P. AVELLA, JR.","MAINTENANCE & OPERATIONS",VERIZON,,2011-07-12,"D.O. TELEPHONE SERVICES - VOUCHER# 3937",VENDOR,154.05,,2011-04-01,2011-09-30
"SENATOR ANTHONY P. AVELLA, JR.","MAINTENANCE & OPERATIONS","COMMERCIAL SITES LLC",,2011-07-19,"D.O. CLEANING - VOUCHER# 4078",VENDOR,411.74,,2011-04-01,2011-09-30
"SENATOR ANTHONY P. AVELLA, JR.","MAINTENANCE & OPERATIONS","COMMERCIAL SITES LLC",,2011-07-26,"D.O. LEASE - VOUCHER# 4223",VENDOR,4143.58,,2011-04-01,2011-09-30
"SENATOR ANTHONY P. AVELLA, JR.","MAINTENANCE & OPERATIONS","AT&T DIRECT MARKETING",,2011-08-02,"D.O. TELEPHONE SERVICES - VOUCHER# 4273",VENDOR,4.58,,2011-04-01,2011-09-30
"SENATOR ANTHONY P. AVELLA, JR.","MAINTENANCE & OPERATIONS","QUEENS LEDGER GREENPOINT STAR",,2011-08-10,"SUBSCRIPTIONS/PUBLICATIONS - VOUCHER# 4395",VENDOR,19.00,,2011-04-01,2011-09-30
"SENATOR ANTHONY P. AVELLA, JR.","MAINTENANCE & OPERATIONS","THE SERVICE / QUEENS GAZETTE",,2011-08-10,"SUBSCRIPTIONS/PUBLICATIONS - VOUCHER# 4396",VENDOR,26.00,,2011-04-01,2011-09-30
"SENATOR ANTHONY P. AVELLA, JR.","MAINTENANCE & OPERATIONS","COMMERCIAL SITES LLC",,2011-08-16,"D.O. CLEANING - VOUCHER# 4498",VENDOR,411.74,,2011-04-01,2011-09-30
"SENATOR ANTHONY P. AVELLA, JR.","MAINTENANCE & OPERATIONS","EBSCO INDUSTRIES INC DBA EBSCO INFORMATION SERVICES",,2011-08-16,"SUBSCRIPTIONS/PUBLICATIONS - VOUCHER# 4458",VENDOR,2052.86,,2011-04-01,2011-09-30
"SENATOR ANTHONY P. AVELLA, JR.","MAINTENANCE & OPERATIONS",VERIZON,,2011-08-16,"D.O. TELEPHONE SERVICES - VOUCHER# 4448",VENDOR,158.51,,2011-04-01,2011-09-30
"SENATOR ANTHONY P. AVELLA, JR.","MAINTENANCE & OPERATIONS","COMMERCIAL SITES LLC",,2011-08-23,"D.O. LEASE - VOUCHER# 4684",VENDOR,4143.58,,2011-04-01,2011-09-30
"SENATOR ANTHONY P. AVELLA, JR.","MAINTENANCE & OPERATIONS","MAILFINANCE INC. DBA HASLER",,2011-09-08,"D.O. MAILING EQUIPMENT LEASE - VOUCHER# 4812",VENDOR,149.97,,2011-04-01,2011-09-30
"SENATOR ANTHONY P. AVELLA, JR.","MAINTENANCE & OPERATIONS","COMMERCIAL SITES LLC",,2011-09-13,"D.O. CLEANING - VOUCHER# 4905",VENDOR,411.74,,2011-04-01,2011-09-30
"SENATOR ANTHONY P. AVELLA, JR.","MAINTENANCE & OPERATIONS","AT&T DIRECT MARKETING",,2011-09-20,"D.O. TELEPHONE SERVICES - VOUCHER# 4972",VENDOR,0.35,,2011-04-01,2011-09-30
"SENATOR ANTHONY P. AVELLA, JR.","MAINTENANCE & OPERATIONS","COMMERCIAL SITES LLC",,2011-09-28,"D.O. LEASE - VOUCHER# 5169",VENDOR,4143.58,,2011-04-01,2011-09-30
"SENATOR ANTHONY P. AVELLA, JR.","MEMBER TRAVEL","AVELLA JR, ANTHONY",,2011-04-05,"LEGISLATIVE DUTIES-ALBANY - VOUCHER# 1796T",VENDOR,729.91,,2011-04-01,2011-09-30
"SENATOR ANTHONY P. AVELLA, JR.","MEMBER TRAVEL","AVELLA JR, ANTHONY",,2011-04-13,"LEGISLATIVE DUTIES-ALBANY - VOUCHER# 1941T",VENDOR,729.91,,2011-04-01,2011-09-30
"SENATOR ANTHONY P. AVELLA, JR.","MEMBER TRAVEL","AVELLA JR, ANTHONY",,2011-04-13,"LEGISLATIVE DUTIES-ALBANY - VOUCHER# 1999T",VENDOR,729.91,,2011-04-01,2011-09-30
"SENATOR ANTHONY P. AVELLA, JR.","MEMBER TRAVEL","AVELLA JR, ANTHONY",,2011-05-03,"LEGISLATIVE DUTIES-BROOKLYN - VOUCHER# 2487T",VENDOR,17.18,,2011-04-01,2011-09-30
"SENATOR ANTHONY P. AVELLA, JR.","MEMBER TRAVEL","AVELLA JR, ANTHONY",,2011-05-03,"LEGISLATIVE DUTIES-MANHATTAN - VOUCHER# 2486T",VENDOR,39.78,,2011-04-01,2011-09-30
"SENATOR ANTHONY P. AVELLA, JR.","MEMBER TRAVEL","AVELLA JR, ANTHONY",,2011-05-10,"LEGISLATIVE DUTIES-ALBANY - VOUCHER# 2532T",VENDOR,564.91,,2011-04-01,2011-09-30
"SENATOR ANTHONY P. AVELLA, JR.","MEMBER TRAVEL","AVELLA JR, ANTHONY",,2011-05-10,"LEGISLATIVE DUTIES-ALBANY - VOUCHER# 2533T",VENDOR,564.91,,2011-04-01,2011-09-30
"SENATOR ANTHONY P. AVELLA, JR.","MEMBER TRAVEL","AVELLA JR, ANTHONY",,2011-05-18,"LEGISLATIVE DUTIES-ALBANY - VOUCHER# 2747T",VENDOR,564.91,,2011-04-01,2011-09-30
"SENATOR ANTHONY P. AVELLA, JR.","MEMBER TRAVEL","AVELLA JR, ANTHONY",,2011-06-01,"LEGISLATIVE DUTIES-ALBANY - VOUCHER# 3080T",VENDOR,564.91,,2011-04-01,2011-09-30
"SENATOR ANTHONY P. AVELLA, JR.","MEMBER TRAVEL","AVELLA JR, ANTHONY",,2011-06-01,"LEGISLATIVE DUTIES-ALBANY - VOUCHER# 3081T",VENDOR,564.91,,2011-04-01,2011-09-30
"SENATOR ANTHONY P. AVELLA, JR.","MEMBER TRAVEL","AVELLA JR, ANTHONY",,2011-06-15,"LEGISLATIVE DUTIES-ALBANY - VOUCHER# 3293T",VENDOR,564.91,,2011-04-01,2011-09-30
"SENATOR ANTHONY P. AVELLA, JR.","MEMBER TRAVEL","AVELLA JR, ANTHONY",,2011-06-15,"LEGISLATIVE DUTIES-ALBANY - VOUCHER# 3346T",VENDOR,399.91,,2011-04-01,2011-09-30
"SENATOR ANTHONY P. AVELLA, JR.","MEMBER TRAVEL","AVELLA JR, ANTHONY",,2011-06-21,"LEGISLATIVE DUTIES-ALBANY - VOUCHER# 3483T",VENDOR,399.91,,2011-04-01,2011-09-30
"SENATOR ANTHONY P. AVELLA, JR.","MEMBER TRAVEL","AVELLA JR, ANTHONY",,2011-07-06,"LEGISLATIVE DUTIES-ALBANY - VOUCHER# 3757T",VENDOR,894.91,,2011-04-01,2011-09-30
"SENATOR ANTHONY P. AVELLA, JR.","MEMBER TRAVEL","AVELLA JR, ANTHONY",,2011-07-12,"LEGISLATIVE DUTIES-ALBANY - VOUCHER# 3930T",VENDOR,1014.91,,2011-04-01,2011-09-30
"SENATOR ANTHONY P. AVELLA, JR.","MEMBER TRAVEL","AVELLA JR, ANTHONY",,2011-08-23,"LEGISLATIVE DUTIES-YONKERS - VOUCHER# 4562T",VENDOR,27.92,,2011-04-01,2011-09-30
"SENATOR ANTHONY P. AVELLA, JR.","MEMBER TRAVEL","AVELLA JR, ANTHONY",,2011-09-13,"MEETING-ALBANY - VOUCHER# 4846T",VENDOR,204.31,,2011-04-01,2011-09-30
"SENATOR ANTHONY P. AVELLA, JR.","MEMBER TRAVEL","AVELLA JR, ANTHONY",,2011-09-28,"LEGISLATIVE DUTIES-SCHROON LAKE - VOUCHER# 5038T",VENDOR,603.56,,2011-04-01,2011-09-30
"SENATOR ANTHONY P. AVELLA, JR.","STAFF TRAVEL","HAMMER,FRANCESCA",,2011-04-27,"IDENTIFICATION FOR PERSONNEL - VOUCHER# 2310T",VENDOR,184.52,,2011-04-01,2011-09-30
"SENATOR ANTHONY P. AVELLA, JR.","ALLOCATED OPERATIONAL EXPENSES",,,,"FIRST CLASS POSTAGE",AOE,3668.84,"See Note Above",2011-04-01,2011-09-30
"SENATOR ANTHONY P. AVELLA, JR.","ALLOCATED OPERATIONAL EXPENSES",,,,"NEWS LETTER POSTAGE",AOE,28546.56,"See Note Above",2011-04-01,2011-09-30
"SENATOR ANTHONY P. AVELLA, JR.","ALLOCATED OPERATIONAL EXPENSES",,,,"BULK RATE POSTAGE",AOE,1736.02,"See Note Above",2011-04-01,2011-09-30
"SENATOR ANTHONY P. AVELLA, JR.","ALLOCATED OPERATIONAL EXPENSES",,,,"LONG DISTANCE TELEPHONE",AOE,17.60,"See Note Above",2011-04-01,2011-09-30
"SENATOR ANTHONY P. AVELLA, JR.","ALLOCATED OPERATIONAL EXPENSES",,,,"OFFICE SUPPLIES",AOE,1444.13,"See Note Above",2011-04-01,2011-09-30
"SENATOR GREGORY R. BALL","PERSONAL SERVICE","BALL, GREGORY R",2011-03-31,2011-09-28,MEMBER,RA,39749.97,,2011-04-01,2011-09-30
"SENATOR GREGORY R. BALL","PERSONAL SERVICE","BALL, GREGORY R",,2011-04-13,"CHAIR SEN COMM ON VETS, HS & MA",RA,9375.00,,2011-04-01,2011-09-30
"SENATOR GREGORY R. BALL","PERSONAL SERVICE","ANTENUCCI, DANA L",2011-03-17,2011-06-22,"CONSTITUENT SERVICES ADVOCATE",RA,11076.98,,2011-04-01,2011-09-30
"SENATOR GREGORY R. BALL","PERSONAL SERVICE","BACHMEIER, JOE G",2011-03-17,2011-09-14,"COMMUNICATIONS AIDE",SA,11615.49,,2011-04-01,2011-09-30
"SENATOR GREGORY R. BALL","PERSONAL SERVICE","BRANDA, DANIEL J",2011-04-20,2011-05-09,"COMMUNICATIONS CONSULTANT",TE,1100.00,,2011-04-01,2011-09-30
"SENATOR GREGORY R. BALL","PERSONAL SERVICE","BRANDA, DANIEL J",2011-05-12,2011-09-14,"COMMUNICATIONS CONSULTANT",RA,17788.45,,2011-04-01,2011-09-30
"SENATOR GREGORY R. BALL","PERSONAL SERVICE","BRANDA, DANIEL J",,,"5 DAY SUPPLEMENTAL LAG PAYMENT",SL,923.08,"PAYMENT FOR SERVICES RENDERED PRIOR TO MARCH 17, 2011",2011-04-01,2011-09-30
"SENATOR GREGORY R. BALL","PERSONAL SERVICE","CAPASSO, JOSEPH P",2011-03-17,2011-05-12,"COMMUNITY LIAISON",SA,4503.36,,2011-04-01,2011-09-30
"SENATOR GREGORY R. BALL","PERSONAL SERVICE","COLEMAN, JAMES R",2011-03-17,2011-09-14,"CHIEF OF STAFF",RA,45769.26,,2011-04-01,2011-09-30
"SENATOR GREGORY R. BALL","PERSONAL SERVICE","DANZI, JENNIFER M",2011-03-17,2011-07-31,"CONSTITUENT OUTREACH DIRECTOR",SA,18135.32,,2011-04-01,2011-09-30
"SENATOR GREGORY R. BALL","PERSONAL SERVICE","DOW, JOSEPHINE I",2011-03-03,2011-04-12,RECEPTIONIST,TE,1790.00,,2011-04-01,2011-09-30
"SENATOR GREGORY R. BALL","PERSONAL SERVICE","FARESE, ROBERT J",2011-03-17,2011-09-14,"COMMUNITY LIAISON",SA,4884.68,,2011-04-01,2011-09-30
"SENATOR GREGORY R. BALL","PERSONAL SERVICE","GERSHONOWITZ, GERARD",2011-03-17,2011-07-20,SCHEDULER,RA,17134.62,,2011-04-01,2011-09-30
"SENATOR GREGORY R. BALL","PERSONAL SERVICE","GERSHONOWITZ, GERARD",2011-07-21,2011-09-14,"SPECIAL PROJECT ADMINISTRATOR",SA,3403.85,,2011-04-01,2011-09-30
"SENATOR GREGORY R. BALL","PERSONAL SERVICE","GOBINS, KRISTA M",2011-03-17,2011-09-14,"DIRECTOR OF LEGISLATIVE AFFAIRS",RA,28846.20,,2011-04-01,2011-09-30
"SENATOR GREGORY R. BALL","PERSONAL SERVICE","HUGHES, JACQUELINE G",2011-03-11,2011-08-23,"CONSTITUENT SERVICES ADVOCATE",TE,3823.75,,2011-04-01,2011-09-30
"SENATOR GREGORY R. BALL","PERSONAL SERVICE","HYATT, BRITTANY N",2011-03-17,2011-04-27,"CONSTITUENT SERVICES REPRESENTATIVE",SA,2192.31,,2011-04-01,2011-09-30
"SENATOR GREGORY R. BALL","PERSONAL SERVICE","HYATT, BRITTANY N",2011-04-28,2011-08-31,"CONSTITUENT SERVICES REPRESENTATIVE",RA,12134.69,,2011-04-01,2011-09-30
"SENATOR GREGORY R. BALL","PERSONAL SERVICE","KEEGAN-BALL, SUSAN",2011-03-03,2011-08-31,RECEPTIONIST,TE,6900.00,,2011-04-01,2011-09-30
"SENATOR GREGORY R. BALL","PERSONAL SERVICE","LUTZ, THOMAS M",2011-03-17,2011-09-14,"FAITH BASED LIAISON",SA,5000.06,,2011-04-01,2011-09-30
"SENATOR GREGORY R. BALL","PERSONAL SERVICE","MASSIMI, ERICA",2011-06-30,2011-09-14,"CONSTITUENT SERVICES REPRESENTATIVE",SA,7692.34,,2011-04-01,2011-09-30
"SENATOR GREGORY R. BALL","PERSONAL SERVICE","MCCARTHY, ANNE H",2011-03-17,2011-04-13,"DIRECTOR OF COMMUNICATIONS",RA,3076.93,,2011-04-01,2011-09-30
"SENATOR GREGORY R. BALL","PERSONAL SERVICE","MESSORE, ALLESSANDRA H",2011-06-06,2011-09-14,"DIRECTOR OF OPERATIONS",RA,18307.71,,2011-04-01,2011-09-30
"SENATOR GREGORY R. BALL","PERSONAL SERVICE","MORTON, REBECCA L",2011-03-07,2011-08-03,RECEPTIONIST,TE,7815.00,,2011-04-01,2011-09-30
"SENATOR GREGORY R. BALL","PERSONAL SERVICE","MORTON, REBECCA L",2011-08-04,2011-09-14,"LEGISLATIVE AIDE",SA,3996.96,,2011-04-01,2011-09-30
"SENATOR GREGORY R. BALL","PERSONAL SERVICE","NEURINGER, MATTHEW E",2011-03-03,2011-08-03,"VETERANS LIAISON",TE,5880.00,,2011-04-01,2011-09-30
"SENATOR GREGORY R. BALL","PERSONAL SERVICE","ODELL, MARYELLEN",2011-03-17,2011-09-14,"DIR. OF GOV. & VETERANS AFFAIRS",SA,17972.37,,2011-04-01,2011-09-30
"SENATOR GREGORY R. BALL","PERSONAL SERVICE","RICHARDSON, L SUSAN",2011-03-21,2011-06-30,RECEPTIONIST,TE,11916.00,,2011-04-01,2011-09-30
"SENATOR GREGORY R. BALL","PERSONAL SERVICE","SCHATZLE, CODY C",2011-03-17,2011-09-14,"COMMUNICATIONS ASSISTANT",SA,5576.99,,2011-04-01,2011-09-30
"SENATOR GREGORY R. BALL","PERSONAL SERVICE","SCHAUM, MICHAELLA A",2011-03-07,2011-03-29,"CONSTITUENT AIDE",TE,1537.50,,2011-04-01,2011-09-30
"SENATOR GREGORY R. BALL","PERSONAL SERVICE","SCIULLO, MARY-ALICE",2011-07-05,2011-08-18,RECEPTIONIST,TE,1577.50,,2011-04-01,2011-09-30
"SENATOR GREGORY R. BALL","PERSONAL SERVICE","SIMONE, PATRICIA A",2011-03-17,2011-09-14,"DIRECTOR OF CONSTITUENT SERVICES",RA,25000.04,,2011-04-01,2011-09-30
"SENATOR GREGORY R. BALL","MAINTENANCE & OPERATIONS","AT&T DIRECT MARKETING",,2011-04-05,"D.O. TELEPHONE SERVICES - VOUCHER# 1873",VENDOR,10.99,,2011-04-01,2011-09-30
"SENATOR GREGORY R. BALL","MAINTENANCE & OPERATIONS","POUGHKEEPSIE JOUNAL",,2011-04-12,"SUBSCRIPTIONS/PUBLICATIONS - VOUCHER# 2064",VENDOR,370.40,,2011-04-01,2011-09-30
"SENATOR GREGORY R. BALL","MAINTENANCE & OPERATIONS","PUTNAM COUNTY NEWS & RECORDER",,2011-04-12,"SUBSCRIPTIONS/PUBLICATIONS - VOUCHER# 2065",VENDOR,25.00,,2011-04-01,2011-09-30
"SENATOR GREGORY R. BALL","MAINTENANCE & OPERATIONS",NYSEG,,2011-04-18,"D.O. ELECTRIC SERVICE - VOUCHER# 2234",VENDOR,140.28,,2011-04-01,2011-09-30
"SENATOR GREGORY R. BALL","MAINTENANCE & OPERATIONS",NYSEG,,2011-04-18,"D.O. GAS SERVICE - VOUCHER# 2234",VENDOR,49.63,,2011-04-01,2011-09-30
"SENATOR GREGORY R. BALL","MAINTENANCE & OPERATIONS","WESTFAIR COMMUNICATIONS, INC. DBA/JOURNAL NEWS",,2011-04-18,"SUBSCRIPTIONS/PUBLICATIONS - VOUCHER# 2213",VENDOR,153.91,,2011-04-01,2011-09-30
"SENATOR GREGORY R. BALL","MAINTENANCE & OPERATIONS",VERIZON,,2011-04-21,"D.O. TELEPHONE SERVICES - VOUCHER# 2010",VENDOR,664.81,,2011-04-01,2011-09-30
"SENATOR GREGORY R. BALL","MAINTENANCE & OPERATIONS","MAHOPAC NATIONAL BANK",,2011-04-27,"D.O. LEASE - VOUCHER# 2409",VENDOR,2149.62,,2011-04-01,2011-09-30
"SENATOR GREGORY R. BALL","MAINTENANCE & OPERATIONS","THE RECORD REVIEW",,2011-04-27,"SUBSCRIPTIONS/PUBLICATIONS - VOUCHER# 2359",VENDOR,66.00,,2011-04-01,2011-09-30
"SENATOR GREGORY R. BALL","MAINTENANCE & OPERATIONS","AT&T DIRECT MARKETING",,2011-05-10,"D.O. TELEPHONE SERVICES - VOUCHER# 2615",VENDOR,13.70,,2011-04-01,2011-09-30
"SENATOR GREGORY R. BALL","MAINTENANCE & OPERATIONS",VERIZON,,2011-05-10,"D.O. TELEPHONE SERVICES - VOUCHER# 2605",VENDOR,201.05,,2011-04-01,2011-09-30
"SENATOR GREGORY R. BALL","MAINTENANCE & OPERATIONS","NORTHERN TIER PUBLICATIONS DBA/NORTH COUNTRY NEWS",,2011-05-13,"CANCELLED SUBSCRIPTIONS/PUBLICATIONS - VOUCHER# 2694R",VENDOR,-25.00,,2011-04-01,2011-09-30
"SENATOR GREGORY R. BALL","MAINTENANCE & OPERATIONS","CHARLES RICHARDSON",,2011-05-18,"SUBSCRIPTIONS/PUBLICATIONS - VOUCHER# 2788",VENDOR,13.80,,2011-04-01,2011-09-30
"SENATOR GREGORY R. BALL","MAINTENANCE & OPERATIONS",NYSEG,,2011-05-18,"D.O. ELECTRIC SERVICE - VOUCHER# 2829",VENDOR,133.91,,2011-04-01,2011-09-30
"SENATOR GREGORY R. BALL","MAINTENANCE & OPERATIONS",NYSEG,,2011-05-18,"D.O. GAS SERVICE - VOUCHER# 2829",VENDOR,32.06,,2011-04-01,2011-09-30
"SENATOR GREGORY R. BALL","MAINTENANCE & OPERATIONS","MAHOPAC NATIONAL BANK",,2011-05-24,"D.O. LEASE - VOUCHER# 2949",VENDOR,2149.62,,2011-04-01,2011-09-30
"SENATOR GREGORY R. BALL","MAINTENANCE & OPERATIONS","NYP HOLDINGS, INC DBA/NEW YORK POST",,2011-05-24,"SUBSCRIPTIONS/PUBLICATIONS - VOUCHER# 2930",VENDOR,115.96,,2011-04-01,2011-09-30
"SENATOR GREGORY R. BALL","MAINTENANCE & OPERATIONS","GREY HOUSE PUBLISHING",,2011-06-01,"BOOK(S) - VOUCHER# 3119",VENDOR,133.00,,2011-04-01,2011-09-30
"SENATOR GREGORY R. BALL","MAINTENANCE & OPERATIONS","AT&T DIRECT MARKETING",,2011-06-14,"D.O. TELEPHONE SERVICES - VOUCHER# 3364",VENDOR,6.78,,2011-04-01,2011-09-30
"SENATOR GREGORY R. BALL","MAINTENANCE & OPERATIONS","CHARLES RICHARDSON",,2011-06-14,"SUBSCRIPTIONS/PUBLICATIONS - VOUCHER# 3386",VENDOR,55.20,,2011-04-01,2011-09-30
"SENATOR GREGORY R. BALL","MAINTENANCE & OPERATIONS","THE WALL STREET JOURNAL",,2011-06-14,"SUBSCRIPTIONS/PUBLICATIONS - VOUCHER# 3354",VENDOR,363.48,,2011-04-01,2011-09-30
"SENATOR GREGORY R. BALL","MAINTENANCE & OPERATIONS",VERIZON,,2011-06-14,"D.O. TELEPHONE SERVICES - VOUCHER# 3355",VENDOR,193.40,,2011-04-01,2011-09-30
"SENATOR GREGORY R. BALL","MAINTENANCE & OPERATIONS","MAHOPAC NATIONAL BANK",,2011-06-21,"D.O. GAS SERVICE - VOUCHER# 3510",VENDOR,115.75,,2011-04-01,2011-09-30
"SENATOR GREGORY R. BALL","MAINTENANCE & OPERATIONS",NYSEG,,2011-06-21,"D.O. ELECTRIC SERVICE - VOUCHER# 3551",VENDOR,168.78,,2011-04-01,2011-09-30
"SENATOR GREGORY R. BALL","MAINTENANCE & OPERATIONS",NYSEG,,2011-06-21,"D.O. GAS SERVICE - VOUCHER# 3551",VENDOR,22.56,,2011-04-01,2011-09-30
"SENATOR GREGORY R. BALL","MAINTENANCE & OPERATIONS","MAHOPAC NATIONAL BANK",,2011-06-29,"D.O. LEASE - VOUCHER# 3703",VENDOR,2149.62,,2011-04-01,2011-09-30
"SENATOR GREGORY R. BALL","MAINTENANCE & OPERATIONS","STAPLES INC AND SUBSIDIARIES",,2011-06-29,"OFFICE SUPPLIES - VOUCHER# 3665",VENDOR,45.53,,2011-04-01,2011-09-30
"SENATOR GREGORY R. BALL","MAINTENANCE & OPERATIONS","AT&T DIRECT MARKETING",,2011-07-06,"D.O. TELEPHONE SERVICES - VOUCHER# 3831",VENDOR,14.13,,2011-04-01,2011-09-30
"SENATOR GREGORY R. BALL","MAINTENANCE & OPERATIONS","NEW YORK TIMES",,2011-07-06,"SUBSCRIPTIONS/PUBLICATIONS - VOUCHER# 3862",VENDOR,312.48,,2011-04-01,2011-09-30
"SENATOR GREGORY R. BALL","MAINTENANCE & OPERATIONS","CHARLES RICHARDSON",,2011-07-26,"SUBSCRIPTIONS/PUBLICATIONS - VOUCHER# 4146",VENDOR,87.40,,2011-04-01,2011-09-30
"SENATOR GREGORY R. BALL","MAINTENANCE & OPERATIONS","MAHOPAC NATIONAL BANK",,2011-07-26,"D.O. LEASE - VOUCHER# 4182",VENDOR,2149.62,,2011-04-01,2011-09-30
"SENATOR GREGORY R. BALL","MAINTENANCE & OPERATIONS","AT&T DIRECT MARKETING",,2011-08-02,"D.O. TELEPHONE SERVICES - VOUCHER# 4273",VENDOR,15.40,,2011-04-01,2011-09-30
"SENATOR GREGORY R. BALL","MAINTENANCE & OPERATIONS",NYSEG,,2011-08-02,"D.O. ELECTRIC SERVICE - VOUCHER# 4324",VENDOR,218.41,,2011-04-01,2011-09-30
"SENATOR GREGORY R. BALL","MAINTENANCE & OPERATIONS",NYSEG,,2011-08-10,"D.O. GAS SERVICE - VOUCHER# 4409",VENDOR,21.75,,2011-04-01,2011-09-30
"SENATOR GREGORY R. BALL","MAINTENANCE & OPERATIONS",NYSEG,,2011-08-16,"D.O. ELECTRIC SERVICE - VOUCHER# 4514",VENDOR,271.21,,2011-04-01,2011-09-30
"SENATOR GREGORY R. BALL","MAINTENANCE & OPERATIONS",NYSEG,,2011-08-16,"D.O. GAS SERVICE - VOUCHER# 4514",VENDOR,21.75,,2011-04-01,2011-09-30
"SENATOR GREGORY R. BALL","MAINTENANCE & OPERATIONS",VERIZON,,2011-08-16,"D.O. TELEPHONE SERVICES - VOUCHER# 4448",VENDOR,376.78,,2011-04-01,2011-09-30
"SENATOR GREGORY R. BALL","MAINTENANCE & OPERATIONS","MAHOPAC NATIONAL BANK",,2011-08-23,"D.O. LEASE - VOUCHER# 4643",VENDOR,2149.62,,2011-04-01,2011-09-30
"SENATOR GREGORY R. BALL","MAINTENANCE & OPERATIONS","MAILFINANCE INC. DBA HASLER",,2011-09-08,"D.O. MAILING EQUIPMENT LEASE - VOUCHER# 4812",VENDOR,149.97,,2011-04-01,2011-09-30
"SENATOR GREGORY R. BALL","MAINTENANCE & OPERATIONS","AT&T DIRECT MARKETING",,2011-09-20,"D.O. TELEPHONE SERVICES - VOUCHER# 4972",VENDOR,10.64,,2011-04-01,2011-09-30
"SENATOR GREGORY R. BALL","MAINTENANCE & OPERATIONS",NYSEG,,2011-09-20,"D.O. ELECTRIC SERVICE - VOUCHER# 5020",VENDOR,207.40,,2011-04-01,2011-09-30
"SENATOR GREGORY R. BALL","MAINTENANCE & OPERATIONS",NYSEG,,2011-09-20,"D.O. GAS SERVICE - VOUCHER# 5020",VENDOR,21.81,,2011-04-01,2011-09-30
"SENATOR GREGORY R. BALL","MAINTENANCE & OPERATIONS","MAHOPAC NATIONAL BANK",,2011-09-28,"D.O. LEASE - VOUCHER# 5127",VENDOR,2149.62,,2011-04-01,2011-09-30
"SENATOR GREGORY R. BALL","MAINTENANCE & OPERATIONS","OBLONG HOLDINGS LLC",,2011-09-28,"SUBSCRIPTIONS/PUBLICATIONS - VOUCHER# 5107",VENDOR,52.00,,2011-04-01,2011-09-30
"SENATOR GREGORY R. BALL","MEMBER TRAVEL","BALL,GREGORY",,2011-04-05,"LEGISLATIVE DUTIES-ALBANY - VOUCHER# 1797T",VENDOR,807.00,,2011-04-01,2011-09-30
"SENATOR GREGORY R. BALL","MEMBER TRAVEL","BALL,GREGORY",,2011-04-18,"LEGISLATIVE DUTIES-ALBANY - VOUCHER# 2092T",VENDOR,642.00,,2011-04-01,2011-09-30
"SENATOR GREGORY R. BALL","MEMBER TRAVEL","BALL,GREGORY",,2011-04-27,"LEGISLATIVE DUTIES-ALBANY - VOUCHER# 2302T",VENDOR,807.00,,2011-04-01,2011-09-30
"SENATOR GREGORY R. BALL","MEMBER TRAVEL","BALL,GREGORY",,2011-04-27,"LEGISLATIVE DUTIES-ALBANY - VOUCHER# 2303T",VENDOR,477.00,,2011-04-01,2011-09-30
"SENATOR GREGORY R. BALL","MEMBER TRAVEL","BALL,GREGORY",,2011-04-27,"LEGISLATIVE DUTIES-ALBANY - VOUCHER# 2305T",VENDOR,477.00,,2011-04-01,2011-09-30
"SENATOR GREGORY R. BALL","MEMBER TRAVEL","BALL,GREGORY",,2011-04-27,"MEETING-MANHATTAN - VOUCHER# 2304T",VENDOR,581.18,,2011-04-01,2011-09-30
"SENATOR GREGORY R. BALL","MEMBER TRAVEL","BALL,GREGORY",,2011-05-03,"LEGISLATIVE DUTIES-ALBANY - VOUCHER# 2460T",VENDOR,147.00,,2011-04-01,2011-09-30
"SENATOR GREGORY R. BALL","MEMBER TRAVEL","BALL,GREGORY",,2011-05-10,"LEGISLATIVE DUTIES-ALBANY - VOUCHER# 2534T",VENDOR,312.00,,2011-04-01,2011-09-30
"SENATOR GREGORY R. BALL","MEMBER TRAVEL","BALL,GREGORY",,2011-05-18,"LEGISLATIVE DUTIES-ALBANY - VOUCHER# 2705T",VENDOR,642.00,,2011-04-01,2011-09-30
"SENATOR GREGORY R. BALL","MEMBER TRAVEL","BALL,GREGORY",,2011-06-01,"LEGISLATIVE DUTIES-ALBANY - VOUCHER# 3006T",VENDOR,477.00,,2011-04-01,2011-09-30
"SENATOR GREGORY R. BALL","MEMBER TRAVEL","BALL,GREGORY",,2011-06-01,"LEGISLATIVE DUTIES-ALBANY - VOUCHER# 3007T",VENDOR,477.00,,2011-04-01,2011-09-30
"SENATOR GREGORY R. BALL","MEMBER TRAVEL","BALL,GREGORY",,2011-06-07,"LEGISLATIVE DUTIES-ALBANY - VOUCHER# 3173T",VENDOR,477.00,,2011-04-01,2011-09-30
"SENATOR GREGORY R. BALL","MEMBER TRAVEL","BALL,GREGORY",,2011-06-15,"LEGISLATIVE DUTIES-ALBANY - VOUCHER# 3294T",VENDOR,312.00,,2011-04-01,2011-09-30
"SENATOR GREGORY R. BALL","MEMBER TRAVEL","BALL,GREGORY",,2011-06-29,"LEGISLATIVE DUTIES-ALBANY - VOUCHER# 3568T",VENDOR,477.00,,2011-04-01,2011-09-30
"SENATOR GREGORY R. BALL","MEMBER TRAVEL","BALL,GREGORY",,2011-07-06,"LEGISLATIVE DUTIES-ALBANY - VOUCHER# 3758T",VENDOR,972.00,,2011-04-01,2011-09-30
"SENATOR GREGORY R. BALL","MEMBER TRAVEL","BALL,GREGORY",,2011-07-12,"LEGISLATIVE DUTIES-ALBANY - VOUCHER# 3904T",VENDOR,927.00,,2011-04-01,2011-09-30
"SENATOR GREGORY R. BALL","STAFF TRAVEL","BACHMEIER,JOSEF",,2011-04-18,"IDENTIFICATION FOR PERSONNEL - VOUCHER# 2137T",VENDOR,113.22,,2011-04-01,2011-09-30
"SENATOR GREGORY R. BALL","STAFF TRAVEL","MCCARTHY,ANNE",,2011-05-10,"IDENTIFICATION FOR PERSONNEL - VOUCHER# 2553T",VENDOR,129.54,,2011-04-01,2011-09-30
"SENATOR GREGORY R. BALL","STAFF TRAVEL","NEURINGER,MATTHEW",,2011-06-21,"IDENTIFICATION FOR PERSONNEL - VOUCHER# 3471T",VENDOR,157.25,,2011-04-01,2011-09-30
"SENATOR GREGORY R. BALL","STAFF TRAVEL","MASSIMI,ERICA",,2011-09-13,"IDENTIFICATION FOR PERSONNEL - VOUCHER# 4851T",VENDOR,151.51,,2011-04-01,2011-09-30
"SENATOR GREGORY R. BALL","ALLOCATED OPERATIONAL EXPENSES",,,,"FIRST CLASS POSTAGE",AOE,5064.88,"See Note Above",2011-04-01,2011-09-30
"SENATOR GREGORY R. BALL","ALLOCATED OPERATIONAL EXPENSES",,,,"BULK RATE POSTAGE",AOE,108903.35,"See Note Above",2011-04-01,2011-09-30
"SENATOR GREGORY R. BALL","ALLOCATED OPERATIONAL EXPENSES",,,,"LONG DISTANCE TELEPHONE",AOE,141.45,"See Note Above",2011-04-01,2011-09-30
"SENATOR GREGORY R. BALL","ALLOCATED OPERATIONAL EXPENSES",,,,"OFFICE SUPPLIES",AOE,2409.81,"See Note Above",2011-04-01,2011-09-30
"SENATOR JOHN J. BONACIC","PERSONAL SERVICE","BONACIC, JOHN J",2011-03-31,2011-09-28,MEMBER,RA,39749.97,,2011-04-01,2011-09-30
"SENATOR JOHN J. BONACIC","PERSONAL SERVICE","BONACIC, JOHN J",,2011-04-13,"CHAIR SEN COMM ON JUDICIARY",RA,13500.00,,2011-04-01,2011-09-30
"SENATOR JOHN J. BONACIC","PERSONAL SERVICE","BARRINGER, KRISTA J",2011-03-17,2011-09-14,"COMMUNITY LIAISON",RA,26615.50,,2011-04-01,2011-09-30
"SENATOR JOHN J. BONACIC","PERSONAL SERVICE","BLACHA, JILLIAN D",2011-03-17,2011-09-14,"DIRECTOR OF COMMUNICATIONS",RA,26092.41,,2011-04-01,2011-09-30
"SENATOR JOHN J. BONACIC","PERSONAL SERVICE","CELLINI, LINDA L",2011-03-17,2011-09-14,"COMMUNITY REPRESENTATIVE",SA,7500.09,,2011-04-01,2011-09-30
"SENATOR JOHN J. BONACIC","PERSONAL SERVICE","CHAPMAN, LANGDON C",2011-03-17,2011-09-14,COUNSEL,RA,48500.02,,2011-04-01,2011-09-30
"SENATOR JOHN J. BONACIC","PERSONAL SERVICE","CLIFFORD, BARBARA A",2011-03-17,2011-09-14,"EXECUTIVE ASSISTANT",RA,20500.09,,2011-04-01,2011-09-30
"SENATOR JOHN J. BONACIC","PERSONAL SERVICE","DRAKE, JOEANN E",2011-03-17,2011-09-14,"COMMUNITY LIAISON",SA,20000.11,,2011-04-01,2011-09-30
"SENATOR JOHN J. BONACIC","PERSONAL SERVICE","HANNON, NICOLE E",2011-03-17,2011-09-14,"LEGISLATIVE ASSISTANT",RA,10000.12,,2011-04-01,2011-09-30
"SENATOR JOHN J. BONACIC","PERSONAL SERVICE","ITZLA, ROBERT H",2011-03-17,2011-09-14,"SPECIAL ASSISTANT",RA,14000.09,,2011-04-01,2011-09-30
"SENATOR JOHN J. BONACIC","PERSONAL SERVICE","MAGLIANO, DANIELLE M",2011-03-17,2011-09-14,"ADMINISTRATIVE ASSISTANT",RA,21250.06,,2011-04-01,2011-09-30
"SENATOR JOHN J. BONACIC","PERSONAL SERVICE","MOLE, TINA B",2011-03-17,2011-09-14,"COMMUNITY LIAISON",RA,20500.09,,2011-04-01,2011-09-30
"SENATOR JOHN J. BONACIC","PERSONAL SERVICE","RASCOE, JANE P",2011-03-17,2011-09-14,"DISTRICT OFFICE MANAGER",RA,25000.04,,2011-04-01,2011-09-30
"SENATOR JOHN J. BONACIC","PERSONAL SERVICE","SPECKHARDT, TONYA M",2011-03-17,2011-09-14,"ADMINISTRATIVE ASSISTANT",RA,22500.01,,2011-04-01,2011-09-30
"SENATOR JOHN J. BONACIC","PERSONAL SERVICE","WINCHELL, ANDREW J",2011-03-17,2011-09-14,"LEGISLATIVE ASSISTANT",RA,25000.04,,2011-04-01,2011-09-30
"SENATOR JOHN J. BONACIC","MAINTENANCE & OPERATIONS","AT&T DIRECT MARKETING",,2011-04-05,"D.O. TELEPHONE SERVICES - VOUCHER# 1873",VENDOR,20.74,,2011-04-01,2011-09-30
"SENATOR JOHN J. BONACIC","MAINTENANCE & OPERATIONS","CONSTABLE CUSTODIAL SERVICE IN C",,2011-04-05,"D.O. CLEANING - VOUCHER# 1897",VENDOR,210.00,,2011-04-01,2011-09-30
"SENATOR JOHN J. BONACIC","MAINTENANCE & OPERATIONS","FRONTIER COMMUNICATIONS CORPORATION",,2011-04-12,"D.O. TELEPHONE SERVICES - VOUCHER# 2035",VENDOR,254.16,,2011-04-01,2011-09-30
"SENATOR JOHN J. BONACIC","MAINTENANCE & OPERATIONS","MARANGI DIV. OF COTTAGE CARTING INC.",,2011-04-18,"D.O. RUBBISH REMOVAL - VOUCHER# 2206",VENDOR,80.00,,2011-04-01,2011-09-30
"SENATOR JOHN J. BONACIC","MAINTENANCE & OPERATIONS","ORANGE & ROCKLAND UTILITIES, I NC.",,2011-04-18,"D.O. ELECTRIC AND GAS SERVICE - VOUCHER# 2237",VENDOR,749.01,,2011-04-01,2011-09-30
"SENATOR JOHN J. BONACIC","MAINTENANCE & OPERATIONS","ORANGE & ROCKLAND UTILITIES, I NC.",,2011-04-18,"D.O. ELECTRIC AND GAS SERVICE - VOUCHER# 2238",VENDOR,607.21,,2011-04-01,2011-09-30
"SENATOR JOHN J. BONACIC","MAINTENANCE & OPERATIONS","CHARLES RICHARDSON",,2011-04-27,"SUBSCRIPTIONS/PUBLICATIONS - VOUCHER# 2371",VENDOR,122.40,,2011-04-01,2011-09-30
"SENATOR JOHN J. BONACIC","MAINTENANCE & OPERATIONS","DELHI TELEPHONE CO",,2011-04-27,"D.O. TELEPHONE SERVICES - VOUCHER# 2341",VENDOR,217.05,,2011-04-01,2011-09-30
"SENATOR JOHN J. BONACIC","MAINTENANCE & OPERATIONS","EBSCO INDUSTRIES INC DBA EBSCO INFORMATION SERVICES",,2011-04-27,"SUBSCRIPTIONS/PUBLICATIONS - VOUCHER# 2352",VENDOR,1204.50,,2011-04-01,2011-09-30
"SENATOR JOHN J. BONACIC","MAINTENANCE & OPERATIONS","WEISZ REAL PROPERTIES, LLC C/O LEVIN MANAGEMENT CORP",,2011-04-27,"D.O. LEASE - VOUCHER# 2427",VENDOR,2100.00,,2011-04-01,2011-09-30
"SENATOR JOHN J. BONACIC","MAINTENANCE & OPERATIONS","CITIBANK NA",,2011-05-03,"ON-LINE SUBSCRIPTIONS/PUBLICATIONS - VOUCHER# 2521",VENDOR,395.00,,2011-04-01,2011-09-30
"SENATOR JOHN J. BONACIC","MAINTENANCE & OPERATIONS","AT&T DIRECT MARKETING",,2011-05-10,"D.O. TELEPHONE SERVICES - VOUCHER# 2615",VENDOR,29.11,,2011-04-01,2011-09-30
"SENATOR JOHN J. BONACIC","MAINTENANCE & OPERATIONS","CONSTABLE CUSTODIAL SERVICE IN C",,2011-05-10,"D.O. CLEANING - VOUCHER# 2643",VENDOR,210.00,,2011-04-01,2011-09-30
"SENATOR JOHN J. BONACIC","MAINTENANCE & OPERATIONS","FRONTIER COMMUNICATIONS CORPORATION",,2011-05-10,"D.O. TELEPHONE SERVICES - VOUCHER# 2628",VENDOR,253.80,,2011-04-01,2011-09-30
"SENATOR JOHN J. BONACIC","MAINTENANCE & OPERATIONS","CHARLES RICHARDSON",,2011-05-18,"SUBSCRIPTIONS/PUBLICATIONS - VOUCHER# 2788",VENDOR,71.00,,2011-04-01,2011-09-30
"SENATOR JOHN J. BONACIC","MAINTENANCE & OPERATIONS","ORANGE & ROCKLAND UTILITIES, I NC.",,2011-05-18,"D.O. ELECTRIC AND GAS SERVICE - VOUCHER# 2832",VENDOR,365.03,,2011-04-01,2011-09-30
"SENATOR JOHN J. BONACIC","MAINTENANCE & OPERATIONS","MARANGI DIV. OF COTTAGE CARTING INC.",,2011-05-24,"D.O. RUBBISH REMOVAL - VOUCHER# 2918",VENDOR,80.00,,2011-04-01,2011-09-30
"SENATOR JOHN J. BONACIC","MAINTENANCE & OPERATIONS","WEISZ REAL PROPERTIES, LLC C/O LEVIN MANAGEMENT CORP",,2011-05-24,"D.O. LEASE - VOUCHER# 2967",VENDOR,2100.00,,2011-04-01,2011-09-30
"SENATOR JOHN J. BONACIC","MAINTENANCE & OPERATIONS","CONSTABLE CUSTODIAL SERVICE IN C",,2011-06-07,"D.O. CLEANING - VOUCHER# 3255",VENDOR,210.00,,2011-04-01,2011-09-30
"SENATOR JOHN J. BONACIC","MAINTENANCE & OPERATIONS","DELHI TELEPHONE CO",,2011-06-07,"D.O. TELEPHONE SERVICES - VOUCHER# 3228",VENDOR,454.81,,2011-04-01,2011-09-30
"SENATOR JOHN J. BONACIC","MAINTENANCE & OPERATIONS","FRONTIER COMMUNICATIONS CORPORATION",,2011-06-07,"D.O. TELEPHONE SERVICES - VOUCHER# 3238",VENDOR,253.80,,2011-04-01,2011-09-30
"SENATOR JOHN J. BONACIC","MAINTENANCE & OPERATIONS","AT&T DIRECT MARKETING",,2011-06-14,"D.O. TELEPHONE SERVICES - VOUCHER# 3364",VENDOR,29.38,,2011-04-01,2011-09-30
"SENATOR JOHN J. BONACIC","MAINTENANCE & OPERATIONS","ORANGE & ROCKLAND UTILITIES, I NC.",,2011-06-14,"D.O. ELECTRIC AND GAS SERVICE - VOUCHER# 3416",VENDOR,329.13,,2011-04-01,2011-09-30
"SENATOR JOHN J. BONACIC","MAINTENANCE & OPERATIONS","CHARLES RICHARDSON",,2011-06-21,"SUBSCRIPTIONS/PUBLICATIONS - VOUCHER# 3522",VENDOR,68.30,,2011-04-01,2011-09-30
"SENATOR JOHN J. BONACIC","MAINTENANCE & OPERATIONS","MARANGI DIV. OF COTTAGE CARTING INC.",,2011-06-21,"D.O. RUBBISH REMOVAL - VOUCHER# 3534",VENDOR,80.00,,2011-04-01,2011-09-30
"SENATOR JOHN J. BONACIC","MAINTENANCE & OPERATIONS","DELHI TELEPHONE CO",,2011-06-29,"D.O. TELEPHONE SERVICES - VOUCHER# 3630",VENDOR,164.34,,2011-04-01,2011-09-30
"SENATOR JOHN J. BONACIC","MAINTENANCE & OPERATIONS","WEISZ REAL PROPERTIES, LLC C/O LEVIN MANAGEMENT CORP",,2011-06-29,"D.O. LEASE - VOUCHER# 3722",VENDOR,2100.00,,2011-04-01,2011-09-30
"SENATOR JOHN J. BONACIC","MAINTENANCE & OPERATIONS","AT&T DIRECT MARKETING",,2011-07-06,"D.O. TELEPHONE SERVICES - VOUCHER# 3831",VENDOR,26.26,,2011-04-01,2011-09-30
"SENATOR JOHN J. BONACIC","MAINTENANCE & OPERATIONS","CONSTABLE CUSTODIAL SERVICE IN C",,2011-07-06,"D.O. CLEANING - VOUCHER# 3852",VENDOR,210.00,,2011-04-01,2011-09-30
"SENATOR JOHN J. BONACIC","MAINTENANCE & OPERATIONS","FRONTIER COMMUNICATIONS CORPORATION",,2011-07-06,"D.O. TELEPHONE SERVICES - VOUCHER# 3843",VENDOR,253.80,,2011-04-01,2011-09-30
"SENATOR JOHN J. BONACIC","MAINTENANCE & OPERATIONS","ELECRONIC EYES INC SECURITY PR OFESSIONALS",,2011-07-19,"D.O. ALARM SYSTEM - VOUCHER# 4067",VENDOR,191.40,,2011-04-01,2011-09-30
"SENATOR JOHN J. BONACIC","MAINTENANCE & OPERATIONS","ORANGE & ROCKLAND UTILITIES, I NC.",,2011-07-19,"D.O. ELECTRIC AND GAS SERVICE - VOUCHER# 4096",VENDOR,417.18,,2011-04-01,2011-09-30
"SENATOR JOHN J. BONACIC","MAINTENANCE & OPERATIONS","CHARLES RICHARDSON",,2011-07-26,"SUBSCRIPTIONS/PUBLICATIONS - VOUCHER# 4146",VENDOR,75.60,,2011-04-01,2011-09-30
"SENATOR JOHN J. BONACIC","MAINTENANCE & OPERATIONS","DELHI TELEPHONE CO",,2011-07-26,"D.O. TELEPHONE SERVICES - VOUCHER# 4133",VENDOR,324.44,,2011-04-01,2011-09-30
"SENATOR JOHN J. BONACIC","MAINTENANCE & OPERATIONS","MARANGI DIV. OF COTTAGE CARTING INC.",,2011-07-26,"D.O. RUBBISH REMOVAL - VOUCHER# 4152",VENDOR,80.00,,2011-04-01,2011-09-30
"SENATOR JOHN J. BONACIC","MAINTENANCE & OPERATIONS","WEISZ REAL PROPERTIES, LLC C/O LEVIN MANAGEMENT CORP",,2011-07-26,"D.O. LEASE - VOUCHER# 4201",VENDOR,2100.00,,2011-04-01,2011-09-30
"SENATOR JOHN J. BONACIC","MAINTENANCE & OPERATIONS","AT&T DIRECT MARKETING",,2011-08-02,"D.O. TELEPHONE SERVICES - VOUCHER# 4273",VENDOR,33.96,,2011-04-01,2011-09-30
"SENATOR JOHN J. BONACIC","MAINTENANCE & OPERATIONS","CONSTABLE CUSTODIAL SERVICE IN C",,2011-08-02,"D.O. CLEANING - VOUCHER# 4293",VENDOR,210.00,,2011-04-01,2011-09-30
"SENATOR JOHN J. BONACIC","MAINTENANCE & OPERATIONS","FRONTIER COMMUNICATIONS CORPORATION",,2011-08-02,"D.O. TELEPHONE SERVICES - VOUCHER# 4284",VENDOR,253.50,,2011-04-01,2011-09-30
"SENATOR JOHN J. BONACIC","MAINTENANCE & OPERATIONS","CHARLES RICHARDSON",,2011-08-16,"SUBSCRIPTIONS/PUBLICATIONS - VOUCHER# 4473",VENDOR,66.00,,2011-04-01,2011-09-30
"SENATOR JOHN J. BONACIC","MAINTENANCE & OPERATIONS","MARANGI DIV. OF COTTAGE CARTING INC.",,2011-08-16,"D.O. RUBBISH REMOVAL - VOUCHER# 4484",VENDOR,80.00,,2011-04-01,2011-09-30
"SENATOR JOHN J. BONACIC","MAINTENANCE & OPERATIONS","ORANGE & ROCKLAND UTILITIES, I NC.",,2011-08-16,"D.O. ELECTRIC AND GAS SERVICE - VOUCHER# 4516",VENDOR,511.69,,2011-04-01,2011-09-30
"SENATOR JOHN J. BONACIC","MAINTENANCE & OPERATIONS","DELHI TELEPHONE CO",,2011-08-23,"D.O. TELEPHONE SERVICES - VOUCHER# 4573",VENDOR,255.74,,2011-04-01,2011-09-30
"SENATOR JOHN J. BONACIC","MAINTENANCE & OPERATIONS","THE WALTON REPORTER, INC.",,2011-08-23,"SUBSCRIPTIONS/PUBLICATIONS - VOUCHER# 4612",VENDOR,39.00,,2011-04-01,2011-09-30
"SENATOR JOHN J. BONACIC","MAINTENANCE & OPERATIONS","WEISZ REAL PROPERTIES, LLC C/O LEVIN MANAGEMENT CORP",,2011-08-23,"D.O. LEASE - VOUCHER# 4662",VENDOR,2100.00,,2011-04-01,2011-09-30
"SENATOR JOHN J. BONACIC","MAINTENANCE & OPERATIONS","CONSTABLE CUSTODIAL SERVICE IN C",,2011-09-08,"D.O. CLEANING - VOUCHER# 4805",VENDOR,210.00,,2011-04-01,2011-09-30
"SENATOR JOHN J. BONACIC","MAINTENANCE & OPERATIONS","MAILFINANCE INC. DBA HASLER",,2011-09-08,"D.O. MAILING EQUIPMENT LEASE - VOUCHER# 4812",VENDOR,149.97,,2011-04-01,2011-09-30
"SENATOR JOHN J. BONACIC","MAINTENANCE & OPERATIONS","FRONTIER COMMUNICATIONS CORPORATION",,2011-09-13,"D.O. TELEPHONE SERVICES - VOUCHER# 4879",VENDOR,253.50,,2011-04-01,2011-09-30
"SENATOR JOHN J. BONACIC","MAINTENANCE & OPERATIONS","ORANGE & ROCKLAND UTILITIES, I NC.",,2011-09-13,"D.O. ELECTRIC AND GAS SERVICE - VOUCHER# 4925",VENDOR,493.33,,2011-04-01,2011-09-30
"SENATOR JOHN J. BONACIC","MAINTENANCE & OPERATIONS","AT&T DIRECT MARKETING",,2011-09-20,"D.O. TELEPHONE SERVICES - VOUCHER# 4972",VENDOR,26.27,,2011-04-01,2011-09-30
"SENATOR JOHN J. BONACIC","MAINTENANCE & OPERATIONS","MARANGI DIV. OF COTTAGE CARTING INC.",,2011-09-20,"D.O. RUBBISH REMOVAL - VOUCHER# 4996",VENDOR,80.00,,2011-04-01,2011-09-30
"SENATOR JOHN J. BONACIC","MAINTENANCE & OPERATIONS","CHARLES RICHARDSON",,2011-09-28,"SUBSCRIPTIONS/PUBLICATIONS - VOUCHER# 5090",VENDOR,72.90,,2011-04-01,2011-09-30
"SENATOR JOHN J. BONACIC","MAINTENANCE & OPERATIONS","DELHI TELEPHONE CO",,2011-09-28,"D.O. TELEPHONE SERVICES - VOUCHER# 5073",VENDOR,236.36,,2011-04-01,2011-09-30
"SENATOR JOHN J. BONACIC","MAINTENANCE & OPERATIONS","WEISZ REAL PROPERTIES, LLC C/O LEVIN MANAGEMENT CORP",,2011-09-28,"D.O. LEASE - VOUCHER# 5146",VENDOR,2100.00,,2011-04-01,2011-09-30
"SENATOR JOHN J. BONACIC","MEMBER TRAVEL","BONACIC,JOHN",,2011-04-05,"LEGISLATIVE DUTIES-ALBANY - VOUCHER# 1798T",VENDOR,497.40,,2011-04-01,2011-09-30
"SENATOR JOHN J. BONACIC","MEMBER TRAVEL","BONACIC,JOHN",,2011-04-13,"LEGISLATIVE DUTIES-ALBANY - VOUCHER# 1942T",VENDOR,992.40,,2011-04-01,2011-09-30
"SENATOR JOHN J. BONACIC","MEMBER TRAVEL","BONACIC,JOHN",,2011-04-18,"LEGISLATIVE DUTIES-ALBANY - VOUCHER# 2156T",VENDOR,827.40,,2011-04-01,2011-09-30
"SENATOR JOHN J. BONACIC","MEMBER TRAVEL","BONACIC,JOHN",,2011-04-18,"LEGISLATIVE DUTIES-ALBANY - VOUCHER# 2157T",VENDOR,827.40,,2011-04-01,2011-09-30
"SENATOR JOHN J. BONACIC","MEMBER TRAVEL","BONACIC,JOHN",,2011-04-27,"LEGISLATIVE DUTIES-ALBANY - VOUCHER# 2266T",VENDOR,497.40,,2011-04-01,2011-09-30
"SENATOR JOHN J. BONACIC","MEMBER TRAVEL","BONACIC,JOHN",,2011-05-18,"LEGISLATIVE DUTIES-ALBANY - VOUCHER# 2706T",VENDOR,332.40,,2011-04-01,2011-09-30
"SENATOR JOHN J. BONACIC","MEMBER TRAVEL","BONACIC,JOHN",,2011-05-18,"LEGISLATIVE DUTIES-ALBANY - VOUCHER# 2707T",VENDOR,497.40,,2011-04-01,2011-09-30
"SENATOR JOHN J. BONACIC","MEMBER TRAVEL","BONACIC,JOHN",,2011-06-07,"LEGISLATIVE DUTIES-ALBANY - VOUCHER# 3174T",VENDOR,662.40,,2011-04-01,2011-09-30
"SENATOR JOHN J. BONACIC","MEMBER TRAVEL","BONACIC,JOHN",,2011-06-07,"LEGISLATIVE DUTIES-ALBANY - VOUCHER# 3217T",VENDOR,662.40,,2011-04-01,2011-09-30
"SENATOR JOHN J. BONACIC","MEMBER TRAVEL","BONACIC,JOHN",,2011-06-15,"LEGISLATIVE DUTIES-ALBANY - VOUCHER# 3295T",VENDOR,497.40,,2011-04-01,2011-09-30
"SENATOR JOHN J. BONACIC","MEMBER TRAVEL","BONACIC,JOHN",,2011-06-21,"LEGISLATIVE DUTIES-ALBANY - VOUCHER# 3426T",VENDOR,497.40,,2011-04-01,2011-09-30
"SENATOR JOHN J. BONACIC","MEMBER TRAVEL","BONACIC,JOHN",,2011-07-06,"LEGISLATIVE DUTIES-ALBANY - VOUCHER# 3759T",VENDOR,992.40,,2011-04-01,2011-09-30
"SENATOR JOHN J. BONACIC","MEMBER TRAVEL","BONACIC,JOHN",,2011-07-12,"LEGISLATIVE DUTIES-ALBANY - VOUCHER# 3905T",VENDOR,1157.40,,2011-04-01,2011-09-30
"SENATOR JOHN J. BONACIC","MEMBER TRAVEL","BONACIC,JOHN",,2011-07-19,"LEGISLATIVE DUTIES-ALBANY - VOUCHER# 3987T",VENDOR,167.40,,2011-04-01,2011-09-30
"SENATOR JOHN J. BONACIC","MEMBER TRAVEL","BONACIC,JOHN",,2011-08-10,"LEGISLATIVE DUTIES-YONKERS - VOUCHER# 4346T",VENDOR,127.15,,2011-04-01,2011-09-30
"SENATOR JOHN J. BONACIC","MEMBER TRAVEL","BONACIC,JOHN",,2011-08-16,"LEGISLATIVE DUTIES-ALBANY - VOUCHER# 4441T",VENDOR,178.20,,2011-04-01,2011-09-30
"SENATOR JOHN J. BONACIC","MEMBER TRAVEL","BONACIC,JOHN",,2011-08-23,"LEGISLATIVE DUTIES-ALBANY - VOUCHER# 4558T",VENDOR,508.50,,2011-04-01,2011-09-30
"SENATOR JOHN J. BONACIC","MEMBER TRAVEL","BONACIC,JOHN",,2011-08-30,"LEGISLATIVE DUTIES-ALBANY - VOUCHER# 4698T",VENDOR,343.20,,2011-04-01,2011-09-30
"SENATOR JOHN J. BONACIC","MEMBER TRAVEL","BONACIC,JOHN",,2011-09-28,"LEGISLATIVE DUTIES-ALBANY - VOUCHER# 5039T",VENDOR,955.11,,2011-04-01,2011-09-30
"SENATOR JOHN J. BONACIC","STAFF TRAVEL","CHAPMAN, LANGDON",,2011-09-13,"MEETING-WASHINGTON, DC - VOUCHER# 4852T",VENDOR,943.57,,2011-04-01,2011-09-30
"SENATOR JOHN J. BONACIC","STAFF TRAVEL","CHAPMAN, LANGDON",,2011-09-28,"MEETING-CANANDAIGUA - VOUCHER# 5047T",VENDOR,426.59,,2011-04-01,2011-09-30
"SENATOR JOHN J. BONACIC","STAFF TRAVEL","CHAPMAN, LANGDON",,2011-09-28,"MEETING-SARATOGA - VOUCHER# 5046T",VENDOR,156.51,,2011-04-01,2011-09-30
"SENATOR JOHN J. BONACIC","ALLOCATED OPERATIONAL EXPENSES",,,,"FIRST CLASS POSTAGE",AOE,3037.44,"See Note Above",2011-04-01,2011-09-30
"SENATOR JOHN J. BONACIC","ALLOCATED OPERATIONAL EXPENSES",,,,"BULK RATE POSTAGE",AOE,70170.27,"See Note Above",2011-04-01,2011-09-30
"SENATOR JOHN J. BONACIC","ALLOCATED OPERATIONAL EXPENSES",,,,"LONG DISTANCE TELEPHONE",AOE,159.34,"See Note Above",2011-04-01,2011-09-30
"SENATOR JOHN J. BONACIC","ALLOCATED OPERATIONAL EXPENSES",,,,"OFFICE SUPPLIES",AOE,1780.76,"See Note Above",2011-04-01,2011-09-30
"SENATOR NEIL D. BRESLIN","PERSONAL SERVICE","BRESLIN, NEIL D",2011-03-31,2011-09-28,MEMBER,RA,39749.97,,2011-04-01,2011-09-30
"SENATOR NEIL D. BRESLIN","PERSONAL SERVICE","BRESLIN, NEIL D",,2011-04-13,"DEPUTY MINORITY LEADER",RA,15375.00,,2011-04-01,2011-09-30
"SENATOR NEIL D. BRESLIN","PERSONAL SERVICE","BARRY, KATHRYN F",2011-03-17,2011-09-14,"COMMUNITY LIAISON",SA,15538.50,,2011-04-01,2011-09-30
"SENATOR NEIL D. BRESLIN","PERSONAL SERVICE","CETRINO, MAUREEN",2011-03-17,2011-09-14,"CHIEF OF STAFF",SA,32500.00,,2011-04-01,2011-09-30
"SENATOR NEIL D. BRESLIN","PERSONAL SERVICE","CONBOY, KELLY L",2011-03-17,2011-09-14,"LEGISLATIVE DIRECTOR",RA,22500.01,,2011-04-01,2011-09-30
"SENATOR NEIL D. BRESLIN","PERSONAL SERVICE","DIAMOND, GIOVINA S",2011-03-17,2011-09-14,"EXECUTIVE ASSISTANT",SA,18500.04,,2011-04-01,2011-09-30
"SENATOR NEIL D. BRESLIN","PERSONAL SERVICE","DIGAN, KATHLEEN A",2011-03-17,2011-09-14,"LEGISLATIVE AIDE & SCHEDULING COORDI",RA,17692.39,,2011-04-01,2011-09-30
"SENATOR NEIL D. BRESLIN","PERSONAL SERVICE","GENAO, JUAN G",2011-03-17,2011-04-06,"DISTRICT OUTREACH COORDINATOR",RA,2538.48,,2011-04-01,2011-09-30
"SENATOR NEIL D. BRESLIN","PERSONAL SERVICE","GENAO, JUAN G",,2011-05-25,"LUMP SUM VACATION PAYMENT",VA,2334.13,,2011-04-01,2011-09-30
"SENATOR NEIL D. BRESLIN","PERSONAL SERVICE","RAPPAZZO, BECKI S",2011-03-17,2011-09-14,"DIRECTOR OF ADMINISTRATION",SA,24500.06,,2011-04-01,2011-09-30
"SENATOR NEIL D. BRESLIN","PERSONAL SERVICE","SCHNEIDER, EVAN C",2011-03-17,2011-09-14,"DIRECTOR OF POLICY DEVELOPMENT",RA,32500.00,,2011-04-01,2011-09-30
"SENATOR NEIL D. BRESLIN","MAINTENANCE & OPERATIONS","CHARLES RICHARDSON",,2011-04-27,"SUBSCRIPTIONS/PUBLICATIONS - VOUCHER# 2371",VENDOR,248.20,,2011-04-01,2011-09-30
"SENATOR NEIL D. BRESLIN","MAINTENANCE & OPERATIONS","EBSCO INDUSTRIES INC DBA EBSCO INFORMATION SERVICES",,2011-05-10,"SUBSCRIPTIONS/PUBLICATIONS - VOUCHER# 2625",VENDOR,108.16,,2011-04-01,2011-09-30
"SENATOR NEIL D. BRESLIN","MAINTENANCE & OPERATIONS","POLITICAL   NEWS  TODAY.COM LLC/DBA THE EMPIRE PAGE",,2011-05-10,"ON-LINE SUBSCRIPTIONS/PUBLICATIONS - VOUCHER# 2627",VENDOR,150.00,,2011-04-01,2011-09-30
"SENATOR NEIL D. BRESLIN","MAINTENANCE & OPERATIONS","CHARLES RICHARDSON",,2011-05-18,"SUBSCRIPTIONS/PUBLICATIONS - VOUCHER# 2788",VENDOR,132.30,,2011-04-01,2011-09-30
"SENATOR NEIL D. BRESLIN","MAINTENANCE & OPERATIONS","CHARLES RICHARDSON",,2011-06-14,"SUBSCRIPTIONS/PUBLICATIONS - VOUCHER# 3386",VENDOR,140.85,,2011-04-01,2011-09-30
"SENATOR NEIL D. BRESLIN","MAINTENANCE & OPERATIONS","CHARLES RICHARDSON",,2011-07-26,"SUBSCRIPTIONS/PUBLICATIONS - VOUCHER# 4146",VENDOR,131.80,,2011-04-01,2011-09-30
"SENATOR NEIL D. BRESLIN","MAINTENANCE & OPERATIONS","CHARLES RICHARDSON",,2011-08-10,"SUBSCRIPTIONS/PUBLICATIONS - VOUCHER# 4381",VENDOR,141.35,,2011-04-01,2011-09-30
"SENATOR NEIL D. BRESLIN","MAINTENANCE & OPERATIONS","CHARLES RICHARDSON",,2011-09-28,"SUBSCRIPTIONS/PUBLICATIONS - VOUCHER# 5090",VENDOR,135.40,,2011-04-01,2011-09-30
"SENATOR NEIL D. BRESLIN","MEMBER TRAVEL","NATIONAL CONFERENCE OF INSURANCE LEGISLATORS",,2011-05-18,"REGISTRATION FEE(S)-SEN.BRESLIN-WASHINGTON,DC - VOUCHER# 2822T",VENDOR,350.00,,2011-04-01,2011-09-30
"SENATOR NEIL D. BRESLIN","MEMBER TRAVEL","BRESLIN, NEIL",,2011-06-15,"MEETING-VERONA - VOUCHER# 3296T",VENDOR,178.62,,2011-04-01,2011-09-30
"SENATOR NEIL D. BRESLIN","MEMBER TRAVEL","BRESLIN, NEIL",,2011-08-02,"CONFERENCE-NEWPORT, RI - VOUCHER# 4242T",VENDOR,866.44,,2011-04-01,2011-09-30
"SENATOR NEIL D. BRESLIN","MEMBER TRAVEL","NATIONAL CONFERENCE OF INSURANCE LEGISLATORS",,2011-09-13,"REGISTRATION FEE(S)-SEN.BRESLIN-NEWPORT,RI - VOUCHER# 4918T",VENDOR,350.00,,2011-04-01,2011-09-30
"SENATOR NEIL D. BRESLIN","ALLOCATED OPERATIONAL EXPENSES",,,,"FIRST CLASS POSTAGE",AOE,3118.31,"See Note Above",2011-04-01,2011-09-30
"SENATOR NEIL D. BRESLIN","ALLOCATED OPERATIONAL EXPENSES",,,,"LONG DISTANCE TELEPHONE",AOE,60.14,"See Note Above",2011-04-01,2011-09-30
"SENATOR NEIL D. BRESLIN","ALLOCATED OPERATIONAL EXPENSES",,,,"OFFICE SUPPLIES",AOE,647.78,"See Note Above",2011-04-01,2011-09-30
"SENATOR DAVID S. CARLUCCI","PERSONAL SERVICE","CARLUCCI, DAVID S",2011-03-31,2011-09-28,MEMBER,RA,39749.97,,2011-04-01,2011-09-30
"SENATOR DAVID S. CARLUCCI","PERSONAL SERVICE","CARLUCCI, DAVID S",,2011-04-13,"CO-CH ADM REG RV COMM",RA,9375.00,,2011-04-01,2011-09-30
"SENATOR DAVID S. CARLUCCI","PERSONAL SERVICE","CORRALES, CHRISTIAN A",2011-03-17,2011-09-14,"DISTRICT REPRESENTATIVE",RA,16000.01,,2011-04-01,2011-09-30
"SENATOR DAVID S. CARLUCCI","PERSONAL SERVICE","DENNIN, ERIN L",2011-03-17,2011-09-14,"COMMUNICATIONS DIRECTOR",RA,24000.08,,2011-04-01,2011-09-30
"SENATOR DAVID S. CARLUCCI","PERSONAL SERVICE","DORCELY, LISA",2011-06-23,2011-09-14,"DISTRICT REPRESENTATIVE",RA,6346.15,,2011-04-01,2011-09-30
"SENATOR DAVID S. CARLUCCI","PERSONAL SERVICE","JEAN-LEGER, SEPHORA J",2011-03-17,2011-06-22,"DISTRICT REPRESENTATIVE",RA,8653.88,,2011-04-01,2011-09-30
"SENATOR DAVID S. CARLUCCI","PERSONAL SERVICE","JEAN-LEGER, SEPHORA J",,2011-08-31,"LUMP SUM VACATION PAYMENT",VA,519.23,,2011-04-01,2011-09-30
"SENATOR DAVID S. CARLUCCI","PERSONAL SERVICE","JENNINGS, ANDREW H",2011-03-17,2011-09-14,"DISTRICT REPRESENTATIVE",RA,15000.05,,2011-04-01,2011-09-30
"SENATOR DAVID S. CARLUCCI","PERSONAL SERVICE","MALOWITZ, JESSE M",2011-03-17,2011-09-14,"DISTRICT REPRESENTATIVE",RA,13000.00,,2011-04-01,2011-09-30
"SENATOR DAVID S. CARLUCCI","PERSONAL SERVICE","MARTIN, JASON C",2011-03-17,2011-09-14,"CHIEF OF STAFF",RA,35000.03,,2011-04-01,2011-09-30
"SENATOR DAVID S. CARLUCCI","PERSONAL SERVICE","PAPAS, STEPHEN M",2011-03-17,2011-09-14,"EXECUTIVE AIDE",RA,16000.01,,2011-04-01,2011-09-30
"SENATOR DAVID S. CARLUCCI","PERSONAL SERVICE","SCHULER, SUSAN E",2011-03-17,2011-09-14,"DIRECTOR DISTRICT OPERATIONS",RA,17500.08,,2011-04-01,2011-09-30
"SENATOR DAVID S. CARLUCCI","PERSONAL SERVICE","SOLOMON, SCOTT R",2011-03-17,2011-09-14,"LEGISLATIVE DIRECTOR",RA,22500.01,,2011-04-01,2011-09-30
"SENATOR DAVID S. CARLUCCI","MAINTENANCE & OPERATIONS","AT&T DIRECT MARKETING",,2011-04-05,"D.O. TELEPHONE SERVICES - VOUCHER# 1873",VENDOR,19.89,,2011-04-01,2011-09-30
"SENATOR DAVID S. CARLUCCI","MAINTENANCE & OPERATIONS",KRISERA,,2011-04-12,"D.O. CLEANING - VOUCHER# 2059",VENDOR,440.00,,2011-04-01,2011-09-30
"SENATOR DAVID S. CARLUCCI","MAINTENANCE & OPERATIONS",VERIZON,,2011-04-21,"D.O. TELEPHONE SERVICES AND INSTALLATION CHARGES - VOUCHER# 2010",VENDOR,942.61,,2011-04-01,2011-09-30
"SENATOR DAVID S. CARLUCCI","MAINTENANCE & OPERATIONS","RWSP REALTY LLC",,2011-04-27,"D.O. LEASE - VOUCHER# 2448",VENDOR,3266.67,,2011-04-01,2011-09-30
"SENATOR DAVID S. CARLUCCI","MAINTENANCE & OPERATIONS","ANGEL MEDIA PUBLISHING/DBA ROCKLAND REVIEW",,2011-05-10,"SUBSCRIPTIONS/PUBLICATIONS - VOUCHER# 2657",VENDOR,50.00,,2011-04-01,2011-09-30
"SENATOR DAVID S. CARLUCCI","MAINTENANCE & OPERATIONS","AT&T DIRECT MARKETING",,2011-05-10,"D.O. TELEPHONE SERVICES - VOUCHER# 2615",VENDOR,17.26,,2011-04-01,2011-09-30
"SENATOR DAVID S. CARLUCCI","MAINTENANCE & OPERATIONS","CHARLES RICHARDSON",,2011-05-18,"SUBSCRIPTIONS/PUBLICATIONS - VOUCHER# 2788",VENDOR,69.00,,2011-04-01,2011-09-30
"SENATOR DAVID S. CARLUCCI","MAINTENANCE & OPERATIONS",KRISERA,,2011-05-18,"D.O. CLEANING - VOUCHER# 2809",VENDOR,440.00,,2011-04-01,2011-09-30
"SENATOR DAVID S. CARLUCCI","MAINTENANCE & OPERATIONS","RWSP REALTY LLC",,2011-05-24,"D.O. LEASE - VOUCHER# 2988",VENDOR,3266.67,,2011-04-01,2011-09-30
"SENATOR DAVID S. CARLUCCI","MAINTENANCE & OPERATIONS",VERIZON,,2011-06-01,"D.O. TELEPHONE SERVICES - VOUCHER# 3092",VENDOR,549.85,,2011-04-01,2011-09-30
"SENATOR DAVID S. CARLUCCI","MAINTENANCE & OPERATIONS",VERIZON,,2011-06-07,"D.O. TELEPHONE SERVICES - VOUCHER# 3224",VENDOR,153.48,,2011-04-01,2011-09-30
"SENATOR DAVID S. CARLUCCI","MAINTENANCE & OPERATIONS","AT&T DIRECT MARKETING",,2011-06-14,"D.O. TELEPHONE SERVICES - VOUCHER# 3364",VENDOR,8.41,,2011-04-01,2011-09-30
"SENATOR DAVID S. CARLUCCI","MAINTENANCE & OPERATIONS","CHARLES RICHARDSON",,2011-06-14,"SUBSCRIPTIONS/PUBLICATIONS - VOUCHER# 3386",VENDOR,96.60,,2011-04-01,2011-09-30
"SENATOR DAVID S. CARLUCCI","MAINTENANCE & OPERATIONS","RWSP REALTY LLC",,2011-06-29,"D.O. LEASE - VOUCHER# 3743",VENDOR,3266.67,,2011-04-01,2011-09-30
"SENATOR DAVID S. CARLUCCI","MAINTENANCE & OPERATIONS","AT&T DIRECT MARKETING",,2011-07-06,"D.O. TELEPHONE SERVICES - VOUCHER# 3831",VENDOR,14.17,,2011-04-01,2011-09-30
"SENATOR DAVID S. CARLUCCI","MAINTENANCE & OPERATIONS",VERIZON,,2011-07-12,"D.O. TELEPHONE SERVICES - VOUCHER# 3937",VENDOR,141.92,,2011-04-01,2011-09-30
"SENATOR DAVID S. CARLUCCI","MAINTENANCE & OPERATIONS",KRISERA,,2011-07-19,"D.O. CLEANING - VOUCHER# 4080",VENDOR,880.00,,2011-04-01,2011-09-30
"SENATOR DAVID S. CARLUCCI","MAINTENANCE & OPERATIONS","CHARLES RICHARDSON",,2011-07-26,"SUBSCRIPTIONS/PUBLICATIONS - VOUCHER# 4146",VENDOR,101.20,,2011-04-01,2011-09-30
"SENATOR DAVID S. CARLUCCI","MAINTENANCE & OPERATIONS","RWSP REALTY LLC",,2011-07-26,"D.O. LEASE - VOUCHER# 4222",VENDOR,3266.67,,2011-04-01,2011-09-30
"SENATOR DAVID S. CARLUCCI","MAINTENANCE & OPERATIONS","AT&T DIRECT MARKETING",,2011-08-02,"D.O. TELEPHONE SERVICES - VOUCHER# 4273",VENDOR,11.20,,2011-04-01,2011-09-30
"SENATOR DAVID S. CARLUCCI","MAINTENANCE & OPERATIONS","CHARLES RICHARDSON",,2011-08-10,"SUBSCRIPTIONS/PUBLICATIONS - VOUCHER# 4381",VENDOR,78.00,,2011-04-01,2011-09-30
"SENATOR DAVID S. CARLUCCI","MAINTENANCE & OPERATIONS",KRISERA,,2011-08-16,"D.O. CLEANING - VOUCHER# 4499",VENDOR,440.00,,2011-04-01,2011-09-30
"SENATOR DAVID S. CARLUCCI","MAINTENANCE & OPERATIONS",VERIZON,,2011-08-16,"D.O. TELEPHONE SERVICES - VOUCHER# 4448",VENDOR,143.70,,2011-04-01,2011-09-30
"SENATOR DAVID S. CARLUCCI","MAINTENANCE & OPERATIONS","RWSP REALTY LLC",,2011-08-23,"D.O. LEASE - VOUCHER# 4683",VENDOR,3266.67,,2011-04-01,2011-09-30
"SENATOR DAVID S. CARLUCCI","MAINTENANCE & OPERATIONS","ANGEL MEDIA PUBLISHING/DBA ROCKLAND REVIEW",,2011-08-30,"SUBSCRIPTIONS/PUBLICATIONS - VOUCHER# 4741",VENDOR,50.00,,2011-04-01,2011-09-30
"SENATOR DAVID S. CARLUCCI","MAINTENANCE & OPERATIONS","GANNETT SATELLITE INFORMATION NETWORK",,2011-09-08,"SUBSCRIPTIONS/PUBLICATIONS - VOUCHER# 4781",VENDOR,194.25,,2011-04-01,2011-09-30
"SENATOR DAVID S. CARLUCCI","MAINTENANCE & OPERATIONS","MAILFINANCE INC. DBA HASLER",,2011-09-08,"D.O. MAILING EQUIPMENT LEASE - VOUCHER# 4812",VENDOR,149.97,,2011-04-01,2011-09-30
"SENATOR DAVID S. CARLUCCI","MAINTENANCE & OPERATIONS","AT&T DIRECT MARKETING",,2011-09-20,"D.O. TELEPHONE SERVICES - VOUCHER# 4972",VENDOR,12.35,,2011-04-01,2011-09-30
"SENATOR DAVID S. CARLUCCI","MAINTENANCE & OPERATIONS","CHARLES RICHARDSON",,2011-09-28,"SUBSCRIPTIONS/PUBLICATIONS - VOUCHER# 5090",VENDOR,112.70,,2011-04-01,2011-09-30
"SENATOR DAVID S. CARLUCCI","MAINTENANCE & OPERATIONS","RWSP REALTY LLC",,2011-09-28,"D.O. LEASE - VOUCHER# 5168",VENDOR,3266.67,,2011-04-01,2011-09-30
"SENATOR DAVID S. CARLUCCI","MEMBER TRAVEL","CARLUCCI,DAVID",,2011-04-13,"LEGISLATIVE DUTIES-ALBANY - VOUCHER# 1943T",VENDOR,1326.84,,2011-04-01,2011-09-30
"SENATOR DAVID S. CARLUCCI","MEMBER TRAVEL","CARLUCCI,DAVID",,2011-04-13,"LEGISLATIVE DUTIES-ALBANY - VOUCHER# 1944T",VENDOR,663.42,,2011-04-01,2011-09-30
"SENATOR DAVID S. CARLUCCI","MEMBER TRAVEL","CARLUCCI,DAVID",,2011-04-13,"LEGISLATIVE DUTIES-ALBANY - VOUCHER# 1945T",VENDOR,663.42,,2011-04-01,2011-09-30
"SENATOR DAVID S. CARLUCCI","MEMBER TRAVEL","CARLUCCI,DAVID",,2011-05-18,"LEGISLATIVE DUTIES-ALBANY - VOUCHER# 2708T",VENDOR,1601.97,,2011-04-01,2011-09-30
"SENATOR DAVID S. CARLUCCI","MEMBER TRAVEL","CARLUCCI,DAVID",,2011-05-24,"LEGISLATIVE DUTIES-ALBANY - VOUCHER# 2851T",VENDOR,498.42,,2011-04-01,2011-09-30
"SENATOR DAVID S. CARLUCCI","MEMBER TRAVEL","CARLUCCI,DAVID",,2011-06-07,"LEGISLATIVE DUTIES-ALBANY - VOUCHER# 3175T",VENDOR,996.84,,2011-04-01,2011-09-30
"SENATOR DAVID S. CARLUCCI","MEMBER TRAVEL","CARLUCCI,DAVID",,2011-06-15,"LEGISLATIVE DUTIES-ALBANY - VOUCHER# 3297T",VENDOR,333.42,,2011-04-01,2011-09-30
"SENATOR DAVID S. CARLUCCI","MEMBER TRAVEL","CARLUCCI,DAVID",,2011-06-21,"LEGISLATIVE DUTIES-ALBANY - VOUCHER# 3427T",VENDOR,333.42,,2011-04-01,2011-09-30
"SENATOR DAVID S. CARLUCCI","MEMBER TRAVEL","CARLUCCI,DAVID",,2011-07-06,"LEGISLATIVE DUTIES-ALBANY - VOUCHER# 3760T",VENDOR,828.42,,2011-04-01,2011-09-30
"SENATOR DAVID S. CARLUCCI","MEMBER TRAVEL","CARLUCCI,DAVID",,2011-07-12,"LEGISLATIVE DUTIES-ALBANY - VOUCHER# 3906T",VENDOR,993.42,,2011-04-01,2011-09-30
"SENATOR DAVID S. CARLUCCI","STAFF TRAVEL","CORRALES,CHRISTIAN",,2011-04-12,"WRONG PAYEE ID - VOUCHER# 2002R",VENDOR,-126.48,,2011-04-01,2011-09-30
"SENATOR DAVID S. CARLUCCI","STAFF TRAVEL","JENNINGS,ANDREW",,2011-04-13,"IDENTIFICATION FOR PERSONNEL - VOUCHER# 1996T",VENDOR,126.48,,2011-04-01,2011-09-30
"SENATOR DAVID S. CARLUCCI","STAFF TRAVEL","JEAN-LEGER,SEPHORA",,2011-05-10,"IDENTIFICATION FOR PERSONNEL - VOUCHER# 2554T",VENDOR,142.75,,2011-04-01,2011-09-30
"SENATOR DAVID S. CARLUCCI","STAFF TRAVEL","SOLOMON,SCOTT",,2011-05-10,"LEGISLATIVE DUTIES-ROCKLAND - VOUCHER# 2555T",VENDOR,137.70,,2011-04-01,2011-09-30
"SENATOR DAVID S. CARLUCCI","STAFF TRAVEL","DORCELY,LISA",,2011-07-26,"IDENTIFICATION FOR PERSONNEL - VOUCHER# 4115T",VENDOR,133.92,,2011-04-01,2011-09-30
"SENATOR DAVID S. CARLUCCI","ALLOCATED OPERATIONAL EXPENSES",,,,"FIRST CLASS POSTAGE",AOE,1416.46,"See Note Above",2011-04-01,2011-09-30
"SENATOR DAVID S. CARLUCCI","ALLOCATED OPERATIONAL EXPENSES",,,,"NEWS LETTER POSTAGE",AOE,26910.00,"See Note Above",2011-04-01,2011-09-30
"SENATOR DAVID S. CARLUCCI","ALLOCATED OPERATIONAL EXPENSES",,,,"BULK RATE POSTAGE",AOE,5963.36,"See Note Above",2011-04-01,2011-09-30
"SENATOR DAVID S. CARLUCCI","ALLOCATED OPERATIONAL EXPENSES",,,,"LONG DISTANCE TELEPHONE",AOE,67.24,"See Note Above",2011-04-01,2011-09-30
"SENATOR DAVID S. CARLUCCI","ALLOCATED OPERATIONAL EXPENSES",,,,"OFFICE SUPPLIES",AOE,742.02,"See Note Above",2011-04-01,2011-09-30
"SENATOR JOHN DEFRANCISCO","PERSONAL SERVICE","DEFRANCISCO, JOHN A",2011-03-31,2011-09-28,MEMBER,RA,39749.97,,2011-04-01,2011-09-30
"SENATOR JOHN DEFRANCISCO","PERSONAL SERVICE","DEFRANCISCO, JOHN A",,2011-04-13,"CHAIR, SENATE FINANCE COMMITTEE",RA,25500.00,,2011-04-01,2011-09-30
"SENATOR JOHN DEFRANCISCO","PERSONAL SERVICE","ALAGNA JR, FRANK A",2011-03-17,2011-04-01,"CONSTITUENT SERVICES REPRESENTATIVE",RA,3269.24,,2011-04-01,2011-09-30
"SENATOR JOHN DEFRANCISCO","PERSONAL SERVICE","ARLUKIEWICZ, JILL",2011-03-17,2011-09-14,"OFFICE MANAGER",RA,35000.03,,2011-04-01,2011-09-30
"SENATOR JOHN DEFRANCISCO","PERSONAL SERVICE","CITTADINO, JOSEPH D",2011-03-03,2011-07-28,"STUDENT AIDE",TE,2090.00,,2011-04-01,2011-09-30
"SENATOR JOHN DEFRANCISCO","PERSONAL SERVICE","DORAN, BENEDICTE H",2011-03-17,2011-09-14,"COMMUNICATIONS DIRECTOR",SA,32500.00,,2011-04-01,2011-09-30
"SENATOR JOHN DEFRANCISCO","PERSONAL SERVICE","HARRIS, ISABELLE M",2011-03-17,2011-09-14,"LEGISLATIVE DIRECTOR",RA,29769.33,,2011-04-01,2011-09-30
"SENATOR JOHN DEFRANCISCO","PERSONAL SERVICE","HASSETT-MASTINE, COLLEEN",2011-03-17,2011-09-14,"DIRECTOR OF CONSTITUENT SERVICES",SA,15000.05,,2011-04-01,2011-09-30
"SENATOR JOHN DEFRANCISCO","PERSONAL SERVICE","LATINO, TIFFANY M",2011-03-17,2011-09-14,"ASSISTANT COMMUNICATION DIRECTOR",RA,21807.69,,2011-04-01,2011-09-30
"SENATOR JOHN DEFRANCISCO","PERSONAL SERVICE","LUTHER, CAROLE M",2011-03-17,2011-09-14,"LEGISLATIVE ASSISTANT",SA,15000.05,,2011-04-01,2011-09-30
"SENATOR JOHN DEFRANCISCO","PERSONAL SERVICE","MALONE, CHRISTOPHER S",2011-04-04,2011-09-14,"CONSTITUENT SERVICES REPRESENTATIVE",RA,13038.48,,2011-04-01,2011-09-30
"SENATOR JOHN DEFRANCISCO","PERSONAL SERVICE","MCNEELY, RYAN J",2011-04-05,2011-05-11,"STUDENT AIDE",TE,470.00,,2011-04-01,2011-09-30
"SENATOR JOHN DEFRANCISCO","PERSONAL SERVICE","MCNEELY, RYAN J",2011-05-26,2011-09-14,"CONSTITUENT SERVICES REPRESENTATIVE",RA,8723.85,,2011-04-01,2011-09-30
"SENATOR JOHN DEFRANCISCO","PERSONAL SERVICE","O'CONNOR, ERIN L",2011-03-17,2011-08-17,"COMMUNICATIONS ASSISTANT",RA,19038.47,,2011-04-01,2011-09-30
"SENATOR JOHN DEFRANCISCO","PERSONAL SERVICE","O'CONNOR, ERIN L",2011-08-18,2011-09-14,"COMMUNICATIONS ASSISTANT",SA,2423.09,,2011-04-01,2011-09-30
"SENATOR JOHN DEFRANCISCO","PERSONAL SERVICE","POHLID, DOROTHY V",2011-03-17,2011-09-14,"CHIEF OF STAFF",RA,32500.00,,2011-04-01,2011-09-30
"SENATOR JOHN DEFRANCISCO","PERSONAL SERVICE","WALSH, ALEX E",2011-03-17,2011-09-14,"CONSTITUENT SERVICES REPRESENTATIVE",RA,14884.66,,2011-04-01,2011-09-30
"SENATOR JOHN DEFRANCISCO","MAINTENANCE & OPERATIONS","AT&T DIRECT MARKETING",,2011-04-05,"D.O. TELEPHONE SERVICES - VOUCHER# 1873",VENDOR,7.56,,2011-04-01,2011-09-30
"SENATOR JOHN DEFRANCISCO","MAINTENANCE & OPERATIONS",VERIZON,,2011-04-21,"D.O. TELEPHONE SERVICES - VOUCHER# 2010",VENDOR,272.74,,2011-04-01,2011-09-30
"SENATOR JOHN DEFRANCISCO","MAINTENANCE & OPERATIONS","ROBERT J. MILLER'S NEWSSTAND",,2011-04-27,"SUBSCRIPTIONS/PUBLICATIONS - VOUCHER# 2358",VENDOR,52.00,,2011-04-01,2011-09-30
"SENATOR JOHN DEFRANCISCO","MAINTENANCE & OPERATIONS","AT&T DIRECT MARKETING",,2011-05-10,"D.O. TELEPHONE SERVICES - VOUCHER# 2615",VENDOR,7.96,,2011-04-01,2011-09-30
"SENATOR JOHN DEFRANCISCO","MAINTENANCE & OPERATIONS","EBSCO INDUSTRIES INC DBA EBSCO INFORMATION SERVICES",,2011-05-10,"SUBSCRIPTIONS/PUBLICATIONS - VOUCHER# 2625",VENDOR,128.96,,2011-04-01,2011-09-30
"SENATOR JOHN DEFRANCISCO","MAINTENANCE & OPERATIONS","ROBERT J. MILLER'S NEWSSTAND",,2011-05-18,"SUBSCRIPTIONS/PUBLICATIONS - VOUCHER# 2778",VENDOR,54.00,,2011-04-01,2011-09-30
"SENATOR JOHN DEFRANCISCO","MAINTENANCE & OPERATIONS",VERIZON,,2011-06-01,"D.O. TELEPHONE SERVICES - VOUCHER# 3092",VENDOR,273.38,,2011-04-01,2011-09-30
"SENATOR JOHN DEFRANCISCO","MAINTENANCE & OPERATIONS",VERIZON,,2011-06-07,"D.O. TELEPHONE SERVICES - VOUCHER# 3224",VENDOR,269.47,,2011-04-01,2011-09-30
"SENATOR JOHN DEFRANCISCO","MAINTENANCE & OPERATIONS","AT&T DIRECT MARKETING",,2011-06-14,"D.O. TELEPHONE SERVICES - VOUCHER# 3364",VENDOR,5.59,,2011-04-01,2011-09-30
"SENATOR JOHN DEFRANCISCO","MAINTENANCE & OPERATIONS","ROBERT J. MILLER'S NEWSSTAND",,2011-06-14,"SUBSCRIPTIONS/PUBLICATIONS - VOUCHER# 3374",VENDOR,54.00,,2011-04-01,2011-09-30
"SENATOR JOHN DEFRANCISCO","MAINTENANCE & OPERATIONS","AT&T DIRECT MARKETING",,2011-07-06,"D.O. TELEPHONE SERVICES - VOUCHER# 3831",VENDOR,5.58,,2011-04-01,2011-09-30
"SENATOR JOHN DEFRANCISCO","MAINTENANCE & OPERATIONS",VERIZON,,2011-07-12,"D.O. TELEPHONE SERVICES - VOUCHER# 3937",VENDOR,269.53,,2011-04-01,2011-09-30
"SENATOR JOHN DEFRANCISCO","MAINTENANCE & OPERATIONS","AT&T DIRECT MARKETING",,2011-08-02,"D.O. TELEPHONE SERVICES - VOUCHER# 4273",VENDOR,5.88,,2011-04-01,2011-09-30
"SENATOR JOHN DEFRANCISCO","MAINTENANCE & OPERATIONS",VERIZON,,2011-08-16,"D.O. TELEPHONE SERVICES - VOUCHER# 4448",VENDOR,268.84,,2011-04-01,2011-09-30
"SENATOR JOHN DEFRANCISCO","MAINTENANCE & OPERATIONS","INDUSTRIAL EXHIBIT AUTHORITY",,2011-09-08,"BOOTH RENTAL FOR HEALTH FAIR - VOUCHER# 4789",VENDOR,685.00,,2011-04-01,2011-09-30
"SENATOR JOHN DEFRANCISCO","MAINTENANCE & OPERATIONS","MAILFINANCE INC. DBA HASLER",,2011-09-08,"D.O. MAILING EQUIPMENT LEASE - VOUCHER# 4812",VENDOR,149.97,,2011-04-01,2011-09-30
"SENATOR JOHN DEFRANCISCO","MAINTENANCE & OPERATIONS","AT&T DIRECT MARKETING",,2011-09-20,"D.O. TELEPHONE SERVICES - VOUCHER# 4972",VENDOR,5.31,,2011-04-01,2011-09-30
"SENATOR JOHN DEFRANCISCO","MAINTENANCE & OPERATIONS","MELISSA THOMAS",,2011-09-28,"SUBSCRIPTIONS/PUBLICATIONS - VOUCHER# 5109",VENDOR,171.00,,2011-04-01,2011-09-30
"SENATOR JOHN DEFRANCISCO","MEMBER TRAVEL","DEFRANCISCO, JOHN",,2011-04-13,"LEGISLATIVE DUTIES-ALBANY - VOUCHER# 1946T",VENDOR,870.00,,2011-04-01,2011-09-30
"SENATOR JOHN DEFRANCISCO","MEMBER TRAVEL","DEFRANCISCO, JOHN",,2011-04-13,"LEGISLATIVE DUTIES-ALBANY - VOUCHER# 1947T",VENDOR,705.00,,2011-04-01,2011-09-30
"SENATOR JOHN DEFRANCISCO","MEMBER TRAVEL","DEFRANCISCO, JOHN",,2011-04-18,"LEGISLATIVE DUTIES-ALBANY - VOUCHER# 2093T",VENDOR,540.00,,2011-04-01,2011-09-30
"SENATOR JOHN DEFRANCISCO","MEMBER TRAVEL","DEFRANCISCO, JOHN",,2011-04-27,"LEGISLATIVE DUTIES-ALBANY - VOUCHER# 2267T",VENDOR,575.00,,2011-04-01,2011-09-30
"SENATOR JOHN DEFRANCISCO","MEMBER TRAVEL","DEFRANCISCO, JOHN",,2011-05-18,"LEGISLATIVE DUTIES-ALBANY - VOUCHER# 2709T",VENDOR,375.00,,2011-04-01,2011-09-30
"SENATOR JOHN DEFRANCISCO","MEMBER TRAVEL","DEFRANCISCO, JOHN",,2011-05-24,"LEGISLATIVE DUTIES-ALBANY - VOUCHER# 2852T",VENDOR,540.00,,2011-04-01,2011-09-30
"SENATOR JOHN DEFRANCISCO","MEMBER TRAVEL","DEFRANCISCO, JOHN",,2011-06-01,"LEGISLATIVE DUTIES-ALBANY - VOUCHER# 3008T",VENDOR,375.00,,2011-04-01,2011-09-30
"SENATOR JOHN DEFRANCISCO","MEMBER TRAVEL","DEFRANCISCO, JOHN",,2011-06-07,"LEGISLATIVE DUTIES-ALBANY - VOUCHER# 3216T",VENDOR,540.00,,2011-04-01,2011-09-30
"SENATOR JOHN DEFRANCISCO","MEMBER TRAVEL","DEFRANCISCO, JOHN",,2011-06-15,"LEGISLATIVE DUTIES-ALBANY - VOUCHER# 3298T",VENDOR,375.00,,2011-04-01,2011-09-30
"SENATOR JOHN DEFRANCISCO","MEMBER TRAVEL","DEFRANCISCO, JOHN",,2011-06-21,"LEGISLATIVE DUTIES-ALBANY - VOUCHER# 3428T",VENDOR,540.00,,2011-04-01,2011-09-30
"SENATOR JOHN DEFRANCISCO","MEMBER TRAVEL","DEFRANCISCO, JOHN",,2011-06-29,"LEGISLATIVE DUTIES-ALBANY - VOUCHER# 3569T",VENDOR,870.00,,2011-04-01,2011-09-30
"SENATOR JOHN DEFRANCISCO","MEMBER TRAVEL","DEFRANCISCO, JOHN",,2011-07-12,"LEGISLATIVE DUTIES-ALBANY - VOUCHER# 3907T",VENDOR,870.00,,2011-04-01,2011-09-30
"SENATOR JOHN DEFRANCISCO","MEMBER TRAVEL","DEFRANCISCO, JOHN",,2011-08-10,"LEGISLATIVE DUTIES-ALBANY - VOUCHER# 4347T",VENDOR,210.00,,2011-04-01,2011-09-30
"SENATOR JOHN DEFRANCISCO","MEMBER TRAVEL","DEFRANCISCO, JOHN",,2011-08-16,"LEGISLATIVE DUTIES-ALBANY - VOUCHER# 4426T",VENDOR,375.00,,2011-04-01,2011-09-30
"SENATOR JOHN DEFRANCISCO","MEMBER TRAVEL","DEFRANCISCO, JOHN",,2011-08-23,"LEGISLATIVE DUTIES-ALBANY - VOUCHER# 4559T",VENDOR,540.00,,2011-04-01,2011-09-30
"SENATOR JOHN DEFRANCISCO","STAFF TRAVEL","LATINO,TIFFANY",,2011-06-01,"IDENTIFICATION FOR PERSONNEL - VOUCHER# 3071T",VENDOR,173.50,,2011-04-01,2011-09-30
"SENATOR JOHN DEFRANCISCO","STAFF TRAVEL","MALONE,CHRISTOPHER",,2011-06-01,"IDENTIFICATION FOR PERSONNEL - VOUCHER# 3072T",VENDOR,174.75,,2011-04-01,2011-09-30
"SENATOR JOHN DEFRANCISCO","ALLOCATED OPERATIONAL EXPENSES",,,,"FIRST CLASS POSTAGE",AOE,2652.44,"See Note Above",2011-04-01,2011-09-30
"SENATOR JOHN DEFRANCISCO","ALLOCATED OPERATIONAL EXPENSES",,,,"NEWS LETTER POSTAGE",AOE,36056.88,"See Note Above",2011-04-01,2011-09-30
"SENATOR JOHN DEFRANCISCO","ALLOCATED OPERATIONAL EXPENSES",,,,"BULK RATE POSTAGE",AOE,46558.28,"See Note Above",2011-04-01,2011-09-30
"SENATOR JOHN DEFRANCISCO","ALLOCATED OPERATIONAL EXPENSES",,,,"LONG DISTANCE TELEPHONE",AOE,90.41,"See Note Above",2011-04-01,2011-09-30
"SENATOR JOHN DEFRANCISCO","ALLOCATED OPERATIONAL EXPENSES",,,,"OFFICE SUPPLIES",AOE,1978.60,"See Note Above",2011-04-01,2011-09-30
"SENATOR RUBEN DIAZ, SR.","PERSONAL SERVICE","DIAZ, RUBEN",2011-03-31,2011-09-28,MEMBER,RA,39749.97,,2011-04-01,2011-09-30
"SENATOR RUBEN DIAZ, SR.","PERSONAL SERVICE","DIAZ, RUBEN",,2011-04-13,"RNKG MIN MEM SEN COMM ON AGING",RA,6750.00,,2011-04-01,2011-09-30
"SENATOR RUBEN DIAZ, SR.","PERSONAL SERVICE","BERN-SMITH, CATHRYN F",2011-03-17,2011-09-14,"POLICY DIRECTOR",RA,25000.04,,2011-04-01,2011-09-30
"SENATOR RUBEN DIAZ, SR.","PERSONAL SERVICE","BERROA, SILVIA D",2011-03-17,2011-09-14,"DIRECTOR OF FAITH BASED INITIATIVES",RA,11730.82,,2011-04-01,2011-09-30
"SENATOR RUBEN DIAZ, SR.","PERSONAL SERVICE","CANDELARIA, BRENDALIZ",2011-03-17,2011-09-14,"CHIEF OF STAFF",RA,30230.82,,2011-04-01,2011-09-30
"SENATOR RUBEN DIAZ, SR.","PERSONAL SERVICE","GAUD, ANGEL B",2011-03-17,2011-09-14,"LEGISLATIVE AIDE",RA,25000.04,,2011-04-01,2011-09-30
"SENATOR RUBEN DIAZ, SR.","PERSONAL SERVICE","GUTIERREZ PENA, CARLOS M",2011-04-16,2011-08-31,"COMMUNICATIONS ASSOCIATE",TE,6590.19,,2011-04-01,2011-09-30
"SENATOR RUBEN DIAZ, SR.","PERSONAL SERVICE","JACOME, HELEN",2011-03-17,2011-09-14,"DISTRICT OFFICE MANAGER",RA,20000.11,,2011-04-01,2011-09-30
"SENATOR RUBEN DIAZ, SR.","PERSONAL SERVICE","KING, MARINA P",2011-03-17,2011-09-14,"LEGISLATIVE AIDE",RA,18192.36,,2011-04-01,2011-09-30
"SENATOR RUBEN DIAZ, SR.","PERSONAL SERVICE","LAMB, GERALDINE B",2011-03-17,2011-09-14,"COMMUNITY LIAISON",RA,18192.36,,2011-04-01,2011-09-30
"SENATOR RUBEN DIAZ, SR.","PERSONAL SERVICE","MARTINEZ, LEILA",2011-03-17,2011-09-14,"LEGISLATIVE AIDE",RA,18192.36,,2011-04-01,2011-09-30
"SENATOR RUBEN DIAZ, SR.","PERSONAL SERVICE","MEDINA, MINERVA",2011-06-06,2011-09-14,RECEPTIONIST,RA,7061.58,,2011-04-01,2011-09-30
"SENATOR RUBEN DIAZ, SR.","PERSONAL SERVICE","MOJICA, STEPHANIE",2011-03-17,2011-05-25,RECEPTIONIST,SA,7284.54,,2011-04-01,2011-09-30
"SENATOR RUBEN DIAZ, SR.","PERSONAL SERVICE","MOJICA, STEPHANIE",2011-05-26,2011-06-22,RECEPTIONIST,RA,1951.22,,2011-04-01,2011-09-30
"SENATOR RUBEN DIAZ, SR.","PERSONAL SERVICE","MOJICA, STEPHANIE",,2011-08-17,"LUMP SUM VACATION PAYMENT",VA,1217.56,,2011-04-01,2011-09-30
"SENATOR RUBEN DIAZ, SR.","PERSONAL SERVICE","MORALES, RALPH",,2011-04-27,"LUMP SUM VACATION PAYMENT",VA,1988.47,"PAYMENT FOR SERVICES RENDERED PRIOR TO MARCH 17, 2011",2011-04-01,2011-09-30
"SENATOR RUBEN DIAZ, SR.","PERSONAL SERVICE","SANTANA PEREZ, JOSE M",2011-03-17,2011-09-14,"LEGISLATIVE AIDE",RA,13192.39,,2011-04-01,2011-09-30
"SENATOR RUBEN DIAZ, SR.","PERSONAL SERVICE","SOTO, TOMMY R",2011-03-17,2011-09-14,"EXECUTIVE ASSISTANT",RA,23192.38,,2011-04-01,2011-09-30
"SENATOR RUBEN DIAZ, SR.","MAINTENANCE & OPERATIONS","AT&T DIRECT MARKETING",,2011-04-05,"D.O. TELEPHONE SERVICES - VOUCHER# 1873",VENDOR,8.68,,2011-04-01,2011-09-30
"SENATOR RUBEN DIAZ, SR.","MAINTENANCE & OPERATIONS",VERIZON,,2011-04-21,"D.O. TELEPHONE SERVICES - VOUCHER# 2010",VENDOR,291.99,,2011-04-01,2011-09-30
"SENATOR RUBEN DIAZ, SR.","MAINTENANCE & OPERATIONS","CHARLES RICHARDSON",,2011-04-27,"SUBSCRIPTIONS/PUBLICATIONS - VOUCHER# 2371",VENDOR,80.40,,2011-04-01,2011-09-30
"SENATOR RUBEN DIAZ, SR.","MAINTENANCE & OPERATIONS","MN-13C ASSOCIATES LLC",,2011-04-27,"D.O. LEASE - VOUCHER# 2439",VENDOR,5851.00,,2011-04-01,2011-09-30
"SENATOR RUBEN DIAZ, SR.","MAINTENANCE & OPERATIONS","JOURNAL VOUCHER",,2011-05-02,"D.O. ELECTRIC SERVICE - VOUCHER# 2485Z",VENDOR,650.69,,2011-04-01,2011-09-30
"SENATOR RUBEN DIAZ, SR.","MAINTENANCE & OPERATIONS","AT&T DIRECT MARKETING",,2011-05-10,"D.O. TELEPHONE SERVICES - VOUCHER# 2615",VENDOR,4.87,,2011-04-01,2011-09-30
"SENATOR RUBEN DIAZ, SR.","MAINTENANCE & OPERATIONS","JOURNAL VOUCHER",,2011-05-11,"D.O. ELECTRIC SERVICE - VOUCHER# 2728Z",VENDOR,347.71,,2011-04-01,2011-09-30
"SENATOR RUBEN DIAZ, SR.","MAINTENANCE & OPERATIONS","CHARLES RICHARDSON",,2011-05-18,"SUBSCRIPTIONS/PUBLICATIONS - VOUCHER# 2788",VENDOR,25.20,,2011-04-01,2011-09-30
"SENATOR RUBEN DIAZ, SR.","MAINTENANCE & OPERATIONS","MN-13C ASSOCIATES LLC",,2011-05-24,"D.O. LEASE - VOUCHER# 2979",VENDOR,5851.00,,2011-04-01,2011-09-30
"SENATOR RUBEN DIAZ, SR.","MAINTENANCE & OPERATIONS",VERIZON,,2011-06-01,"D.O. TELEPHONE SERVICES - VOUCHER# 3092",VENDOR,297.07,,2011-04-01,2011-09-30
"SENATOR RUBEN DIAZ, SR.","MAINTENANCE & OPERATIONS",VERIZON,,2011-06-07,"D.O. TELEPHONE SERVICES - VOUCHER# 3224",VENDOR,301.01,,2011-04-01,2011-09-30
"SENATOR RUBEN DIAZ, SR.","MAINTENANCE & OPERATIONS","JOURNAL VOUCHER",,2011-06-09,"D.O. ELECTRIC SERVICE - VOUCHER# 3279Z",VENDOR,514.06,,2011-04-01,2011-09-30
"SENATOR RUBEN DIAZ, SR.","MAINTENANCE & OPERATIONS","AT&T DIRECT MARKETING",,2011-06-14,"D.O. TELEPHONE SERVICES - VOUCHER# 3364",VENDOR,4.56,,2011-04-01,2011-09-30
"SENATOR RUBEN DIAZ, SR.","MAINTENANCE & OPERATIONS","CHARLES RICHARDSON",,2011-06-14,"SUBSCRIPTIONS/PUBLICATIONS - VOUCHER# 3386",VENDOR,43.20,,2011-04-01,2011-09-30
"SENATOR RUBEN DIAZ, SR.","MAINTENANCE & OPERATIONS","MN-13C ASSOCIATES LLC",,2011-06-29,"D.O. LEASE - VOUCHER# 3734",VENDOR,5851.00,,2011-04-01,2011-09-30
"SENATOR RUBEN DIAZ, SR.","MAINTENANCE & OPERATIONS","AT&T DIRECT MARKETING",,2011-07-06,"D.O. TELEPHONE SERVICES - VOUCHER# 3831",VENDOR,56.75,,2011-04-01,2011-09-30
"SENATOR RUBEN DIAZ, SR.","MAINTENANCE & OPERATIONS","JOURNAL VOUCHER",,2011-07-06,"D.O. ELECTRIC SERVICE - VOUCHER# 3882Z",VENDOR,515.62,,2011-04-01,2011-09-30
"SENATOR RUBEN DIAZ, SR.","MAINTENANCE & OPERATIONS","PEST WARRIORS MANAGEMENT & MAINTENANCE",,2011-07-06,"D.O. EXTERMINATING SERVICE - VOUCHER# 3854",VENDOR,60.00,,2011-04-01,2011-09-30
"SENATOR RUBEN DIAZ, SR.","MAINTENANCE & OPERATIONS",VERIZON,,2011-07-12,"D.O. TELEPHONE SERVICES - VOUCHER# 3937",VENDOR,260.88,,2011-04-01,2011-09-30
"SENATOR RUBEN DIAZ, SR.","MAINTENANCE & OPERATIONS","CHARLES RICHARDSON",,2011-07-26,"SUBSCRIPTIONS/PUBLICATIONS - VOUCHER# 4146",VENDOR,68.40,,2011-04-01,2011-09-30
"SENATOR RUBEN DIAZ, SR.","MAINTENANCE & OPERATIONS","MN-13C ASSOCIATES LLC",,2011-07-26,"D.O. LEASE - VOUCHER# 4213",VENDOR,5851.00,,2011-04-01,2011-09-30
"SENATOR RUBEN DIAZ, SR.","MAINTENANCE & OPERATIONS","AT&T DIRECT MARKETING",,2011-08-02,"D.O. TELEPHONE SERVICES - VOUCHER# 4273",VENDOR,6.94,,2011-04-01,2011-09-30
"SENATOR RUBEN DIAZ, SR.","MAINTENANCE & OPERATIONS","JOURNAL VOUCHER",,2011-08-04,"D.O. ELECTRIC SERVICE - VOUCHER# 4366Z",VENDOR,798.14,,2011-04-01,2011-09-30
"SENATOR RUBEN DIAZ, SR.","MAINTENANCE & OPERATIONS","PEST WARRIORS MANAGEMENT & MAINTENANCE",,2011-08-16,"D.O. EXTERMINATING SERVICE - VOUCHER# 4485",VENDOR,60.00,,2011-04-01,2011-09-30
"SENATOR RUBEN DIAZ, SR.","MAINTENANCE & OPERATIONS",VERIZON,,2011-08-16,"D.O. TELEPHONE SERVICES - VOUCHER# 4448",VENDOR,279.73,,2011-04-01,2011-09-30
"SENATOR RUBEN DIAZ, SR.","MAINTENANCE & OPERATIONS","MN-13C ASSOCIATES LLC",,2011-08-23,"D.O. LEASE - VOUCHER# 4674",VENDOR,5851.00,,2011-04-01,2011-09-30
"SENATOR RUBEN DIAZ, SR.","MAINTENANCE & OPERATIONS","JOURNAL VOUCHER",,2011-09-07,"D.O. ELECTRIC SERVICE - VOUCHER# 4833Z",VENDOR,935.92,,2011-04-01,2011-09-30
"SENATOR RUBEN DIAZ, SR.","MAINTENANCE & OPERATIONS","MAILFINANCE INC. DBA HASLER",,2011-09-08,"D.O. MAILING EQUIPMENT LEASE - VOUCHER# 4812",VENDOR,149.97,,2011-04-01,2011-09-30
"SENATOR RUBEN DIAZ, SR.","MAINTENANCE & OPERATIONS","PEST WARRIORS MANAGEMENT & MAINTENANCE",,2011-09-13,"D.O. EXTERMINATING SERVICE - VOUCHER# 4893",VENDOR,60.00,,2011-04-01,2011-09-30
"SENATOR RUBEN DIAZ, SR.","MAINTENANCE & OPERATIONS","AT&T DIRECT MARKETING",,2011-09-20,"D.O. TELEPHONE SERVICES - VOUCHER# 4972",VENDOR,20.95,,2011-04-01,2011-09-30
"SENATOR RUBEN DIAZ, SR.","MAINTENANCE & OPERATIONS","JOURNAL VOUCHER",,2011-09-28,"D.O. ELECTRIC SERVICE - VOUCHER# 5184Z",VENDOR,861.91,,2011-04-01,2011-09-30
"SENATOR RUBEN DIAZ, SR.","MAINTENANCE & OPERATIONS","MN-13C ASSOCIATES LLC",,2011-09-28,"D.O. LEASE - VOUCHER# 5158",VENDOR,5851.00,,2011-04-01,2011-09-30
"SENATOR RUBEN DIAZ, SR.","MEMBER TRAVEL","DIAZ,RUBEN",,2011-04-05,"LEGISLATIVE DUTIES-ALBANY - VOUCHER# 1799T",VENDOR,791.00,,2011-04-01,2011-09-30
"SENATOR RUBEN DIAZ, SR.","MEMBER TRAVEL","DIAZ,RUBEN",,2011-04-18,"LEGISLATIVE DUTIES-ALBANY - VOUCHER# 2147T",VENDOR,748.00,,2011-04-01,2011-09-30
"SENATOR RUBEN DIAZ, SR.","MEMBER TRAVEL","DIAZ,RUBEN",,2011-04-18,"LEGISLATIVE DUTIES-ALBANY - VOUCHER# 2148T",VENDOR,583.00,,2011-04-01,2011-09-30
"SENATOR RUBEN DIAZ, SR.","MEMBER TRAVEL","DIAZ,RUBEN",,2011-06-01,"LEGISLATIVE DUTIES-ALBANY - VOUCHER# 3009T",VENDOR,626.00,,2011-04-01,2011-09-30
"SENATOR RUBEN DIAZ, SR.","MEMBER TRAVEL","DIAZ,RUBEN",,2011-06-01,"LEGISLATIVE DUTIES-ALBANY - VOUCHER# 3010T",VENDOR,626.00,,2011-04-01,2011-09-30
"SENATOR RUBEN DIAZ, SR.","MEMBER TRAVEL","DIAZ,RUBEN",,2011-06-01,"LEGISLATIVE DUTIES-ALBANY - VOUCHER# 3011T",VENDOR,626.00,,2011-04-01,2011-09-30
"SENATOR RUBEN DIAZ, SR.","MEMBER TRAVEL","DIAZ,RUBEN",,2011-06-01,"LEGISLATIVE DUTIES-ALBANY - VOUCHER# 3012T",VENDOR,626.00,,2011-04-01,2011-09-30
"SENATOR RUBEN DIAZ, SR.","MEMBER TRAVEL","DIAZ,RUBEN",,2011-06-15,"LEGISLATIVE DUTIES-ALBANY - VOUCHER# 3299T",VENDOR,626.00,,2011-04-01,2011-09-30
"SENATOR RUBEN DIAZ, SR.","MEMBER TRAVEL","DIAZ,RUBEN",,2011-06-15,"LEGISLATIVE DUTIES-ALBANY - VOUCHER# 3300T",VENDOR,461.00,,2011-04-01,2011-09-30
"SENATOR RUBEN DIAZ, SR.","MEMBER TRAVEL","DIAZ,RUBEN",,2011-06-21,"LEGISLATIVE DUTIES-ALBANY - VOUCHER# 3429T",VENDOR,418.00,,2011-04-01,2011-09-30
"SENATOR RUBEN DIAZ, SR.","MEMBER TRAVEL","DIAZ,RUBEN",,2011-07-06,"LEGISLATIVE DUTIES-ALBANY - VOUCHER# 3761T",VENDOR,956.00,,2011-04-01,2011-09-30
"SENATOR RUBEN DIAZ, SR.","MEMBER TRAVEL","DIAZ,RUBEN",,2011-07-12,"LEGISLATIVE DUTIES-ALBANY - VOUCHER# 3908T",VENDOR,1108.48,,2011-04-01,2011-09-30
"SENATOR RUBEN DIAZ, SR.","ALLOCATED OPERATIONAL EXPENSES",,,,"FIRST CLASS POSTAGE",AOE,3312.84,"See Note Above",2011-04-01,2011-09-30
"SENATOR RUBEN DIAZ, SR.","ALLOCATED OPERATIONAL EXPENSES",,,,"NEWS LETTER POSTAGE",AOE,33040.78,"See Note Above",2011-04-01,2011-09-30
"SENATOR RUBEN DIAZ, SR.","ALLOCATED OPERATIONAL EXPENSES",,,,"BULK RATE POSTAGE",AOE,17419.72,"See Note Above",2011-04-01,2011-09-30
"SENATOR RUBEN DIAZ, SR.","ALLOCATED OPERATIONAL EXPENSES",,,,"LONG DISTANCE TELEPHONE",AOE,28.61,"See Note Above",2011-04-01,2011-09-30
"SENATOR RUBEN DIAZ, SR.","ALLOCATED OPERATIONAL EXPENSES",,,,"OFFICE SUPPLIES",AOE,6111.99,"See Note Above",2011-04-01,2011-09-30
"SENATOR MARTIN M. DILAN","PERSONAL SERVICE","DILAN, MARTIN M",2011-03-31,2011-09-28,MEMBER,RA,39749.97,,2011-04-01,2011-09-30
"SENATOR MARTIN M. DILAN","PERSONAL SERVICE","DILAN, MARTIN M",,2011-04-13,"ASSNT MIN LEADER FOR POLICY & ADMIN",RA,12375.00,,2011-04-01,2011-09-30
"SENATOR MARTIN M. DILAN","PERSONAL SERVICE","DUROSINMI, CHRISTOPHER J",2011-03-17,2011-09-14,"CONSTITUENT SERVICES LIAISON",RA,14807.76,,2011-04-01,2011-09-30
"SENATOR MARTIN M. DILAN","PERSONAL SERVICE","ESPINAL, HUGO F",2011-03-17,2011-09-14,"COMMUNITY LIAISON",SA,15077.00,,2011-04-01,2011-09-30
"SENATOR MARTIN M. DILAN","PERSONAL SERVICE","FLORES, ANGELICA C",2011-03-17,2011-09-14,"RECEPTIONIST / SECRETARY",SA,12923.13,,2011-04-01,2011-09-30
"SENATOR MARTIN M. DILAN","PERSONAL SERVICE","HARRIS, LORENDA C",2011-03-17,2011-07-20,"CHIEF OF STAFF",RA,41846.21,,2011-04-01,2011-09-30
"SENATOR MARTIN M. DILAN","PERSONAL SERVICE","HARRIS, LORENDA C",,2011-08-31,"LUMP SUM VACATION PAYMENT",VA,13846.17,,2011-04-01,2011-09-30
"SENATOR MARTIN M. DILAN","PERSONAL SERVICE","HEIMROTH, HEATH A",2011-03-17,2011-09-14,"LEGISLATIVE ASSISTANT",RA,19384.63,,2011-04-01,2011-09-30
"SENATOR MARTIN M. DILAN","PERSONAL SERVICE","JOYNER, JOHNNIE H",2011-03-17,2011-09-14,"COMMUNITY LIAISON",SA,8615.48,,2011-04-01,2011-09-30
"SENATOR MARTIN M. DILAN","PERSONAL SERVICE","OLMEDA, MICHAEL A",2011-03-17,2011-09-14,"FIELD COORDINATOR",SA,19384.63,,2011-04-01,2011-09-30
"SENATOR MARTIN M. DILAN","PERSONAL SERVICE","ORTIZ, JAIME",,2011-05-25,"LUMP SUM VACATION PAYMENT",VA,420.39,"PAYMENT FOR SERVICES RENDERED PRIOR TO MARCH 17, 2011",2011-04-01,2011-09-30
"SENATOR MARTIN M. DILAN","PERSONAL SERVICE","PENA, ALEXANDRA",2011-03-17,2011-09-14,"OFFICE MANAGER",SA,19384.63,,2011-04-01,2011-09-30
"SENATOR MARTIN M. DILAN","PERSONAL SERVICE","ROSS, OLLIE B",2011-03-17,2011-09-14,"COMMUNITY LIAISON",SA,6500.00,,2011-04-01,2011-09-30
"SENATOR MARTIN M. DILAN","PERSONAL SERVICE","SIVERIO, SERGIO",2011-03-17,2011-09-14,"SPECIAL ASSISTANT",SA,18092.37,,2011-04-01,2011-09-30
"SENATOR MARTIN M. DILAN","PERSONAL SERVICE","TRAPASSO, MATTHEW J",2011-03-17,2011-09-14,"POLICY/LEGISLATIVE DIRECTOR",RA,33846.23,,2011-04-01,2011-09-30
"SENATOR MARTIN M. DILAN","MAINTENANCE & OPERATIONS","AT&T DIRECT MARKETING",,2011-04-05,"D.O. TELEPHONE SERVICES - VOUCHER# 1873",VENDOR,1.23,,2011-04-01,2011-09-30
"SENATOR MARTIN M. DILAN","MAINTENANCE & OPERATIONS","SONIA NIEVES COLON",,2011-04-12,"D.O. LEASE- 3 MONTHS - VOUCHER# 2082",VENDOR,8773.95,,2011-04-01,2011-09-30
"SENATOR MARTIN M. DILAN","MAINTENANCE & OPERATIONS","SONIA NIEVES COLON",,2011-04-18,"D.O. LEASE - VOUCHER# 2248",VENDOR,2924.65,,2011-04-01,2011-09-30
"SENATOR MARTIN M. DILAN","MAINTENANCE & OPERATIONS",VERIZON,,2011-04-21,"D.O. TELEPHONE SERVICES - VOUCHER# 2010",VENDOR,136.40,,2011-04-01,2011-09-30
"SENATOR MARTIN M. DILAN","MAINTENANCE & OPERATIONS","CHARLES RICHARDSON",,2011-04-27,"SUBSCRIPTIONS/PUBLICATIONS - VOUCHER# 2371",VENDOR,193.20,,2011-04-01,2011-09-30
"SENATOR MARTIN M. DILAN","MAINTENANCE & OPERATIONS","SONIA NIEVES COLON",,2011-04-27,"D.O. LEASE - VOUCHER# 2421",VENDOR,2924.65,,2011-04-01,2011-09-30
"SENATOR MARTIN M. DILAN","MAINTENANCE & OPERATIONS","AT&T DIRECT MARKETING",,2011-05-10,"D.O. TELEPHONE SERVICES - VOUCHER# 2615",VENDOR,1.77,,2011-04-01,2011-09-30
"SENATOR MARTIN M. DILAN","MAINTENANCE & OPERATIONS","CRAIN COMMUNICATIONS, INC.",,2011-05-10,"SUBSCRIPTIONS/PUBLICATIONS - VOUCHER# 2616",VENDOR,269.00,,2011-04-01,2011-09-30
"SENATOR MARTIN M. DILAN","MAINTENANCE & OPERATIONS","EBSCO INDUSTRIES INC DBA EBSCO INFORMATION SERVICES",,2011-05-10,"SUBSCRIPTIONS/PUBLICATIONS - VOUCHER# 2625",VENDOR,41.55,,2011-04-01,2011-09-30
"SENATOR MARTIN M. DILAN","MAINTENANCE & OPERATIONS","EBSCO INDUSTRIES INC DBA EBSCO INFORMATION SERVICES",,2011-05-24,"SUBSCRIPTIONS/PUBLICATIONS - VOUCHER# 2900",VENDOR,276.64,,2011-04-01,2011-09-30
"SENATOR MARTIN M. DILAN","MAINTENANCE & OPERATIONS","SONIA NIEVES COLON",,2011-05-24,"D.O. LEASE - VOUCHER# 2960",VENDOR,2924.65,,2011-04-01,2011-09-30
"SENATOR MARTIN M. DILAN","MAINTENANCE & OPERATIONS",VERIZON,,2011-06-01,"D.O. TELEPHONE SERVICES - VOUCHER# 3092",VENDOR,138.31,,2011-04-01,2011-09-30
"SENATOR MARTIN M. DILAN","MAINTENANCE & OPERATIONS",VERIZON,,2011-06-07,"D.O. TELEPHONE SERVICES - VOUCHER# 3224",VENDOR,143.93,,2011-04-01,2011-09-30
"SENATOR MARTIN M. DILAN","MAINTENANCE & OPERATIONS","AT&T DIRECT MARKETING",,2011-06-14,"D.O. TELEPHONE SERVICES - VOUCHER# 3364",VENDOR,0.87,,2011-04-01,2011-09-30
"SENATOR MARTIN M. DILAN","MAINTENANCE & OPERATIONS","CHARLES RICHARDSON",,2011-06-14,"SUBSCRIPTIONS/PUBLICATIONS - VOUCHER# 3386",VENDOR,200.90,,2011-04-01,2011-09-30
"SENATOR MARTIN M. DILAN","MAINTENANCE & OPERATIONS","SONIA NIEVES COLON",,2011-06-29,"D.O. LEASE - VOUCHER# 3714",VENDOR,2924.65,,2011-04-01,2011-09-30
"SENATOR MARTIN M. DILAN","MAINTENANCE & OPERATIONS","AT&T DIRECT MARKETING",,2011-07-06,"D.O. TELEPHONE SERVICES - VOUCHER# 3831",VENDOR,1.54,,2011-04-01,2011-09-30
"SENATOR MARTIN M. DILAN","MAINTENANCE & OPERATIONS",VERIZON,,2011-07-12,"D.O. TELEPHONE SERVICES - VOUCHER# 3937",VENDOR,135.65,,2011-04-01,2011-09-30
"SENATOR MARTIN M. DILAN","MAINTENANCE & OPERATIONS","CHARLES RICHARDSON",,2011-07-26,"SUBSCRIPTIONS/PUBLICATIONS - VOUCHER# 4146",VENDOR,107.80,,2011-04-01,2011-09-30
"SENATOR MARTIN M. DILAN","MAINTENANCE & OPERATIONS","SONIA NIEVES COLON",,2011-07-26,"D.O. LEASE - VOUCHER# 4193",VENDOR,2924.65,,2011-04-01,2011-09-30
"SENATOR MARTIN M. DILAN","MAINTENANCE & OPERATIONS","AT&T DIRECT MARKETING",,2011-08-02,"D.O. TELEPHONE SERVICES - VOUCHER# 4273",VENDOR,0.61,,2011-04-01,2011-09-30
"SENATOR MARTIN M. DILAN","MAINTENANCE & OPERATIONS","CHARLES RICHARDSON",,2011-08-10,"SUBSCRIPTIONS/PUBLICATIONS - VOUCHER# 4381",VENDOR,98.00,,2011-04-01,2011-09-30
"SENATOR MARTIN M. DILAN","MAINTENANCE & OPERATIONS",VERIZON,,2011-08-16,"D.O. TELEPHONE SERVICES - VOUCHER# 4448",VENDOR,136.40,,2011-04-01,2011-09-30
"SENATOR MARTIN M. DILAN","MAINTENANCE & OPERATIONS","SONIA NIEVES COLON",,2011-08-23,"D.O. LEASE - VOUCHER# 4654",VENDOR,2924.65,,2011-04-01,2011-09-30
"SENATOR MARTIN M. DILAN","MAINTENANCE & OPERATIONS","MAILFINANCE INC. DBA HASLER",,2011-09-08,"D.O. MAILING EQUIPMENT LEASE - VOUCHER# 4812",VENDOR,149.97,,2011-04-01,2011-09-30
"SENATOR MARTIN M. DILAN","MAINTENANCE & OPERATIONS","AT&T DIRECT MARKETING",,2011-09-20,"D.O. TELEPHONE SERVICES - VOUCHER# 4972",VENDOR,0.89,,2011-04-01,2011-09-30
"SENATOR MARTIN M. DILAN","MAINTENANCE & OPERATIONS","SONIA NIEVES COLON",,2011-09-28,"D.O. LEASE - VOUCHER# 5138",VENDOR,2924.65,,2011-04-01,2011-09-30
"SENATOR MARTIN M. DILAN","MEMBER TRAVEL","DILAN,MARTIN",,2011-04-13,"LEGISLATIVE DUTIES-ALBANY - VOUCHER# 1948T",VENDOR,868.20,,2011-04-01,2011-09-30
"SENATOR MARTIN M. DILAN","MEMBER TRAVEL","DILAN,MARTIN",,2011-04-18,"LEGISLATIVE DUTIES-ALBANY - VOUCHER# 2096T",VENDOR,1687.20,,2011-04-01,2011-09-30
"SENATOR MARTIN M. DILAN","MEMBER TRAVEL","DILAN,MARTIN",,2011-04-18,"TOLLS-ALBANY - VOUCHER# 2094T",VENDOR,764.92,,2011-04-01,2011-09-30
"SENATOR MARTIN M. DILAN","MEMBER TRAVEL","DILAN,MARTIN",,2011-04-18,"TOLLS-ALBANY - VOUCHER# 2095T",VENDOR,641.81,,2011-04-01,2011-09-30
"SENATOR MARTIN M. DILAN","MEMBER TRAVEL","DILAN,MARTIN",,2011-04-27,"LEGISLATIVE DUTIES-ALBANY - VOUCHER# 2268T",VENDOR,868.20,,2011-04-01,2011-09-30
"SENATOR MARTIN M. DILAN","MEMBER TRAVEL","DILAN,MARTIN",,2011-05-24,"LEGISLATIVE DUTIES-ALBANY - VOUCHER# 2853T",VENDOR,621.60,,2011-04-01,2011-09-30
"SENATOR MARTIN M. DILAN","MEMBER TRAVEL","DILAN,MARTIN",,2011-05-24,"LEGISLATIVE DUTIES-ALBANY - VOUCHER# 2854T",VENDOR,540.00,,2011-04-01,2011-09-30
"SENATOR MARTIN M. DILAN","MEMBER TRAVEL","DILAN,MARTIN",,2011-06-01,"LEGISLATIVE DUTIES-ALBANY - VOUCHER# 3013T",VENDOR,540.00,,2011-04-01,2011-09-30
"SENATOR MARTIN M. DILAN","MEMBER TRAVEL","DILAN,MARTIN",,2011-06-07,"LEGISLATIVE DUTIES-ALBANY - VOUCHER# 3176T",VENDOR,540.00,,2011-04-01,2011-09-30
"SENATOR MARTIN M. DILAN","MEMBER TRAVEL","DILAN,MARTIN",,2011-06-15,"LEGISLATIVE DUTIES-ALBANY - VOUCHER# 3301T",VENDOR,375.00,,2011-04-01,2011-09-30
"SENATOR MARTIN M. DILAN","MEMBER TRAVEL","DILAN,MARTIN",,2011-06-21,"LEGISLATIVE DUTIES-ALBANY - VOUCHER# 3430T",VENDOR,375.00,,2011-04-01,2011-09-30
"SENATOR MARTIN M. DILAN","MEMBER TRAVEL","DILAN,MARTIN",,2011-06-29,"TOLLS-ALBANY - VOUCHER# 3570T",VENDOR,334.06,,2011-04-01,2011-09-30
"SENATOR MARTIN M. DILAN","MEMBER TRAVEL","DILAN,MARTIN",,2011-07-12,"LEGISLATIVE DUTIES-ALBANY - VOUCHER# 3909T",VENDOR,2190.00,,2011-04-01,2011-09-30
"SENATOR MARTIN M. DILAN","MEMBER TRAVEL","DILAN,MARTIN",,2011-07-19,"LEGISLATIVE DUTIES-ALBANY - VOUCHER# 3988T",VENDOR,210.00,,2011-04-01,2011-09-30
"SENATOR MARTIN M. DILAN","MEMBER TRAVEL","DILAN,MARTIN",,2011-08-02,"MEETING-SYRACUSE - VOUCHER# 4243T",VENDOR,359.00,,2011-04-01,2011-09-30
"SENATOR MARTIN M. DILAN","MEMBER TRAVEL","DILAN,MARTIN",,2011-08-30,"LEGISLATIVE DUTIES-ALBANY - VOUCHER# 4699T",VENDOR,540.00,,2011-04-01,2011-09-30
"SENATOR MARTIN M. DILAN","MEMBER TRAVEL","DILAN,MARTIN",,2011-08-30,"MEETING-ALBANY - VOUCHER# 4700T",VENDOR,694.00,,2011-04-01,2011-09-30
"SENATOR MARTIN M. DILAN","ALLOCATED OPERATIONAL EXPENSES",,,,"FIRST CLASS POSTAGE",AOE,4113.59,"See Note Above",2011-04-01,2011-09-30
"SENATOR MARTIN M. DILAN","ALLOCATED OPERATIONAL EXPENSES",,,,"NEWS LETTER POSTAGE",AOE,39400.88,"See Note Above",2011-04-01,2011-09-30
"SENATOR MARTIN M. DILAN","ALLOCATED OPERATIONAL EXPENSES",,,,"BULK RATE POSTAGE",AOE,10672.24,"See Note Above",2011-04-01,2011-09-30
"SENATOR MARTIN M. DILAN","ALLOCATED OPERATIONAL EXPENSES",,,,"LONG DISTANCE TELEPHONE",AOE,90.02,"See Note Above",2011-04-01,2011-09-30
"SENATOR MARTIN M. DILAN","ALLOCATED OPERATIONAL EXPENSES",,,,"OFFICE SUPPLIES",AOE,1209.91,"See Note Above",2011-04-01,2011-09-30
"SENATOR THOMAS K. DUANE","PERSONAL SERVICE","DUANE, THOMAS K",2011-03-31,2011-09-28,MEMBER,RA,39749.97,,2011-04-01,2011-09-30
"SENATOR THOMAS K. DUANE","PERSONAL SERVICE","DUANE, THOMAS K",,2011-04-13,"ASSNT MIN LEADER FOR FLOOR OPS",RA,10875.00,,2011-04-01,2011-09-30
"SENATOR THOMAS K. DUANE","PERSONAL SERVICE","BARTOS, JOHN D",2011-03-17,2011-09-14,"CONSTITUENT LIAISON",RA,14000.09,,2011-04-01,2011-09-30
"SENATOR THOMAS K. DUANE","PERSONAL SERVICE","CASEY, COLIN T",2011-03-17,2011-09-02,"DEPUTY CHIEF OF STAFF",SA,12730.81,,2011-04-01,2011-09-30
"SENATOR THOMAS K. DUANE","PERSONAL SERVICE","CHAUSOW, JARED M",2011-03-17,2011-09-14,"SENIOR LEGISLATIVE AIDE FOR POLICY/C",RA,16500.12,,2011-04-01,2011-09-30
"SENATOR THOMAS K. DUANE","PERSONAL SERVICE","FURNISH, MARK W",2011-03-17,2011-09-14,"LEGISLATIVE COUNSEL",RA,39500.11,,2011-04-01,2011-09-30
"SENATOR THOMAS K. DUANE","PERSONAL SERVICE","GOLD-POND, CRYSTAL D",2011-03-17,2011-04-21,"LEGISLATIVE AIDE",RA,4053.87,,2011-04-01,2011-09-30
"SENATOR THOMAS K. DUANE","PERSONAL SERVICE","GOLD-POND, CRYSTAL D",,2011-06-08,"LUMP SUM VACATION PAYMENT",VA,3923.10,,2011-04-01,2011-09-30
"SENATOR THOMAS K. DUANE","PERSONAL SERVICE","KEHOE, NANCY A",2011-03-07,2011-06-24,"LEGISLATIVE ASSISTANT",TE,2780.00,,2011-04-01,2011-09-30
"SENATOR THOMAS K. DUANE","PERSONAL SERVICE","LOPEZ, ENRIQUE A",2011-03-17,2011-09-14,SCHEDULER,RA,16500.12,,2011-04-01,2011-09-30
"SENATOR THOMAS K. DUANE","PERSONAL SERVICE","MEIER-ZIMBLER, SARAH P",2011-03-17,2011-09-14,"LEGISLATIVE AIDE",RA,16500.12,,2011-04-01,2011-09-30
"SENATOR THOMAS K. DUANE","PERSONAL SERVICE","MORRISON, LAURA A",2011-03-17,2011-09-14,"CHIEF OF STAFF",RA,32500.00,,2011-04-01,2011-09-30
"SENATOR THOMAS K. DUANE","PERSONAL SERVICE","SCOTT, CECILE M",2011-03-17,2011-09-14,"CHIEF OF OPERATIONS",RA,29000.01,,2011-04-01,2011-09-30
"SENATOR THOMAS K. DUANE","PERSONAL SERVICE","SOGUT, MISCHA B",2011-03-17,2011-09-14,"LEGISLATIVE & MEDIA AIDE",RA,16500.12,,2011-04-01,2011-09-30
"SENATOR THOMAS K. DUANE","MAINTENANCE & OPERATIONS","AT&T DIRECT MARKETING",,2011-04-05,"D.O. TELEPHONE SERVICES - VOUCHER# 1873",VENDOR,0.30,,2011-04-01,2011-09-30
"SENATOR THOMAS K. DUANE","MAINTENANCE & OPERATIONS","PRONTO CLEANING CORP",,2011-04-18,"D.O. CLEANING - VOUCHER# 2214",VENDOR,345.00,,2011-04-01,2011-09-30
"SENATOR THOMAS K. DUANE","MAINTENANCE & OPERATIONS",VERIZON,,2011-04-21,"D.O. TELEPHONE SERVICES - VOUCHER# 2010",VENDOR,278.79,,2011-04-01,2011-09-30
"SENATOR THOMAS K. DUANE","MAINTENANCE & OPERATIONS","CHARLES RICHARDSON",,2011-04-27,"SUBSCRIPTIONS/PUBLICATIONS - VOUCHER# 2371",VENDOR,194.40,,2011-04-01,2011-09-30
"SENATOR THOMAS K. DUANE","MAINTENANCE & OPERATIONS","NEWMARK & COMPANY REAL ESTATE , INC",,2011-04-27,"D.O. LEASE - VOUCHER# 2424",VENDOR,4385.59,,2011-04-01,2011-09-30
"SENATOR THOMAS K. DUANE","MAINTENANCE & OPERATIONS","AT&T DIRECT MARKETING",,2011-05-10,"D.O. TELEPHONE SERVICES - VOUCHER# 2615",VENDOR,1.29,,2011-04-01,2011-09-30
"SENATOR THOMAS K. DUANE","MAINTENANCE & OPERATIONS","EBSCO INDUSTRIES INC DBA EBSCO INFORMATION SERVICES",,2011-05-10,"SUBSCRIPTIONS/PUBLICATIONS - VOUCHER# 2625",VENDOR,113.36,,2011-04-01,2011-09-30
"SENATOR THOMAS K. DUANE","MAINTENANCE & OPERATIONS","ALPERTS NEWSPAPER DELIVERY INC",,2011-05-18,"SUBSCRIPTIONS/PUBLICATIONS - VOUCHER# 2782",VENDOR,48.70,,2011-04-01,2011-09-30
"SENATOR THOMAS K. DUANE","MAINTENANCE & OPERATIONS","CHARLES RICHARDSON",,2011-05-18,"SUBSCRIPTIONS/PUBLICATIONS - VOUCHER# 2788",VENDOR,58.20,,2011-04-01,2011-09-30
"SENATOR THOMAS K. DUANE","MAINTENANCE & OPERATIONS","PRONTO CLEANING CORP",,2011-05-18,"D.O. CLEANING - VOUCHER# 2801",VENDOR,276.00,,2011-04-01,2011-09-30
"SENATOR THOMAS K. DUANE","MAINTENANCE & OPERATIONS","NEWMARK & COMPANY REAL ESTATE , INC",,2011-05-24,"D.O. LEASE - VOUCHER# 2963",VENDOR,4385.59,,2011-04-01,2011-09-30
"SENATOR THOMAS K. DUANE","MAINTENANCE & OPERATIONS",VERIZON,,2011-06-01,"D.O. TELEPHONE SERVICES - VOUCHER# 3092",VENDOR,251.10,,2011-04-01,2011-09-30
"SENATOR THOMAS K. DUANE","MAINTENANCE & OPERATIONS","ALPERTS NEWSPAPER DELIVERY INC",,2011-06-07,"SUBSCRIPTIONS/PUBLICATIONS - VOUCHER# 3243",VENDOR,97.40,,2011-04-01,2011-09-30
"SENATOR THOMAS K. DUANE","MAINTENANCE & OPERATIONS","CITIBANK NA",,2011-06-07,"SUBSCRIPTIONS/PUBLICATIONS - VOUCHER# 3264",VENDOR,29.95,,2011-04-01,2011-09-30
"SENATOR THOMAS K. DUANE","MAINTENANCE & OPERATIONS",VERIZON,,2011-06-07,"D.O. TELEPHONE SERVICES - VOUCHER# 3224",VENDOR,268.44,,2011-04-01,2011-09-30
"SENATOR THOMAS K. DUANE","MAINTENANCE & OPERATIONS","AT&T DIRECT MARKETING",,2011-06-14,"D.O. TELEPHONE SERVICES - VOUCHER# 3364",VENDOR,0.45,,2011-04-01,2011-09-30
"SENATOR THOMAS K. DUANE","MAINTENANCE & OPERATIONS","CHARLES RICHARDSON",,2011-06-14,"SUBSCRIPTIONS/PUBLICATIONS - VOUCHER# 3386",VENDOR,82.50,,2011-04-01,2011-09-30
"SENATOR THOMAS K. DUANE","MAINTENANCE & OPERATIONS","PRONTO CLEANING CORP",,2011-06-14,"D.O. CLEANING - VOUCHER# 3398",VENDOR,276.00,,2011-04-01,2011-09-30
"SENATOR THOMAS K. DUANE","MAINTENANCE & OPERATIONS","NEWMARK & COMPANY REAL ESTATE , INC",,2011-06-29,"D.O. LEASE - VOUCHER# 3718",VENDOR,4385.59,,2011-04-01,2011-09-30
"SENATOR THOMAS K. DUANE","MAINTENANCE & OPERATIONS","AT&T DIRECT MARKETING",,2011-07-06,"D.O. TELEPHONE SERVICES - VOUCHER# 3831",VENDOR,0.66,,2011-04-01,2011-09-30
"SENATOR THOMAS K. DUANE","MAINTENANCE & OPERATIONS",VERIZON,,2011-07-12,"D.O. TELEPHONE SERVICES - VOUCHER# 3937",VENDOR,259.41,,2011-04-01,2011-09-30
"SENATOR THOMAS K. DUANE","MAINTENANCE & OPERATIONS","ALPERTS NEWSPAPER DELIVERY INC",,2011-07-19,"SUBSCRIPTIONS/PUBLICATIONS - VOUCHER# 4051",VENDOR,97.40,,2011-04-01,2011-09-30
"SENATOR THOMAS K. DUANE","MAINTENANCE & OPERATIONS","NEWMARK & COMPANY REAL ESTATE , INC",,2011-07-26,"D.O. LEASE - VOUCHER# 4197",VENDOR,4385.59,,2011-04-01,2011-09-30
"SENATOR THOMAS K. DUANE","MAINTENANCE & OPERATIONS","AT&T DIRECT MARKETING",,2011-08-02,"D.O. TELEPHONE SERVICES - VOUCHER# 4273",VENDOR,0.72,,2011-04-01,2011-09-30
"SENATOR THOMAS K. DUANE","MAINTENANCE & OPERATIONS","PRONTO CLEANING CORP",,2011-08-02,"D.O. CLEANING - VOUCHER# 4296",VENDOR,345.00,,2011-04-01,2011-09-30
"SENATOR THOMAS K. DUANE","MAINTENANCE & OPERATIONS","CHARLES RICHARDSON",,2011-08-10,"SUBSCRIPTIONS/PUBLICATIONS - VOUCHER# 4381",VENDOR,116.00,,2011-04-01,2011-09-30
"SENATOR THOMAS K. DUANE","MAINTENANCE & OPERATIONS","ALPERTS NEWSPAPER DELIVERY INC",,2011-08-16,"SUBSCRIPTIONS/PUBLICATIONS - VOUCHER# 4465",VENDOR,107.40,,2011-04-01,2011-09-30
"SENATOR THOMAS K. DUANE","MAINTENANCE & OPERATIONS",VERIZON,,2011-08-16,"D.O. TELEPHONE SERVICES - VOUCHER# 4448",VENDOR,259.63,,2011-04-01,2011-09-30
"SENATOR THOMAS K. DUANE","MAINTENANCE & OPERATIONS","NEWMARK & COMPANY REAL ESTATE , INC",,2011-08-23,"D.O. LEASE - VOUCHER# 4658",VENDOR,4385.59,,2011-04-01,2011-09-30
"SENATOR THOMAS K. DUANE","MAINTENANCE & OPERATIONS","PRONTO CLEANING CORP",,2011-08-23,"D.O. CLEANING - VOUCHER# 4611",VENDOR,276.00,,2011-04-01,2011-09-30
"SENATOR THOMAS K. DUANE","MAINTENANCE & OPERATIONS","ALPERTS NEWSPAPER DELIVERY INC",,2011-09-08,"SUBSCRIPTIONS/PUBLICATIONS - VOUCHER# 4798",VENDOR,107.40,,2011-04-01,2011-09-30
"SENATOR THOMAS K. DUANE","MAINTENANCE & OPERATIONS","MAILFINANCE INC. DBA HASLER",,2011-09-08,"D.O. MAILING EQUIPMENT LEASE - VOUCHER# 4812",VENDOR,149.97,,2011-04-01,2011-09-30
"SENATOR THOMAS K. DUANE","MAINTENANCE & OPERATIONS","PRONTO CLEANING CORP",,2011-09-13,"D.O. CLEANING - VOUCHER# 4898",VENDOR,276.00,,2011-04-01,2011-09-30
"SENATOR THOMAS K. DUANE","MAINTENANCE & OPERATIONS","AT&T DIRECT MARKETING",,2011-09-20,"D.O. TELEPHONE SERVICES - VOUCHER# 4972",VENDOR,0.79,,2011-04-01,2011-09-30
"SENATOR THOMAS K. DUANE","MAINTENANCE & OPERATIONS","CHARLES RICHARDSON",,2011-09-28,"SUBSCRIPTIONS/PUBLICATIONS - VOUCHER# 5090",VENDOR,29.90,,2011-04-01,2011-09-30
"SENATOR THOMAS K. DUANE","MAINTENANCE & OPERATIONS","NEWMARK & COMPANY REAL ESTATE , INC",,2011-09-28,"D.O. LEASE - VOUCHER# 5142",VENDOR,4385.59,,2011-04-01,2011-09-30
"SENATOR THOMAS K. DUANE","MEMBER TRAVEL","DUANE,THOMAS",,2011-04-05,"LEGISLATIVE DUTIES-ALBANY - VOUCHER# 1800T",VENDOR,693.00,,2011-04-01,2011-09-30
"SENATOR THOMAS K. DUANE","MEMBER TRAVEL","DUANE,THOMAS",,2011-04-05,"LEGISLATIVE DUTIES-ALBANY - VOUCHER# 1850T",VENDOR,363.00,,2011-04-01,2011-09-30
"SENATOR THOMAS K. DUANE","MEMBER TRAVEL","DUANE,THOMAS",,2011-04-18,"LEGISLATIVE DUTIES-ALBANY - VOUCHER# 2097T",VENDOR,858.00,,2011-04-01,2011-09-30
"SENATOR THOMAS K. DUANE","MEMBER TRAVEL","DUANE,THOMAS",,2011-05-03,"LEGISLATIVE DUTIES-ALBANY - VOUCHER# 2461T",VENDOR,489.50,,2011-04-01,2011-09-30
"SENATOR THOMAS K. DUANE","MEMBER TRAVEL","DUANE,THOMAS",,2011-05-03,"LEGISLATIVE DUTIES-ALBANY - VOUCHER# 2462T",VENDOR,528.00,,2011-04-01,2011-09-30
"SENATOR THOMAS K. DUANE","MEMBER TRAVEL","DUANE,THOMAS",,2011-05-24,"LEGISLATIVE DUTIES-ALBANY - VOUCHER# 2855T",VENDOR,528.00,,2011-04-01,2011-09-30
"SENATOR THOMAS K. DUANE","MEMBER TRAVEL","DUANE,THOMAS",,2011-06-01,"LEGISLATIVE DUTIES-ALBANY - VOUCHER# 3014T",VENDOR,693.00,,2011-04-01,2011-09-30
"SENATOR THOMAS K. DUANE","MEMBER TRAVEL","DUANE,THOMAS",,2011-06-07,"LEGISLATIVE DUTIES-ALBANY - VOUCHER# 3177T",VENDOR,528.00,,2011-04-01,2011-09-30
"SENATOR THOMAS K. DUANE","MEMBER TRAVEL","DUANE,THOMAS",,2011-06-15,"LEGISLATIVE DUTIES-ALBANY - VOUCHER# 3302T",VENDOR,528.00,,2011-04-01,2011-09-30
"SENATOR THOMAS K. DUANE","MEMBER TRAVEL","DUANE,THOMAS",,2011-06-21,"LEGISLATIVE DUTIES-ALBANY - VOUCHER# 3431T",VENDOR,198.00,,2011-04-01,2011-09-30
"SENATOR THOMAS K. DUANE","MEMBER TRAVEL","DUANE,THOMAS",,2011-06-29,"LEGISLATIVE DUTIES-ALBANY - VOUCHER# 3571T",VENDOR,363.00,,2011-04-01,2011-09-30
"SENATOR THOMAS K. DUANE","MEMBER TRAVEL","DUANE,THOMAS",,2011-07-19,"LEGISLATIVE DUTIES-ALBANY - VOUCHER# 3989T",VENDOR,858.00,,2011-04-01,2011-09-30
"SENATOR THOMAS K. DUANE","MEMBER TRAVEL","DUANE,THOMAS",,2011-07-19,"LEGISLATIVE DUTIES-ALBANY - VOUCHER# 3990T",VENDOR,1188.00,,2011-04-01,2011-09-30
"SENATOR THOMAS K. DUANE","ALLOCATED OPERATIONAL EXPENSES",,,,"FIRST CLASS POSTAGE",AOE,221.59,"See Note Above",2011-04-01,2011-09-30
"SENATOR THOMAS K. DUANE","ALLOCATED OPERATIONAL EXPENSES",,,,"LONG DISTANCE TELEPHONE",AOE,39.83,"See Note Above",2011-04-01,2011-09-30
"SENATOR THOMAS K. DUANE","ALLOCATED OPERATIONAL EXPENSES",,,,"OFFICE SUPPLIES",AOE,797.55,"See Note Above",2011-04-01,2011-09-30
"SENATOR PEDRO ESPADA, JR","MAINTENANCE & OPERATIONS","JOURNAL VOUCHER",,2011-05-02,"D.O. ELECTRIC SERVICE - VOUCHER# 2485Z",VENDOR,437.19,,2011-04-01,2011-09-30
"SENATOR PEDRO ESPADA, JR","MAINTENANCE & OPERATIONS","JOURNAL VOUCHER",,2011-05-11,"D.O. ELECTRIC SERVICE - VOUCHER# 2728Z",VENDOR,128.31,,2011-04-01,2011-09-30
"SENATOR PEDRO ESPADA, JR","MAINTENANCE & OPERATIONS","JOURNAL VOUCHER",,2011-07-06,"D.O. ELECTRIC SERVICE - VOUCHER# 3882Z",VENDOR,380.25,,2011-04-01,2011-09-30
"SENATOR PEDRO ESPADA, JR","MAINTENANCE & OPERATIONS","JOURNAL VOUCHER",,2011-09-07,"D.O. ELECTRIC SERVICE CREDIT - VOUCHER# 4833Z",VENDOR,-1883.14,,2011-04-01,2011-09-30
"SENATOR ADRIANO ESPAILLAT","PERSONAL SERVICE","ESPAILLAT, ADRIANO",2011-03-31,2011-09-28,MEMBER,RA,39749.97,,2011-04-01,2011-09-30
"SENATOR ADRIANO ESPAILLAT","PERSONAL SERVICE","ESPAILLAT, ADRIANO",,2011-04-13,"RNKG MIN MEM SEN COMM HSG, CONS & CD",RA,6750.00,,2011-04-01,2011-09-30
"SENATOR ADRIANO ESPAILLAT","PERSONAL SERVICE","BATISTA, ANEIRY D",2011-03-17,2011-09-14,"CHIEF OF STAFF",RA,40000.09,,2011-04-01,2011-09-30
"SENATOR ADRIANO ESPAILLAT","PERSONAL SERVICE","CASTILLO-KESPER, ROSA MARIA",,2011-04-13,"LUMP SUM VACATION PAYMENT",VA,6511.02,"PAYMENT FOR SERVICES RENDERED PRIOR TO MARCH 17, 2011",2011-04-01,2011-09-30
"SENATOR ADRIANO ESPAILLAT","PERSONAL SERVICE","CASTILLO-KESPER, ROSA MARIA",2011-03-21,2011-06-22,"SPECIAL ADVISOR",TE,19550.01,,2011-04-01,2011-09-30
"SENATOR ADRIANO ESPAILLAT","PERSONAL SERVICE","DEOLEO, NURYS B",2011-06-09,2011-09-14,"SENIOR ADVISOR",RA,12500.01,,2011-04-01,2011-09-30
"SENATOR ADRIANO ESPAILLAT","PERSONAL SERVICE","GOMEZ, GLENNIS E",2011-03-17,2011-09-14,SCHEDULER,RA,17365.46,,2011-04-01,2011-09-30
"SENATOR ADRIANO ESPAILLAT","PERSONAL SERVICE","GUILLEN CASTRO, DISRAELIS",2011-03-17,2011-09-14,"PRESS DIRECTOR",SA,7500.09,,2011-04-01,2011-09-30
"SENATOR ADRIANO ESPAILLAT","PERSONAL SERVICE","JONES, JOSHUA M",2011-03-17,2011-09-14,"DIRECTOR OF OPERATIONS/ALBANY OFFICE",RA,15500.03,,2011-04-01,2011-09-30
"SENATOR ADRIANO ESPAILLAT","PERSONAL SERVICE","KHAN, MUHAMMAD I",2011-03-17,2011-09-14,"DEPUTY CHIEF OF STAFF",RA,36961.66,,2011-04-01,2011-09-30
"SENATOR ADRIANO ESPAILLAT","PERSONAL SERVICE","LORRIS RITTER, ELIZABETH",2011-03-17,2011-09-14,"COMMUNITY LIAISON",SA,12500.02,,2011-04-01,2011-09-30
"SENATOR ADRIANO ESPAILLAT","PERSONAL SERVICE","LOUIS, JOSE",2011-03-17,2011-09-14,"EXECUTIVE ASSISTANT",RA,12500.02,,2011-04-01,2011-09-30
"SENATOR ADRIANO ESPAILLAT","PERSONAL SERVICE","SCHACHTER, BENJAMIN J",2011-03-17,2011-09-14,"COMMUNITY LIAISON",RA,12403.87,,2011-04-01,2011-09-30
"SENATOR ADRIANO ESPAILLAT","PERSONAL SERVICE","SMITH, MARTIN",2011-03-17,2011-09-14,"DIRECTOR OF CONSTITUENT SERVICES",RA,11723.11,,2011-04-01,2011-09-30
"SENATOR ADRIANO ESPAILLAT","PERSONAL SERVICE","SONETT, JUDITH L",2011-03-17,2011-09-14,"COMMUNITY LIAISON",SA,10000.12,,2011-04-01,2011-09-30
"SENATOR ADRIANO ESPAILLAT","MAINTENANCE & OPERATIONS","AT&T DIRECT MARKETING",,2011-04-05,"D.O. TELEPHONE SERVICES - VOUCHER# 1873",VENDOR,44.52,,2011-04-01,2011-09-30
"SENATOR ADRIANO ESPAILLAT","MAINTENANCE & OPERATIONS","5030 BROADWAY PROPERTIES, LLC DBA WORKSPACE",,2011-04-18,"D.O. LEASE - VOUCHER# 2253",VENDOR,2524.34,,2011-04-01,2011-09-30
"SENATOR ADRIANO ESPAILLAT","MAINTENANCE & OPERATIONS",VERIZON,,2011-04-21,"D.O. TELEPHONE SERVICES - VOUCHER# 2010",VENDOR,238.78,,2011-04-01,2011-09-30
"SENATOR ADRIANO ESPAILLAT","MAINTENANCE & OPERATIONS","5030 BROADWAY PROPERTIES, LLC DBA WORKSPACE",,2011-04-27,"D.O. LEASE - VOUCHER# 2438",VENDOR,4337.17,,2011-04-01,2011-09-30
"SENATOR ADRIANO ESPAILLAT","MAINTENANCE & OPERATIONS","AT&T DIRECT MARKETING",,2011-05-10,"D.O. TELEPHONE SERVICES - VOUCHER# 2615",VENDOR,117.42,,2011-04-01,2011-09-30
"SENATOR ADRIANO ESPAILLAT","MAINTENANCE & OPERATIONS","FACILITY  VALUE",,2011-05-10,"D.O. CLEANING - VOUCHER# 2634",VENDOR,369.76,,2011-04-01,2011-09-30
"SENATOR ADRIANO ESPAILLAT","MAINTENANCE & OPERATIONS","FACILITY  VALUE",,2011-05-18,"D.O. CLEANING- 2 MONTHS - VOUCHER# 2785",VENDOR,739.52,,2011-04-01,2011-09-30
"SENATOR ADRIANO ESPAILLAT","MAINTENANCE & OPERATIONS","5030 BROADWAY PROPERTIES, LLC DBA WORKSPACE",,2011-05-24,"D.O. LEASE - VOUCHER# 2978",VENDOR,4337.17,,2011-04-01,2011-09-30
"SENATOR ADRIANO ESPAILLAT","MAINTENANCE & OPERATIONS",VERIZON,,2011-06-01,"D.O. TELEPHONE SERVICES - VOUCHER# 3092",VENDOR,276.09,,2011-04-01,2011-09-30
"SENATOR ADRIANO ESPAILLAT","MAINTENANCE & OPERATIONS",VERIZON,,2011-06-07,"D.O. TELEPHONE SERVICES - VOUCHER# 3224",VENDOR,207.71,,2011-04-01,2011-09-30
"SENATOR ADRIANO ESPAILLAT","MAINTENANCE & OPERATIONS","AT&T DIRECT MARKETING",,2011-06-14,"D.O. TELEPHONE SERVICES - VOUCHER# 3364",VENDOR,58.29,,2011-04-01,2011-09-30
"SENATOR ADRIANO ESPAILLAT","MAINTENANCE & OPERATIONS","FACILITY  VALUE",,2011-06-21,"D.O. CLEANING - VOUCHER# 3519",VENDOR,369.76,,2011-04-01,2011-09-30
"SENATOR ADRIANO ESPAILLAT","MAINTENANCE & OPERATIONS","5030 BROADWAY PROPERTIES, LLC DBA WORKSPACE",,2011-06-29,"D.O. LEASE - VOUCHER# 3733",VENDOR,4337.17,,2011-04-01,2011-09-30
"SENATOR ADRIANO ESPAILLAT","MAINTENANCE & OPERATIONS","AT&T DIRECT MARKETING",,2011-07-06,"D.O. TELEPHONE SERVICES - VOUCHER# 3831",VENDOR,91.76,,2011-04-01,2011-09-30
"SENATOR ADRIANO ESPAILLAT","MAINTENANCE & OPERATIONS",VERIZON,,2011-07-12,"D.O. TELEPHONE SERVICES - VOUCHER# 3937",VENDOR,183.99,,2011-04-01,2011-09-30
"SENATOR ADRIANO ESPAILLAT","MAINTENANCE & OPERATIONS","5030 BROADWAY PROPERTIES, LLC DBA WORKSPACE",,2011-07-26,"D.O. LEASE - VOUCHER# 4212",VENDOR,4337.17,,2011-04-01,2011-09-30
"SENATOR ADRIANO ESPAILLAT","MAINTENANCE & OPERATIONS","AT&T DIRECT MARKETING",,2011-08-02,"D.O. TELEPHONE SERVICES - VOUCHER# 4273",VENDOR,29.06,,2011-04-01,2011-09-30
"SENATOR ADRIANO ESPAILLAT","MAINTENANCE & OPERATIONS","LAST STOP CONVENIENCE CORPORATION",,2011-08-16,"SUBSCRIPTIONS/PUBLICATIONS - VOUCHER# 4503",VENDOR,154.00,,2011-04-01,2011-09-30
"SENATOR ADRIANO ESPAILLAT","MAINTENANCE & OPERATIONS",VERIZON,,2011-08-16,"D.O. TELEPHONE SERVICES - VOUCHER# 4448",VENDOR,191.59,,2011-04-01,2011-09-30
"SENATOR ADRIANO ESPAILLAT","MAINTENANCE & OPERATIONS","5030 BROADWAY PROPERTIES, LLC DBA WORKSPACE",,2011-08-23,"D.O. LEASE - VOUCHER# 4673",VENDOR,4337.17,,2011-04-01,2011-09-30
"SENATOR ADRIANO ESPAILLAT","MAINTENANCE & OPERATIONS","FACILITY  VALUE",,2011-08-23,"D.O. CLEANING-2 MONTHS - VOUCHER# 4596",VENDOR,739.52,,2011-04-01,2011-09-30
"SENATOR ADRIANO ESPAILLAT","MAINTENANCE & OPERATIONS","MAILFINANCE INC. DBA HASLER",,2011-09-08,"D.O. MAILING EQUIPMENT LEASE - VOUCHER# 4812",VENDOR,149.97,,2011-04-01,2011-09-30
"SENATOR ADRIANO ESPAILLAT","MAINTENANCE & OPERATIONS","LAST STOP CONVENIENCE CORPORATION",,2011-09-13,"SUBSCRIPTIONS/PUBLICATIONS - VOUCHER# 4908",VENDOR,140.00,,2011-04-01,2011-09-30
"SENATOR ADRIANO ESPAILLAT","MAINTENANCE & OPERATIONS","AT&T DIRECT MARKETING",,2011-09-20,"D.O. TELEPHONE SERVICES - VOUCHER# 4972",VENDOR,113.56,,2011-04-01,2011-09-30
"SENATOR ADRIANO ESPAILLAT","MAINTENANCE & OPERATIONS","FACILITY  VALUE",,2011-09-20,"D.O. CLEANING - VOUCHER# 4985",VENDOR,369.76,,2011-04-01,2011-09-30
"SENATOR ADRIANO ESPAILLAT","MAINTENANCE & OPERATIONS","5030 BROADWAY PROPERTIES, LLC DBA WORKSPACE",,2011-09-28,"D.O. LEASE - VOUCHER# 5157",VENDOR,4337.17,,2011-04-01,2011-09-30
"SENATOR ADRIANO ESPAILLAT","MEMBER TRAVEL","ESPAILLAT,ADRIANO",,2011-04-05,"LEGISLATIVE DUTIES-ALBANY - VOUCHER# 1801T",VENDOR,528.00,,2011-04-01,2011-09-30
"SENATOR ADRIANO ESPAILLAT","MEMBER TRAVEL","ESPAILLAT,ADRIANO",,2011-04-05,"LEGISLATIVE DUTIES-ALBANY - VOUCHER# 1802T",VENDOR,693.00,,2011-04-01,2011-09-30
"SENATOR ADRIANO ESPAILLAT","MEMBER TRAVEL","ESPAILLAT,ADRIANO",,2011-04-13,"LEGISLATIVE DUTIES-ALBANY - VOUCHER# 1949T",VENDOR,1231.50,,2011-04-01,2011-09-30
"SENATOR ADRIANO ESPAILLAT","MEMBER TRAVEL","ESPAILLAT,ADRIANO",,2011-05-03,"LEGISLATIVE DUTIES-ALBANY - VOUCHER# 2463T",VENDOR,451.50,,2011-04-01,2011-09-30
"SENATOR ADRIANO ESPAILLAT","MEMBER TRAVEL","ESPAILLAT,ADRIANO",,2011-05-03,"LEGISLATIVE DUTIES-ALBANY - VOUCHER# 2464T",VENDOR,528.00,,2011-04-01,2011-09-30
"SENATOR ADRIANO ESPAILLAT","MEMBER TRAVEL","ESPAILLAT,ADRIANO",,2011-05-18,"LEGISLATIVE DUTIES-ALBANY - VOUCHER# 2710T",VENDOR,445.00,,2011-04-01,2011-09-30
"SENATOR ADRIANO ESPAILLAT","MEMBER TRAVEL","ESPAILLAT,ADRIANO",,2011-05-24,"LEGISLATIVE DUTIES-ALBANY - VOUCHER# 2881T",VENDOR,559.75,,2011-04-01,2011-09-30
"SENATOR ADRIANO ESPAILLAT","MEMBER TRAVEL","ESPAILLAT,ADRIANO",,2011-06-07,"LEGISLATIVE DUTIES-ALBANY - VOUCHER# 3178T",VENDOR,528.00,,2011-04-01,2011-09-30
"SENATOR ADRIANO ESPAILLAT","MEMBER TRAVEL","ESPAILLAT,ADRIANO",,2011-06-07,"LEGISLATIVE DUTIES-ALBANY - VOUCHER# 3179T",VENDOR,528.00,,2011-04-01,2011-09-30
"SENATOR ADRIANO ESPAILLAT","MEMBER TRAVEL","ESPAILLAT,ADRIANO",,2011-06-15,"LEGISLATIVE DUTIES-ALBANY - VOUCHER# 3303T",VENDOR,363.00,,2011-04-01,2011-09-30
"SENATOR ADRIANO ESPAILLAT","MEMBER TRAVEL","ESPAILLAT,ADRIANO",,2011-06-21,"LEGISLATIVE DUTIES-ALBANY - VOUCHER# 3432T",VENDOR,397.25,,2011-04-01,2011-09-30
"SENATOR ADRIANO ESPAILLAT","MEMBER TRAVEL","ESPAILLAT,ADRIANO",,2011-06-29,"LEGISLATIVE DUTIES-ALBANY - VOUCHER# 3572T",VENDOR,858.00,,2011-04-01,2011-09-30
"SENATOR ADRIANO ESPAILLAT","MEMBER TRAVEL","ESPAILLAT,ADRIANO",,2011-07-12,"LEGISLATIVE DUTIES-ALBANY - VOUCHER# 3910T",VENDOR,1036.25,,2011-04-01,2011-09-30
"SENATOR ADRIANO ESPAILLAT","ALLOCATED OPERATIONAL EXPENSES",,,,"FIRST CLASS POSTAGE",AOE,544.84,"See Note Above",2011-04-01,2011-09-30
"SENATOR ADRIANO ESPAILLAT","ALLOCATED OPERATIONAL EXPENSES",,,,"BULK RATE POSTAGE",AOE,11017.91,"See Note Above",2011-04-01,2011-09-30
"SENATOR ADRIANO ESPAILLAT","ALLOCATED OPERATIONAL EXPENSES",,,,"LONG DISTANCE TELEPHONE",AOE,90.92,"See Note Above",2011-04-01,2011-09-30
"SENATOR ADRIANO ESPAILLAT","ALLOCATED OPERATIONAL EXPENSES",,,,"OFFICE SUPPLIES",AOE,1289.51,"See Note Above",2011-04-01,2011-09-30
"SENATOR HUGH T. FARLEY","PERSONAL SERVICE","FARLEY, HUGH T",2011-03-31,2011-09-28,MEMBER,RA,39749.97,,2011-04-01,2011-09-30
"SENATOR HUGH T. FARLEY","PERSONAL SERVICE","FARLEY, HUGH T",,2011-04-13,"CHAIR MAJ PROGRAM DEVELOPMENT COMM",RA,18750.00,,2011-04-01,2011-09-30
"SENATOR HUGH T. FARLEY","PERSONAL SERVICE","CARDILLO, CATHY L",2011-03-17,2011-09-14,"STAFF COORDINATOR",RA,33230.84,,2011-04-01,2011-09-30
"SENATOR HUGH T. FARLEY","PERSONAL SERVICE","CONKLING-DONOVAN, JENNIFER P",2011-03-17,2011-09-14,"ADMINISTRATIVE ASSISTANT",RA,19538.56,,2011-04-01,2011-09-30
"SENATOR HUGH T. FARLEY","PERSONAL SERVICE","DUNCAN, ERIN E",2011-03-17,2011-09-14,"PROJECT COORDINATOR",SA,15500.03,,2011-04-01,2011-09-30
"SENATOR HUGH T. FARLEY","PERSONAL SERVICE","EDMAN, PETER A",2011-03-17,2011-09-14,"EXECUTIVE ASSISTANT",RA,34461.57,,2011-04-01,2011-09-30
"SENATOR HUGH T. FARLEY","PERSONAL SERVICE","ELLIS, TRACY A",2011-03-17,2011-09-14,"LEGISLATIVE ASSISTANT",SA,19570.07,,2011-04-01,2011-09-30
"SENATOR HUGH T. FARLEY","PERSONAL SERVICE","GEDDIS, ROBERT W",2011-06-23,2011-08-28,"SPECIAL ASSISTANT",TE,8548.28,,2011-04-01,2011-09-30
"SENATOR HUGH T. FARLEY","PERSONAL SERVICE","JOST, ROBIN M",2011-03-17,2011-09-14,"LEGISLATIVE ASSISTANT",SA,20000.11,,2011-04-01,2011-09-30
"SENATOR HUGH T. FARLEY","PERSONAL SERVICE","KEVILLE, MARGARET",2011-07-05,2011-08-31,"EXECUTIVE SECRETARY",TE,4618.56,,2011-04-01,2011-09-30
"SENATOR HUGH T. FARLEY","PERSONAL SERVICE","MANSION, MICHAEL P",2011-03-17,2011-09-14,"ASSISTANT COUNSEL",SA,11250.07,,2011-04-01,2011-09-30
"SENATOR HUGH T. FARLEY","PERSONAL SERVICE","NOEL, LAURIE A",2011-03-17,2011-09-14,"LEGISLATIVE ASSISTANT",RA,17723.14,,2011-04-01,2011-09-30
"SENATOR HUGH T. FARLEY","PERSONAL SERVICE","PASTORE, DAWN M",2011-03-17,2011-09-14,SECRETARY,SA,6892.41,,2011-04-01,2011-09-30
"SENATOR HUGH T. FARLEY","PERSONAL SERVICE","PIETRUSZA, PATRICIA A",2011-03-17,2011-09-14,"STAFF DIRECTOR",SA,33500.09,,2011-04-01,2011-09-30
"SENATOR HUGH T. FARLEY","PERSONAL SERVICE","RODD, AGNES C",2011-03-17,2011-09-14,"DISTRICT COORDINATOR",SA,14653.88,,2011-04-01,2011-09-30
"SENATOR HUGH T. FARLEY","PERSONAL SERVICE","SUSKI, FRANCEINE D",2011-03-17,2011-09-14,"CONSTITUENT SERVICES COORDINATOR",RA,16000.00,,2011-04-01,2011-09-30
"SENATOR HUGH T. FARLEY","PERSONAL SERVICE","VALACHOVIC, MARIE K",2011-03-17,2011-09-14,"DISTRICT OFFICE COORDINATOR",SA,7500.09,,2011-04-01,2011-09-30
"SENATOR HUGH T. FARLEY","PERSONAL SERVICE","VERTUCCI, JANICE H",2011-03-17,2011-09-14,"DISTRICT COORDINATOR",SA,7000.11,,2011-04-01,2011-09-30
"SENATOR HUGH T. FARLEY","MAINTENANCE & OPERATIONS","AT&T DIRECT MARKETING",,2011-04-05,"D.O. TELEPHONE SERVICES - VOUCHER# 1873",VENDOR,2.16,,2011-04-01,2011-09-30
"SENATOR HUGH T. FARLEY","MAINTENANCE & OPERATIONS","FRONTIER COMMUNICATIONS CORPORATION",,2011-04-12,"D.O. TELEPHONE SERVICES - VOUCHER# 2035",VENDOR,124.07,,2011-04-01,2011-09-30
"SENATOR HUGH T. FARLEY","MAINTENANCE & OPERATIONS","NIAGARA MOHAWK POWER CORP SUBY  OF NATIONAL GRID USA",,2011-04-18,"D.O. ELECTRIC SERVICE - VOUCHER# 2235",VENDOR,205.17,,2011-04-01,2011-09-30
"SENATOR HUGH T. FARLEY","MAINTENANCE & OPERATIONS",VERIZON,,2011-04-21,"D.O. TELEPHONE SERVICES - VOUCHER# 2010",VENDOR,142.19,,2011-04-01,2011-09-30
"SENATOR HUGH T. FARLEY","MAINTENANCE & OPERATIONS","CELLCO PARTNERSHIP",,2011-04-27,"MOBILE PHONE-SEN. FARLEY - VOUCHER# 2357",VENDOR,31.91,,2011-04-01,2011-09-30
"SENATOR HUGH T. FARLEY","MAINTENANCE & OPERATIONS","CHARLES RICHARDSON",,2011-04-27,"SUBSCRIPTIONS/PUBLICATIONS - VOUCHER# 2371",VENDOR,158.40,,2011-04-01,2011-09-30
"SENATOR HUGH T. FARLEY","MAINTENANCE & OPERATIONS","CRANESVILLE PROPERTIES LLC",,2011-04-27,"D.O. LEASE - VOUCHER# 2418",VENDOR,499.32,,2011-04-01,2011-09-30
"SENATOR HUGH T. FARLEY","MAINTENANCE & OPERATIONS","EBSCO INDUSTRIES INC DBA EBSCO INFORMATION SERVICES",,2011-05-03,"SUBSCRIPTIONS/PUBLICATIONS - VOUCHER# 2502",VENDOR,873.81,,2011-04-01,2011-09-30
"SENATOR HUGH T. FARLEY","MAINTENANCE & OPERATIONS","AT&T DIRECT MARKETING",,2011-05-10,"D.O. TELEPHONE SERVICES - VOUCHER# 2615",VENDOR,2.45,,2011-04-01,2011-09-30
"SENATOR HUGH T. FARLEY","MAINTENANCE & OPERATIONS","D K & S ENTERPRISES, INC",,2011-05-10,"TABLE AND CHAIR RENTAL FOR HEALTH FAIR - VOUCHER# 2610",VENDOR,752.00,,2011-04-01,2011-09-30
"SENATOR HUGH T. FARLEY","MAINTENANCE & OPERATIONS","EBSCO INDUSTRIES INC DBA EBSCO INFORMATION SERVICES",,2011-05-10,"SUBSCRIPTIONS/PUBLICATIONS - VOUCHER# 2625",VENDOR,20.80,,2011-04-01,2011-09-30
"SENATOR HUGH T. FARLEY","MAINTENANCE & OPERATIONS","FRONTIER COMMUNICATIONS CORPORATION",,2011-05-10,"D.O. TELEPHONE SERVICES - VOUCHER# 2628",VENDOR,123.89,,2011-04-01,2011-09-30
"SENATOR HUGH T. FARLEY","MAINTENANCE & OPERATIONS","CHARLES RICHARDSON",,2011-05-18,"SUBSCRIPTIONS/PUBLICATIONS - VOUCHER# 2788",VENDOR,87.60,,2011-04-01,2011-09-30
"SENATOR HUGH T. FARLEY","MAINTENANCE & OPERATIONS","NIAGARA MOHAWK POWER CORP SUBY  OF NATIONAL GRID USA",,2011-05-18,"D.O. ELECTRIC SERVICE - VOUCHER# 2831",VENDOR,157.31,,2011-04-01,2011-09-30
"SENATOR HUGH T. FARLEY","MAINTENANCE & OPERATIONS","CRANESVILLE PROPERTIES LLC",,2011-05-24,"D.O. LEASE - VOUCHER# 2957",VENDOR,499.32,,2011-04-01,2011-09-30
"SENATOR HUGH T. FARLEY","MAINTENANCE & OPERATIONS","CELLCO PARTNERSHIP",,2011-06-01,"MOBILE PHONE-SEN. FARLEY - VOUCHER# 3111",VENDOR,33.24,,2011-04-01,2011-09-30
"SENATOR HUGH T. FARLEY","MAINTENANCE & OPERATIONS",VERIZON,,2011-06-01,"D.O. TELEPHONE SERVICES - VOUCHER# 3092",VENDOR,141.78,,2011-04-01,2011-09-30
"SENATOR HUGH T. FARLEY","MAINTENANCE & OPERATIONS",VERIZON,,2011-06-07,"D.O. TELEPHONE SERVICES - VOUCHER# 3224",VENDOR,148.63,,2011-04-01,2011-09-30
"SENATOR HUGH T. FARLEY","MAINTENANCE & OPERATIONS","AT&T DIRECT MARKETING",,2011-06-14,"D.O. TELEPHONE SERVICES - VOUCHER# 3364",VENDOR,3.28,,2011-04-01,2011-09-30
"SENATOR HUGH T. FARLEY","MAINTENANCE & OPERATIONS","FRONTIER COMMUNICATIONS CORPORATION",,2011-06-14,"D.O. TELEPHONE SERVICES - VOUCHER# 3377",VENDOR,123.89,,2011-04-01,2011-09-30
"SENATOR HUGH T. FARLEY","MAINTENANCE & OPERATIONS","NIAGARA MOHAWK POWER CORP SUBY  OF NATIONAL GRID USA",,2011-06-14,"D.O. ELECTRIC SERVICE - VOUCHER# 3415",VENDOR,157.00,,2011-04-01,2011-09-30
"SENATOR HUGH T. FARLEY","MAINTENANCE & OPERATIONS","CELLCO PARTNERSHIP",,2011-06-29,"MOBILE PHONE-SEN. FARLEY - VOUCHER# 3647",VENDOR,30.65,,2011-04-01,2011-09-30
"SENATOR HUGH T. FARLEY","MAINTENANCE & OPERATIONS","CHARLES RICHARDSON",,2011-06-29,"SUBSCRIPTIONS/PUBLICATIONS - VOUCHER# 3658",VENDOR,92.60,,2011-04-01,2011-09-30
"SENATOR HUGH T. FARLEY","MAINTENANCE & OPERATIONS","CRANESVILLE PROPERTIES LLC",,2011-06-29,"D.O. LEASE - VOUCHER# 3711",VENDOR,499.32,,2011-04-01,2011-09-30
"SENATOR HUGH T. FARLEY","MAINTENANCE & OPERATIONS","AT&T DIRECT MARKETING",,2011-07-06,"D.O. TELEPHONE SERVICES - VOUCHER# 3831",VENDOR,1.04,,2011-04-01,2011-09-30
"SENATOR HUGH T. FARLEY","MAINTENANCE & OPERATIONS","FRONTIER COMMUNICATIONS CORPORATION",,2011-07-06,"D.O. TELEPHONE SERVICES - VOUCHER# 3843",VENDOR,123.89,,2011-04-01,2011-09-30
"SENATOR HUGH T. FARLEY","MAINTENANCE & OPERATIONS",VERIZON,,2011-07-12,"D.O. TELEPHONE SERVICES - VOUCHER# 3937",VENDOR,145.98,,2011-04-01,2011-09-30
"SENATOR HUGH T. FARLEY","MAINTENANCE & OPERATIONS","NIAGARA MOHAWK POWER CORP SUBY  OF NATIONAL GRID USA",,2011-07-19,"D.O. ELECTRIC SERVICE - VOUCHER# 4095",VENDOR,214.11,,2011-04-01,2011-09-30
"SENATOR HUGH T. FARLEY","MAINTENANCE & OPERATIONS","CHARLES RICHARDSON",,2011-07-26,"SUBSCRIPTIONS/PUBLICATIONS - VOUCHER# 4146",VENDOR,87.60,,2011-04-01,2011-09-30
"SENATOR HUGH T. FARLEY","MAINTENANCE & OPERATIONS","CRANESVILLE PROPERTIES LLC",,2011-07-26,"D.O. LEASE - VOUCHER# 4190",VENDOR,499.32,,2011-04-01,2011-09-30
"SENATOR HUGH T. FARLEY","MAINTENANCE & OPERATIONS","AT&T DIRECT MARKETING",,2011-08-02,"D.O. TELEPHONE SERVICES - VOUCHER# 4273",VENDOR,2.30,,2011-04-01,2011-09-30
"SENATOR HUGH T. FARLEY","MAINTENANCE & OPERATIONS","CELLCO PARTNERSHIP",,2011-08-02,"MOBILE PHONE-SEN. FARLEY - VOUCHER# 4282",VENDOR,33.26,,2011-04-01,2011-09-30
"SENATOR HUGH T. FARLEY","MAINTENANCE & OPERATIONS","CHARLES RICHARDSON",,2011-08-10,"SUBSCRIPTIONS/PUBLICATIONS - VOUCHER# 4381",VENDOR,92.60,,2011-04-01,2011-09-30
"SENATOR HUGH T. FARLEY","MAINTENANCE & OPERATIONS","FRONTIER COMMUNICATIONS CORPORATION",,2011-08-16,"D.O. TELEPHONE SERVICES - VOUCHER# 4461",VENDOR,123.74,,2011-04-01,2011-09-30
"SENATOR HUGH T. FARLEY","MAINTENANCE & OPERATIONS","NIAGARA MOHAWK POWER CORP SUBY  OF NATIONAL GRID USA",,2011-08-16,"D.O. ELECTRIC SERVICE - VOUCHER# 4515",VENDOR,213.99,,2011-04-01,2011-09-30
"SENATOR HUGH T. FARLEY","MAINTENANCE & OPERATIONS",VERIZON,,2011-08-16,"D.O. TELEPHONE SERVICES - VOUCHER# 4448",VENDOR,141.42,,2011-04-01,2011-09-30
"SENATOR HUGH T. FARLEY","MAINTENANCE & OPERATIONS","CRANESVILLE PROPERTIES LLC",,2011-08-23,"D.O. LEASE - VOUCHER# 4651",VENDOR,499.32,,2011-04-01,2011-09-30
"SENATOR HUGH T. FARLEY","MAINTENANCE & OPERATIONS","CELLCO PARTNERSHIP",,2011-09-08,"MOBILE PHONE-SEN. FARLEY - VOUCHER# 4795",VENDOR,31.93,,2011-04-01,2011-09-30
"SENATOR HUGH T. FARLEY","MAINTENANCE & OPERATIONS","NIAGARA MOHAWK POWER CORP SUBY  OF NATIONAL GRID USA",,2011-09-13,"D.O. ELECTRIC SERVICE - VOUCHER# 4924",VENDOR,269.86,,2011-04-01,2011-09-30
"SENATOR HUGH T. FARLEY","MAINTENANCE & OPERATIONS","AT&T DIRECT MARKETING",,2011-09-20,"D.O. TELEPHONE SERVICES - VOUCHER# 4972",VENDOR,1.96,,2011-04-01,2011-09-30
"SENATOR HUGH T. FARLEY","MAINTENANCE & OPERATIONS","FRONTIER COMMUNICATIONS CORPORATION",,2011-09-20,"D.O. TELEPHONE SERVICES - VOUCHER# 4980",VENDOR,123.74,,2011-04-01,2011-09-30
"SENATOR HUGH T. FARLEY","MAINTENANCE & OPERATIONS","CELLCO PARTNERSHIP",,2011-09-28,"MOBILE PHONE-SEN. FARLEY - VOUCHER# 5082",VENDOR,31.93,,2011-04-01,2011-09-30
"SENATOR HUGH T. FARLEY","MAINTENANCE & OPERATIONS","CHARLES RICHARDSON",,2011-09-28,"SUBSCRIPTIONS/PUBLICATIONS - VOUCHER# 5090",VENDOR,90.20,,2011-04-01,2011-09-30
"SENATOR HUGH T. FARLEY","MAINTENANCE & OPERATIONS","CRANESVILLE PROPERTIES LLC",,2011-09-28,"D.O. LEASE - VOUCHER# 5135",VENDOR,499.32,,2011-04-01,2011-09-30
"SENATOR HUGH T. FARLEY","MEMBER TRAVEL","FARLEY, HUGH",,2011-09-08,"CONFERENCE-HALIFAX, NOVA SCOTIA - VOUCHER# 4770T",VENDOR,2708.25,,2011-04-01,2011-09-30
"SENATOR HUGH T. FARLEY","MEMBER TRAVEL","COUNCIL OF STATE GOVERNMENTS",,2011-09-13,"REGISTRATION FEE(S)-SEN.FARLEY-HALIFAX,NOVA SCOTIA - VOUCHER# 4919T",VENDOR,350.00,,2011-04-01,2011-09-30
"SENATOR HUGH T. FARLEY","ALLOCATED OPERATIONAL EXPENSES",,,,"FIRST CLASS POSTAGE",AOE,2586.12,"See Note Above",2011-04-01,2011-09-30
"SENATOR HUGH T. FARLEY","ALLOCATED OPERATIONAL EXPENSES",,,,"BULK RATE POSTAGE",AOE,35080.41,"See Note Above",2011-04-01,2011-09-30
"SENATOR HUGH T. FARLEY","ALLOCATED OPERATIONAL EXPENSES",,,,"LONG DISTANCE TELEPHONE",AOE,130.31,"See Note Above",2011-04-01,2011-09-30
"SENATOR HUGH T. FARLEY","ALLOCATED OPERATIONAL EXPENSES",,,,"OFFICE SUPPLIES",AOE,1585.13,"See Note Above",2011-04-01,2011-09-30
"SENATOR JOHN J. FLANAGAN","PERSONAL SERVICE","FLANAGAN, JOHN J",2011-03-31,2011-09-28,MEMBER,RA,39749.97,,2011-04-01,2011-09-30
"SENATOR JOHN J. FLANAGAN","PERSONAL SERVICE","FLANAGAN, JOHN J",,2011-04-13,"CHAIR SEN COMMITTEE ON EDUCATION",RA,13500.00,,2011-04-01,2011-09-30
"SENATOR JOHN J. FLANAGAN","PERSONAL SERVICE","AURIANA, JULIE M",2011-03-17,2011-09-14,"ADMINISTRATIVE ASSISTANT",RA,24000.08,,2011-04-01,2011-09-30
"SENATOR JOHN J. FLANAGAN","PERSONAL SERVICE","BENNARDO, RAYMOND M",2011-03-17,2011-09-14,"CHIEF OF STAFF",RA,50000.08,,2011-04-01,2011-09-30
"SENATOR JOHN J. FLANAGAN","PERSONAL SERVICE","CAROPPOLI, ROBERT M",2011-03-17,2011-09-14,"COMMUNICATIONS DIRECTOR",RA,34000.07,,2011-04-01,2011-09-30
"SENATOR JOHN J. FLANAGAN","PERSONAL SERVICE","DECARMINE-NUCCI, CAROL A",2011-03-03,2011-08-19,"LEGISLATIVE AIDE",TE,4180.00,,2011-04-01,2011-09-30
"SENATOR JOHN J. FLANAGAN","PERSONAL SERVICE","LANG, ANNMARIE",2011-03-17,2011-09-14,"LEGISLATIVE AIDE",RA,25500.02,,2011-04-01,2011-09-30
"SENATOR JOHN J. FLANAGAN","PERSONAL SERVICE","MEYER, ANGELA",2011-03-17,2011-09-14,"DIRECTOR CONSTITUENT RELATIONS",RA,30000.10,,2011-04-01,2011-09-30
"SENATOR JOHN J. FLANAGAN","PERSONAL SERVICE","MUELLER, ROBIN J",2011-03-17,2011-09-14,"COMMITTEE CLERK/OFFICE MANAGER",RA,27500.07,,2011-04-01,2011-09-30
"SENATOR JOHN J. FLANAGAN","PERSONAL SERVICE","SCHNELL, NANCY A",2011-03-17,2011-09-14,"DIST. OFFICE COMMUNICATIONS COORD.",SA,12500.02,,2011-04-01,2011-09-30
"SENATOR JOHN J. FLANAGAN","PERSONAL SERVICE","WASHBURN, BLAKE D",2011-03-17,2011-06-30,"STUDENT AIDE",SA,5122.50,,2011-04-01,2011-09-30
"SENATOR JOHN J. FLANAGAN","PERSONAL SERVICE","WASHBURN, BLAKE D",,2011-08-31,"LUMP SUM VACATION PAYMENT",VA,315.00,,2011-04-01,2011-09-30
"SENATOR JOHN J. FLANAGAN","PERSONAL SERVICE","WILUTIS, KAREN M",2011-03-17,2011-09-14,"LEGISLATIVE COMMITTEE DIRECTOR",SA,30730.82,,2011-04-01,2011-09-30
"SENATOR JOHN J. FLANAGAN","MAINTENANCE & OPERATIONS","AT&T DIRECT MARKETING",,2011-04-05,"D.O. TELEPHONE SERVICES - VOUCHER# 1873",VENDOR,8.04,,2011-04-01,2011-09-30
"SENATOR JOHN J. FLANAGAN","MAINTENANCE & OPERATIONS","EBSCO INDUSTRIES INC DBA EBSCO INFORMATION SERVICES",,2011-04-18,"SUBSCRIPTIONS/PUBLICATIONS - VOUCHER# 2184",VENDOR,93.54,,2011-04-01,2011-09-30
"SENATOR JOHN J. FLANAGAN","MAINTENANCE & OPERATIONS","TRI-STATE BLDG. SERVICES, INC.",,2011-04-18,"D.O. CLEANING - VOUCHER# 2197",VENDOR,250.00,,2011-04-01,2011-09-30
"SENATOR JOHN J. FLANAGAN","MAINTENANCE & OPERATIONS",VERIZON,,2011-04-21,"D.O. TELEPHONE SERVICES - VOUCHER# 2010",VENDOR,189.56,,2011-04-01,2011-09-30
"SENATOR JOHN J. FLANAGAN","MAINTENANCE & OPERATIONS","260 MIDDLE COUNTRY ROAD LLC",,2011-04-27,"D.O. LEASE - VOUCHER# 2420",VENDOR,3249.62,,2011-04-01,2011-09-30
"SENATOR JOHN J. FLANAGAN","MAINTENANCE & OPERATIONS","CHARLES RICHARDSON",,2011-04-27,"SUBSCRIPTIONS/PUBLICATIONS - VOUCHER# 2371",VENDOR,182.70,,2011-04-01,2011-09-30
"SENATOR JOHN J. FLANAGAN","MAINTENANCE & OPERATIONS","EBSCO INDUSTRIES INC DBA EBSCO INFORMATION SERVICES",,2011-05-03,"SUBSCRIPTIONS/PUBLICATIONS - VOUCHER# 2502",VENDOR,90.48,,2011-04-01,2011-09-30
"SENATOR JOHN J. FLANAGAN","MAINTENANCE & OPERATIONS","AT&T DIRECT MARKETING",,2011-05-10,"D.O. TELEPHONE SERVICES - VOUCHER# 2615",VENDOR,15.31,,2011-04-01,2011-09-30
"SENATOR JOHN J. FLANAGAN","MAINTENANCE & OPERATIONS","EBSCO INDUSTRIES INC DBA EBSCO INFORMATION SERVICES",,2011-05-10,"SUBSCRIPTIONS/PUBLICATIONS - VOUCHER# 2625",VENDOR,245.44,,2011-04-01,2011-09-30
"SENATOR JOHN J. FLANAGAN","MAINTENANCE & OPERATIONS","FORTUNE TOBACCO INC DBA MR. TO BACCO SHOP",,2011-05-10,"SUBSCRIPTIONS/PUBLICATIONS-30 MONTHS - VOUCHER# 2640",VENDOR,2433.75,,2011-04-01,2011-09-30
"SENATOR JOHN J. FLANAGAN","MAINTENANCE & OPERATIONS","CHARLES RICHARDSON",,2011-05-18,"SUBSCRIPTIONS/PUBLICATIONS - VOUCHER# 2788",VENDOR,92.00,,2011-04-01,2011-09-30
"SENATOR JOHN J. FLANAGAN","MAINTENANCE & OPERATIONS","TRI-STATE BLDG. SERVICES, INC.",,2011-05-18,"D.O. CLEANING - VOUCHER# 2790",VENDOR,250.00,,2011-04-01,2011-09-30
"SENATOR JOHN J. FLANAGAN","MAINTENANCE & OPERATIONS","260 MIDDLE COUNTRY ROAD LLC",,2011-05-24,"D.O. LEASE - VOUCHER# 2959",VENDOR,3249.62,,2011-04-01,2011-09-30
"SENATOR JOHN J. FLANAGAN","MAINTENANCE & OPERATIONS",VERIZON,,2011-06-01,"D.O. TELEPHONE SERVICES - VOUCHER# 3092",VENDOR,174.78,,2011-04-01,2011-09-30
"SENATOR JOHN J. FLANAGAN","MAINTENANCE & OPERATIONS",VERIZON,,2011-06-07,"D.O. TELEPHONE SERVICES - VOUCHER# 3224",VENDOR,169.64,,2011-04-01,2011-09-30
"SENATOR JOHN J. FLANAGAN","MAINTENANCE & OPERATIONS","AT&T DIRECT MARKETING",,2011-06-14,"D.O. TELEPHONE SERVICES - VOUCHER# 3364",VENDOR,7.34,,2011-04-01,2011-09-30
"SENATOR JOHN J. FLANAGAN","MAINTENANCE & OPERATIONS","CHARLES RICHARDSON",,2011-06-14,"SUBSCRIPTIONS/PUBLICATIONS - VOUCHER# 3386",VENDOR,96.60,,2011-04-01,2011-09-30
"SENATOR JOHN J. FLANAGAN","MAINTENANCE & OPERATIONS","TRI-STATE BLDG. SERVICES, INC.",,2011-06-14,"D.O. CLEANING - VOUCHER# 3388",VENDOR,250.00,,2011-04-01,2011-09-30
"SENATOR JOHN J. FLANAGAN","MAINTENANCE & OPERATIONS","260 MIDDLE COUNTRY ROAD LLC",,2011-06-29,"D.O. LEASE - VOUCHER# 3713",VENDOR,3249.62,,2011-04-01,2011-09-30
"SENATOR JOHN J. FLANAGAN","MAINTENANCE & OPERATIONS","AT&T DIRECT MARKETING",,2011-07-06,"D.O. TELEPHONE SERVICES - VOUCHER# 3831",VENDOR,8.86,,2011-04-01,2011-09-30
"SENATOR JOHN J. FLANAGAN","MAINTENANCE & OPERATIONS",VERIZON,,2011-07-12,"D.O. TELEPHONE SERVICES - VOUCHER# 3937",VENDOR,172.44,,2011-04-01,2011-09-30
"SENATOR JOHN J. FLANAGAN","MAINTENANCE & OPERATIONS","TRI-STATE BLDG. SERVICES, INC.",,2011-07-19,"D.O. CLEANING - VOUCHER# 4058",VENDOR,250.00,,2011-04-01,2011-09-30
"SENATOR JOHN J. FLANAGAN","MAINTENANCE & OPERATIONS","260 MIDDLE COUNTRY ROAD LLC",,2011-07-26,"D.O. LEASE - VOUCHER# 4192",VENDOR,3249.62,,2011-04-01,2011-09-30
"SENATOR JOHN J. FLANAGAN","MAINTENANCE & OPERATIONS","CHARLES RICHARDSON",,2011-07-26,"SUBSCRIPTIONS/PUBLICATIONS - VOUCHER# 4146",VENDOR,101.20,,2011-04-01,2011-09-30
"SENATOR JOHN J. FLANAGAN","MAINTENANCE & OPERATIONS","AT&T DIRECT MARKETING",,2011-08-02,"D.O. TELEPHONE SERVICES - VOUCHER# 4273",VENDOR,11.30,,2011-04-01,2011-09-30
"SENATOR JOHN J. FLANAGAN","MAINTENANCE & OPERATIONS","CHARLES RICHARDSON",,2011-08-10,"SUBSCRIPTIONS/PUBLICATIONS - VOUCHER# 4381",VENDOR,98.00,,2011-04-01,2011-09-30
"SENATOR JOHN J. FLANAGAN","MAINTENANCE & OPERATIONS","SPECIALTY CARDS INC./DBA CARD-TIQUE",,2011-08-16,"SUBSCRIPTIONS/PUBLICATIONS - VOUCHER# 4501",VENDOR,213.00,,2011-04-01,2011-09-30
"SENATOR JOHN J. FLANAGAN","MAINTENANCE & OPERATIONS","TRI-STATE BLDG. SERVICES, INC.",,2011-08-16,"D.O. CLEANING - VOUCHER# 4477",VENDOR,250.00,,2011-04-01,2011-09-30
"SENATOR JOHN J. FLANAGAN","MAINTENANCE & OPERATIONS",VERIZON,,2011-08-16,"D.O. TELEPHONE SERVICES - VOUCHER# 4448",VENDOR,165.91,,2011-04-01,2011-09-30
"SENATOR JOHN J. FLANAGAN","MAINTENANCE & OPERATIONS","260 MIDDLE COUNTRY ROAD LLC",,2011-08-23,"D.O. LEASE - VOUCHER# 4653",VENDOR,3249.62,,2011-04-01,2011-09-30
"SENATOR JOHN J. FLANAGAN","MAINTENANCE & OPERATIONS","MAILFINANCE INC. DBA HASLER",,2011-09-08,"D.O. MAILING EQUIPMENT LEASE - VOUCHER# 4812",VENDOR,149.97,,2011-04-01,2011-09-30
"SENATOR JOHN J. FLANAGAN","MAINTENANCE & OPERATIONS","TRI-STATE BLDG. SERVICES, INC.",,2011-09-13,"D.O. CLEANING - VOUCHER# 4889",VENDOR,250.00,,2011-04-01,2011-09-30
"SENATOR JOHN J. FLANAGAN","MAINTENANCE & OPERATIONS","AT&T DIRECT MARKETING",,2011-09-20,"D.O. TELEPHONE SERVICES - VOUCHER# 4972",VENDOR,4.82,,2011-04-01,2011-09-30
"SENATOR JOHN J. FLANAGAN","MAINTENANCE & OPERATIONS","SPECIALTY CARDS INC./DBA CARD-TIQUE",,2011-09-20,"SUBSCRIPTIONS/PUBLICATIONS - VOUCHER# 5006",VENDOR,198.00,,2011-04-01,2011-09-30
"SENATOR JOHN J. FLANAGAN","MAINTENANCE & OPERATIONS","260 MIDDLE COUNTRY ROAD LLC",,2011-09-28,"D.O. LEASE - VOUCHER# 5137",VENDOR,3249.62,,2011-04-01,2011-09-30
"SENATOR JOHN J. FLANAGAN","MAINTENANCE & OPERATIONS","CHARLES RICHARDSON",,2011-09-28,"SUBSCRIPTIONS/PUBLICATIONS - VOUCHER# 5090",VENDOR,112.70,,2011-04-01,2011-09-30
"SENATOR JOHN J. FLANAGAN","MEMBER TRAVEL","FLANAGAN,JOHN",,2011-04-13,"LEGISLATIVE DUTIES-ALBANY - VOUCHER# 1950T",VENDOR,903.90,,2011-04-01,2011-09-30
"SENATOR JOHN J. FLANAGAN","MEMBER TRAVEL","FLANAGAN,JOHN",,2011-04-13,"LEGISLATIVE DUTIES-ALBANY - VOUCHER# 1951T",VENDOR,1151.84,,2011-04-01,2011-09-30
"SENATOR JOHN J. FLANAGAN","MEMBER TRAVEL","FLANAGAN,JOHN",,2011-04-13,"LEGISLATIVE DUTIES-ALBANY - VOUCHER# 1952T",VENDOR,738.90,,2011-04-01,2011-09-30
"SENATOR JOHN J. FLANAGAN","MEMBER TRAVEL","FLANAGAN,JOHN",,2011-05-10,"LEGISLATIVE DUTIES-ALBANY - VOUCHER# 2535T",VENDOR,1068.90,,2011-04-01,2011-09-30
"SENATOR JOHN J. FLANAGAN","MEMBER TRAVEL","FLANAGAN,JOHN",,2011-05-10,"LEGISLATIVE DUTIES-ALBANY - VOUCHER# 2536T",VENDOR,903.90,,2011-04-01,2011-09-30
"SENATOR JOHN J. FLANAGAN","MEMBER TRAVEL","FLANAGAN,JOHN",,2011-05-10,"LEGISLATIVE DUTIES-ALBANY - VOUCHER# 2537T",VENDOR,243.90,,2011-04-01,2011-09-30
"SENATOR JOHN J. FLANAGAN","MEMBER TRAVEL","FLANAGAN,JOHN",,2011-05-10,"LEGISLATIVE DUTIES-ALBANY - VOUCHER# 2538T",VENDOR,573.90,,2011-04-01,2011-09-30
"SENATOR JOHN J. FLANAGAN","MEMBER TRAVEL","FLANAGAN,JOHN",,2011-06-29,"LEGISLATIVE DUTIES-ALBANY - VOUCHER# 3609T",VENDOR,738.90,,2011-04-01,2011-09-30
"SENATOR JOHN J. FLANAGAN","MEMBER TRAVEL","FLANAGAN,JOHN",,2011-06-29,"LEGISLATIVE DUTIES-ALBANY - VOUCHER# 3610T",VENDOR,738.90,,2011-04-01,2011-09-30
"SENATOR JOHN J. FLANAGAN","MEMBER TRAVEL","FLANAGAN,JOHN",,2011-06-29,"LEGISLATIVE DUTIES-ALBANY - VOUCHER# 3611T",VENDOR,903.90,,2011-04-01,2011-09-30
"SENATOR JOHN J. FLANAGAN","MEMBER TRAVEL","FLANAGAN,JOHN",,2011-06-29,"LEGISLATIVE DUTIES-ALBANY - VOUCHER# 3612T",VENDOR,738.90,,2011-04-01,2011-09-30
"SENATOR JOHN J. FLANAGAN","MEMBER TRAVEL","FLANAGAN,JOHN",,2011-06-29,"LEGISLATIVE DUTIES-ALBANY - VOUCHER# 3613T",VENDOR,573.90,,2011-04-01,2011-09-30
"SENATOR JOHN J. FLANAGAN","MEMBER TRAVEL","FLANAGAN,JOHN",,2011-06-29,"LEGISLATIVE DUTIES-ALBANY - VOUCHER# 3614T",VENDOR,573.90,,2011-04-01,2011-09-30
"SENATOR JOHN J. FLANAGAN","MEMBER TRAVEL","FLANAGAN,JOHN",,2011-06-29,"LEGISLATIVE DUTIES-ALBANY - VOUCHER# 3615T",VENDOR,1068.90,,2011-04-01,2011-09-30
"SENATOR JOHN J. FLANAGAN","MEMBER TRAVEL","FLANAGAN,JOHN",,2011-08-02,"LEGISLATIVE DUTIES-ALBANY - VOUCHER# 4244T",VENDOR,1068.90,,2011-04-01,2011-09-30
"SENATOR JOHN J. FLANAGAN","MEMBER TRAVEL","FLANAGAN,JOHN",,2011-08-02,"TOLLS-ALBANY-6 MONTHS - VOUCHER# 4245T",VENDOR,558.04,,2011-04-01,2011-09-30
"SENATOR JOHN J. FLANAGAN","STAFF TRAVEL","WILUTIS,KAREN",,2011-04-27,"MEETING-ALBANY - VOUCHER# 2311T",VENDOR,461.12,,2011-04-01,2011-09-30
"SENATOR JOHN J. FLANAGAN","STAFF TRAVEL","LANG,ANNMARIE",,2011-05-03,"IDENTIFICATION FOR PERSONNEL - VOUCHER# 2478T",VENDOR,233.71,,2011-04-01,2011-09-30
"SENATOR JOHN J. FLANAGAN","STAFF TRAVEL","AURIANA,JULIE",,2011-05-10,"IDENTIFICATION FOR PERSONNEL - VOUCHER# 2556T",VENDOR,226.94,,2011-04-01,2011-09-30
"SENATOR JOHN J. FLANAGAN","ALLOCATED OPERATIONAL EXPENSES",,,,"FIRST CLASS POSTAGE",AOE,1756.90,"See Note Above",2011-04-01,2011-09-30
"SENATOR JOHN J. FLANAGAN","ALLOCATED OPERATIONAL EXPENSES",,,,"BULK RATE POSTAGE",AOE,83202.18,"See Note Above",2011-04-01,2011-09-30
"SENATOR JOHN J. FLANAGAN","ALLOCATED OPERATIONAL EXPENSES",,,,"LONG DISTANCE TELEPHONE",AOE,65.04,"See Note Above",2011-04-01,2011-09-30
"SENATOR JOHN J. FLANAGAN","ALLOCATED OPERATIONAL EXPENSES",,,,"OFFICE SUPPLIES",AOE,1522.23,"See Note Above",2011-04-01,2011-09-30
"SENATOR CHARLES J. FUSCHILLO, JR.","PERSONAL SERVICE","FUSCHILLO JR, CHARLES J",2011-03-31,2011-09-28,MEMBER,RA,39749.97,,2011-04-01,2011-09-30
"SENATOR CHARLES J. FUSCHILLO, JR.","PERSONAL SERVICE","FUSCHILLO JR, CHARLES J",,2011-04-13,"DEPUTY MAJORITY WHIP",RA,15375.00,,2011-04-01,2011-09-30
"SENATOR CHARLES J. FUSCHILLO, JR.","PERSONAL SERVICE","ADAMS, JANET",2011-03-17,2011-09-14,"EXEC ASST/DIR DIST OFFICE OPERATIONS",RA,28442.38,,2011-04-01,2011-09-30
"SENATOR CHARLES J. FUSCHILLO, JR.","PERSONAL SERVICE","ALTMAN, LAINIE A",2011-03-17,2011-09-14,"ADMINISTRATIVE ASSISTANT",RA,16250.00,,2011-04-01,2011-09-30
"SENATOR CHARLES J. FUSCHILLO, JR.","PERSONAL SERVICE","EDWARDS, WAYNE G",2011-03-17,2011-09-14,COUNSEL,SA,5000.06,,2011-04-01,2011-09-30
"SENATOR CHARLES J. FUSCHILLO, JR.","PERSONAL SERVICE","ELLIS, TIMOTHY G",2011-03-17,2011-09-14,"POLICY/LEGISLATIVE DR/CHIEF OF STAFF",RA,28173.16,,2011-04-01,2011-09-30
"SENATOR CHARLES J. FUSCHILLO, JR.","PERSONAL SERVICE","GIONESI, ALEXIS M",2011-03-03,2011-06-27,"STUDENT AIDE",TE,1065.00,,2011-04-01,2011-09-30
"SENATOR CHARLES J. FUSCHILLO, JR.","PERSONAL SERVICE","HART, JENNY L",2011-03-17,2011-09-14,"LEGISLATIVE ANALYST",RA,17750.07,,2011-04-01,2011-09-30
"SENATOR CHARLES J. FUSCHILLO, JR.","PERSONAL SERVICE","HOLLY, SARA A",2011-03-17,2011-09-14,"SPECIAL ASSISTANT",SA,8750.04,,2011-04-01,2011-09-30
"SENATOR CHARLES J. FUSCHILLO, JR.","PERSONAL SERVICE","KABIR, SHARIF A",2011-03-17,2011-09-14,"LEGISLATIVE COUNSEL",RA,35000.03,,2011-04-01,2011-09-30
"SENATOR CHARLES J. FUSCHILLO, JR.","PERSONAL SERVICE","KAUFMAN, RANDALL L",2011-05-23,2011-07-29,"STUDENT AIDE",TE,3480.00,,2011-04-01,2011-09-30
"SENATOR CHARLES J. FUSCHILLO, JR.","PERSONAL SERVICE","KEHOE, MELISSA M",2011-03-17,2011-09-14,"COMMITTEE CLERK",RA,15000.05,,2011-04-01,2011-09-30
"SENATOR CHARLES J. FUSCHILLO, JR.","PERSONAL SERVICE","PAROLA, NORENE W",2011-03-17,2011-09-14,"ADMINISTRATIVE ASSISTANT",SA,12500.02,,2011-04-01,2011-09-30
"SENATOR CHARLES J. FUSCHILLO, JR.","PERSONAL SERVICE","RICOTTONE, MICHAEL S",2011-04-28,2011-08-17,"LEGISLATIVE AIDE",TE,5955.00,,2011-04-01,2011-09-30
"SENATOR CHARLES J. FUSCHILLO, JR.","PERSONAL SERVICE","RICOTTONE, MICHAEL S",2011-08-18,2011-09-14,"LEGISLATIVE AIDE",RA,1900.00,,2011-04-01,2011-09-30
"SENATOR CHARLES J. FUSCHILLO, JR.","PERSONAL SERVICE","SCHNEIDER, CHRISTOPHER R",2011-03-17,2011-09-14,"DR COMMUNICATIONS/DPTY CHIEF STAFF",RA,29038.51,,2011-04-01,2011-09-30
"SENATOR CHARLES J. FUSCHILLO, JR.","PERSONAL SERVICE","STONE, CATHY M",2011-03-17,2011-09-14,"ADMINISTRATIVE ASSISTANT",SA,11500.06,,2011-04-01,2011-09-30
"SENATOR CHARLES J. FUSCHILLO, JR.","PERSONAL SERVICE","WIRTH, MONICA H",2011-03-17,2011-09-14,"ADMINISTRATIVE ASSISTANT",SA,22500.01,,2011-04-01,2011-09-30
"SENATOR CHARLES J. FUSCHILLO, JR.","MAINTENANCE & OPERATIONS","AT&T DIRECT MARKETING",,2011-04-05,"D.O. TELEPHONE SERVICES - VOUCHER# 1873",VENDOR,4.55,,2011-04-01,2011-09-30
"SENATOR CHARLES J. FUSCHILLO, JR.","MAINTENANCE & OPERATIONS","STAPLES INC AND SUBSIDIARIES",,2011-04-12,"PHOTO SERVICE/SUPPLIES - VOUCHER# 2049",VENDOR,41.97,,2011-04-01,2011-09-30
"SENATOR CHARLES J. FUSCHILLO, JR.","MAINTENANCE & OPERATIONS","BROOKLYN UNION GAS COMPANY",,2011-04-18,"D.O. GAS SERVICE - VOUCHER# 2239",VENDOR,205.76,,2011-04-01,2011-09-30
"SENATOR CHARLES J. FUSCHILLO, JR.","MAINTENANCE & OPERATIONS","LONG ISLAND LIGHTING COMPANY",,2011-04-18,"D.O. ELECTRIC SERVICE - VOUCHER# 2240",VENDOR,407.96,,2011-04-01,2011-09-30
"SENATOR CHARLES J. FUSCHILLO, JR.","MAINTENANCE & OPERATIONS",VERIZON,,2011-04-21,"D.O. TELEPHONE SERVICES - VOUCHER# 2010",VENDOR,270.75,,2011-04-01,2011-09-30
"SENATOR CHARLES J. FUSCHILLO, JR.","MAINTENANCE & OPERATIONS","CHARLES RICHARDSON",,2011-04-27,"SUBSCRIPTIONS/PUBLICATIONS - VOUCHER# 2371",VENDOR,90.30,,2011-04-01,2011-09-30
"SENATOR CHARLES J. FUSCHILLO, JR.","MAINTENANCE & OPERATIONS","PATRICIA ORZANO DBA 7-ELEVEN STORE #11184",,2011-04-27,"SUBSCRIPTIONS/PUBLICATIONS - VOUCHER# 2383",VENDOR,151.50,,2011-04-01,2011-09-30
"SENATOR CHARLES J. FUSCHILLO, JR.","MAINTENANCE & OPERATIONS","PROSPECT INTERNATIONAL NY CORP",,2011-04-27,"D.O. LEASE - VOUCHER# 2429",VENDOR,4326.46,,2011-04-01,2011-09-30
"SENATOR CHARLES J. FUSCHILLO, JR.","MAINTENANCE & OPERATIONS","STAPLES INC AND SUBSIDIARIES",,2011-04-27,"OFFICE SUPPLIES - VOUCHER# 2376",VENDOR,31.90,,2011-04-01,2011-09-30
"SENATOR CHARLES J. FUSCHILLO, JR.","MAINTENANCE & OPERATIONS","TED DEMONACO MAINTENANCE",,2011-04-27,"D.O. CLEANING - VOUCHER# 2382",VENDOR,265.00,,2011-04-01,2011-09-30
"SENATOR CHARLES J. FUSCHILLO, JR.","MAINTENANCE & OPERATIONS","EBSCO INDUSTRIES INC DBA EBSCO INFORMATION SERVICES",,2011-05-03,"SUBSCRIPTIONS/PUBLICATIONS - VOUCHER# 2502",VENDOR,30.16,,2011-04-01,2011-09-30
"SENATOR CHARLES J. FUSCHILLO, JR.","MAINTENANCE & OPERATIONS","AT&T DIRECT MARKETING",,2011-05-10,"D.O. TELEPHONE SERVICES - VOUCHER# 2615",VENDOR,6.63,,2011-04-01,2011-09-30
"SENATOR CHARLES J. FUSCHILLO, JR.","MAINTENANCE & OPERATIONS","BROOKLYN UNION GAS COMPANY",,2011-05-18,"D.O. GAS SERVICE - VOUCHER# 2833",VENDOR,96.23,,2011-04-01,2011-09-30
"SENATOR CHARLES J. FUSCHILLO, JR.","MAINTENANCE & OPERATIONS","EBSCO INDUSTRIES INC DBA EBSCO INFORMATION SERVICES",,2011-05-18,"SUBSCRIPTIONS/PUBLICATIONS - VOUCHER# 2775",VENDOR,503.36,,2011-04-01,2011-09-30
"SENATOR CHARLES J. FUSCHILLO, JR.","MAINTENANCE & OPERATIONS","LONG ISLAND LIGHTING COMPANY",,2011-05-18,"D.O. ELECTRIC SERVICE - VOUCHER# 2834",VENDOR,322.82,,2011-04-01,2011-09-30
"SENATOR CHARLES J. FUSCHILLO, JR.","MAINTENANCE & OPERATIONS","CHARLES RICHARDSON",,2011-05-24,"SUBSCRIPTIONS/PUBLICATIONS - VOUCHER# 2912",VENDOR,46.00,,2011-04-01,2011-09-30
"SENATOR CHARLES J. FUSCHILLO, JR.","MAINTENANCE & OPERATIONS","PROSPECT INTERNATIONAL NY CORP",,2011-05-24,"D.O. LEASE - VOUCHER# 2969",VENDOR,4326.46,,2011-04-01,2011-09-30
"SENATOR CHARLES J. FUSCHILLO, JR.","MAINTENANCE & OPERATIONS","TED DEMONACO MAINTENANCE",,2011-05-24,"D.O. CLEANING - VOUCHER# 2921",VENDOR,265.00,,2011-04-01,2011-09-30
"SENATOR CHARLES J. FUSCHILLO, JR.","MAINTENANCE & OPERATIONS",VERIZON,,2011-06-01,"D.O. TELEPHONE SERVICES - VOUCHER# 3092",VENDOR,278.03,,2011-04-01,2011-09-30
"SENATOR CHARLES J. FUSCHILLO, JR.","MAINTENANCE & OPERATIONS",VERIZON,,2011-06-07,"D.O. TELEPHONE SERVICES - VOUCHER# 3224",VENDOR,275.18,,2011-04-01,2011-09-30
"SENATOR CHARLES J. FUSCHILLO, JR.","MAINTENANCE & OPERATIONS","AT&T DIRECT MARKETING",,2011-06-14,"D.O. TELEPHONE SERVICES - VOUCHER# 3364",VENDOR,3.97,,2011-04-01,2011-09-30
"SENATOR CHARLES J. FUSCHILLO, JR.","MAINTENANCE & OPERATIONS","CHARLES RICHARDSON",,2011-06-14,"SUBSCRIPTIONS/PUBLICATIONS - VOUCHER# 3386",VENDOR,48.30,,2011-04-01,2011-09-30
"SENATOR CHARLES J. FUSCHILLO, JR.","MAINTENANCE & OPERATIONS","OFFICEMAX INCORPORATED",,2011-06-14,"COMPUTER SUPPLIES - VOUCHER# 3375",VENDOR,100.87,,2011-04-01,2011-09-30
"SENATOR CHARLES J. FUSCHILLO, JR.","MAINTENANCE & OPERATIONS","BROOKLYN UNION GAS COMPANY",,2011-06-21,"D.O. GAS SERVICE - VOUCHER# 3552",VENDOR,29.38,,2011-04-01,2011-09-30
"SENATOR CHARLES J. FUSCHILLO, JR.","MAINTENANCE & OPERATIONS","LONG ISLAND LIGHTING COMPANY",,2011-06-21,"D.O. ELECTRIC SERVICE - VOUCHER# 3553",VENDOR,472.31,,2011-04-01,2011-09-30
"SENATOR CHARLES J. FUSCHILLO, JR.","MAINTENANCE & OPERATIONS","PATRICIA ORZANO DBA 7-ELEVEN STORE #11184",,2011-06-21,"SUBSCRIPTIONS/PUBLICATIONS - VOUCHER# 3537",VENDOR,234.00,,2011-04-01,2011-09-30
"SENATOR CHARLES J. FUSCHILLO, JR.","MAINTENANCE & OPERATIONS","PROSPECT INTERNATIONAL NY CORP",,2011-06-29,"D.O. LEASE - VOUCHER# 3724",VENDOR,4326.46,,2011-04-01,2011-09-30
"SENATOR CHARLES J. FUSCHILLO, JR.","MAINTENANCE & OPERATIONS","TED DEMONACO MAINTENANCE",,2011-06-29,"D.O. CLEANING - VOUCHER# 3667",VENDOR,265.00,,2011-04-01,2011-09-30
"SENATOR CHARLES J. FUSCHILLO, JR.","MAINTENANCE & OPERATIONS","AT&T DIRECT MARKETING",,2011-07-06,"D.O. TELEPHONE SERVICES - VOUCHER# 3831",VENDOR,4.39,,2011-04-01,2011-09-30
"SENATOR CHARLES J. FUSCHILLO, JR.","MAINTENANCE & OPERATIONS",VERIZON,,2011-07-12,"D.O. TELEPHONE SERVICES - VOUCHER# 3937",VENDOR,285.76,,2011-04-01,2011-09-30
"SENATOR CHARLES J. FUSCHILLO, JR.","MAINTENANCE & OPERATIONS","BROOKLYN UNION GAS COMPANY",,2011-07-19,"D.O. GAS SERVICE - VOUCHER# 4097",VENDOR,15.36,,2011-04-01,2011-09-30
"SENATOR CHARLES J. FUSCHILLO, JR.","MAINTENANCE & OPERATIONS","LONG ISLAND LIGHTING COMPANY",,2011-07-19,"D.O. ELECTRIC SERVICE - VOUCHER# 4098",VENDOR,581.86,,2011-04-01,2011-09-30
"SENATOR CHARLES J. FUSCHILLO, JR.","MAINTENANCE & OPERATIONS","CHARLES RICHARDSON",,2011-07-26,"SUBSCRIPTIONS/PUBLICATIONS - VOUCHER# 4146",VENDOR,50.60,,2011-04-01,2011-09-30
"SENATOR CHARLES J. FUSCHILLO, JR.","MAINTENANCE & OPERATIONS","PROSPECT INTERNATIONAL NY CORP",,2011-07-26,"D.O. LEASE - VOUCHER# 4203",VENDOR,4326.46,,2011-04-01,2011-09-30
"SENATOR CHARLES J. FUSCHILLO, JR.","MAINTENANCE & OPERATIONS","AT&T DIRECT MARKETING",,2011-08-02,"D.O. TELEPHONE SERVICES - VOUCHER# 4273",VENDOR,4.28,,2011-04-01,2011-09-30
"SENATOR CHARLES J. FUSCHILLO, JR.","MAINTENANCE & OPERATIONS","TED DEMONACO MAINTENANCE",,2011-08-02,"D.O. CLEANING - VOUCHER# 4295",VENDOR,265.00,,2011-04-01,2011-09-30
"SENATOR CHARLES J. FUSCHILLO, JR.","MAINTENANCE & OPERATIONS","CHARLES RICHARDSON",,2011-08-10,"SUBSCRIPTIONS/PUBLICATIONS - VOUCHER# 4381",VENDOR,52.00,,2011-04-01,2011-09-30
"SENATOR CHARLES J. FUSCHILLO, JR.","MAINTENANCE & OPERATIONS","SUFFOLK LOCK & SECURITY PROFF.",,2011-08-10,"D.O. ALARM SYSTEM - VOUCHER# 4385",VENDOR,149.94,,2011-04-01,2011-09-30
"SENATOR CHARLES J. FUSCHILLO, JR.","MAINTENANCE & OPERATIONS","BROOKLYN UNION GAS COMPANY",,2011-08-16,"D.O. GAS SERVICE - VOUCHER# 4517",VENDOR,24.31,,2011-04-01,2011-09-30
"SENATOR CHARLES J. FUSCHILLO, JR.","MAINTENANCE & OPERATIONS","LONG ISLAND LIGHTING COMPANY",,2011-08-16,"D.O. ELECTRIC SERVICE - VOUCHER# 4518",VENDOR,576.86,,2011-04-01,2011-09-30
"SENATOR CHARLES J. FUSCHILLO, JR.","MAINTENANCE & OPERATIONS",VERIZON,,2011-08-16,"D.O. TELEPHONE SERVICES - VOUCHER# 4448",VENDOR,273.41,,2011-04-01,2011-09-30
"SENATOR CHARLES J. FUSCHILLO, JR.","MAINTENANCE & OPERATIONS","PROSPECT INTERNATIONAL NY CORP",,2011-08-23,"D.O. LEASE - VOUCHER# 4664",VENDOR,4326.46,,2011-04-01,2011-09-30
"SENATOR CHARLES J. FUSCHILLO, JR.","MAINTENANCE & OPERATIONS","MAILFINANCE INC. DBA HASLER",,2011-09-08,"D.O. MAILING EQUIPMENT LEASE - VOUCHER# 4812",VENDOR,149.97,,2011-04-01,2011-09-30
"SENATOR CHARLES J. FUSCHILLO, JR.","MAINTENANCE & OPERATIONS","TED DEMONACO MAINTENANCE",,2011-09-08,"D.O. CLEANING - VOUCHER# 4808",VENDOR,265.00,,2011-04-01,2011-09-30
"SENATOR CHARLES J. FUSCHILLO, JR.","MAINTENANCE & OPERATIONS","BROOKLYN UNION GAS COMPANY",,2011-09-13,"D.O. GAS SERVICE - VOUCHER# 4927",VENDOR,25.16,,2011-04-01,2011-09-30
"SENATOR CHARLES J. FUSCHILLO, JR.","MAINTENANCE & OPERATIONS","LONG ISLAND LIGHTING COMPANY",,2011-09-13,"D.O. ELECTRIC SERVICE - VOUCHER# 4928",VENDOR,582.19,,2011-04-01,2011-09-30
"SENATOR CHARLES J. FUSCHILLO, JR.","MAINTENANCE & OPERATIONS","AT&T DIRECT MARKETING",,2011-09-20,"D.O. TELEPHONE SERVICES - VOUCHER# 4972",VENDOR,1.35,,2011-04-01,2011-09-30
"SENATOR CHARLES J. FUSCHILLO, JR.","MAINTENANCE & OPERATIONS","CHARLES RICHARDSON",,2011-09-28,"SUBSCRIPTIONS/PUBLICATIONS - VOUCHER# 5090",VENDOR,59.80,,2011-04-01,2011-09-30
"SENATOR CHARLES J. FUSCHILLO, JR.","MAINTENANCE & OPERATIONS","PROSPECT INTERNATIONAL NY CORP",,2011-09-28,"D.O. LEASE - VOUCHER# 5148",VENDOR,4326.46,,2011-04-01,2011-09-30
"SENATOR CHARLES J. FUSCHILLO, JR.","MEMBER TRAVEL","FUSCHILLO,CHARLES",,2011-04-05,"LEGISLATIVE DUTIES-ALBANY - VOUCHER# 1803T",VENDOR,555.54,,2011-04-01,2011-09-30
"SENATOR CHARLES J. FUSCHILLO, JR.","MEMBER TRAVEL","FUSCHILLO,CHARLES",,2011-04-13,"LEGISLATIVE DUTIES-ALBANY - VOUCHER# 1953T",VENDOR,765.54,,2011-04-01,2011-09-30
"SENATOR CHARLES J. FUSCHILLO, JR.","MEMBER TRAVEL","FUSCHILLO,CHARLES",,2011-04-13,"LEGISLATIVE DUTIES-ALBANY - VOUCHER# 1954T",VENDOR,720.54,,2011-04-01,2011-09-30
"SENATOR CHARLES J. FUSCHILLO, JR.","MEMBER TRAVEL","FUSCHILLO,CHARLES",,2011-04-18,"LEGISLATIVE DUTIES-ALBANY - VOUCHER# 2163T",VENDOR,555.54,,2011-04-01,2011-09-30
"SENATOR CHARLES J. FUSCHILLO, JR.","MEMBER TRAVEL","FUSCHILLO,CHARLES",,2011-04-18,"TOLLS-ALBANY - VOUCHER# 2164T",VENDOR,171.24,,2011-04-01,2011-09-30
"SENATOR CHARLES J. FUSCHILLO, JR.","MEMBER TRAVEL","FUSCHILLO,CHARLES",,2011-05-03,"LEGISLATIVE DUTIES-ALBANY - VOUCHER# 2465T",VENDOR,555.54,,2011-04-01,2011-09-30
"SENATOR CHARLES J. FUSCHILLO, JR.","MEMBER TRAVEL","FUSCHILLO,CHARLES",,2011-05-18,"LEGISLATIVE DUTIES-ALBANY - VOUCHER# 2711T",VENDOR,555.54,,2011-04-01,2011-09-30
"SENATOR CHARLES J. FUSCHILLO, JR.","MEMBER TRAVEL","FUSCHILLO,CHARLES",,2011-06-01,"LEGISLATIVE DUTIES-ALBANY - VOUCHER# 3015T",VENDOR,555.54,,2011-04-01,2011-09-30
"SENATOR CHARLES J. FUSCHILLO, JR.","MEMBER TRAVEL","FUSCHILLO,CHARLES",,2011-06-01,"LEGISLATIVE DUTIES-ALBANY - VOUCHER# 3016T",VENDOR,555.54,,2011-04-01,2011-09-30
"SENATOR CHARLES J. FUSCHILLO, JR.","MEMBER TRAVEL","FUSCHILLO,CHARLES",,2011-06-07,"LEGISLATIVE DUTIES-ALBANY - VOUCHER# 3218T",VENDOR,555.54,,2011-04-01,2011-09-30
"SENATOR CHARLES J. FUSCHILLO, JR.","MEMBER TRAVEL","FUSCHILLO,CHARLES",,2011-06-15,"LEGISLATIVE DUTIES-ALBANY - VOUCHER# 3304T",VENDOR,375.00,,2011-04-01,2011-09-30
"SENATOR CHARLES J. FUSCHILLO, JR.","MEMBER TRAVEL","FUSCHILLO,CHARLES",,2011-06-21,"LEGISLATIVE DUTIES-ALBANY - VOUCHER# 3479T",VENDOR,555.54,,2011-04-01,2011-09-30
"SENATOR CHARLES J. FUSCHILLO, JR.","MEMBER TRAVEL","FUSCHILLO,CHARLES",,2011-07-06,"LEGISLATIVE DUTIES-ALBANY - VOUCHER# 3810T",VENDOR,885.54,,2011-04-01,2011-09-30
"SENATOR CHARLES J. FUSCHILLO, JR.","MEMBER TRAVEL","FUSCHILLO,CHARLES",,2011-07-12,"LEGISLATIVE DUTIES-ALBANY - VOUCHER# 3932T",VENDOR,885.54,,2011-04-01,2011-09-30
"SENATOR CHARLES J. FUSCHILLO, JR.","MEMBER TRAVEL","FUSCHILLO,CHARLES",,2011-07-12,"TOLLS-ALBANY - VOUCHER# 3931T",VENDOR,171.19,,2011-04-01,2011-09-30
"SENATOR CHARLES J. FUSCHILLO, JR.","STAFF TRAVEL","ELLIS,TIMOTHY",,2011-06-07,"MEETING-NEW YORK - VOUCHER# 3213T",VENDOR,136.60,,2011-04-01,2011-09-30
"SENATOR CHARLES J. FUSCHILLO, JR.","STAFF TRAVEL","ELLIS,TIMOTHY",,2011-07-19,"MEETING-MANHATTAN - VOUCHER# 3974T",VENDOR,90.50,,2011-04-01,2011-09-30
"SENATOR CHARLES J. FUSCHILLO, JR.","STAFF TRAVEL","ELLIS,TIMOTHY",,2011-08-23,"LEGISLATIVE DUTIES-WHITE PLAINS - VOUCHER# 4549T",VENDOR,180.12,,2011-04-01,2011-09-30
"SENATOR CHARLES J. FUSCHILLO, JR.","STAFF TRAVEL","ELLIS,TIMOTHY",,2011-08-23,"MEETING-NEW YORK - VOUCHER# 4550T",VENDOR,112.00,,2011-04-01,2011-09-30
"SENATOR CHARLES J. FUSCHILLO, JR.","STAFF TRAVEL","ELLIS,TIMOTHY",,2011-09-20,"MEETING-MASSAPEQUA - VOUCHER# 4957T",VENDOR,398.21,,2011-04-01,2011-09-30
"SENATOR CHARLES J. FUSCHILLO, JR.","ALLOCATED OPERATIONAL EXPENSES",,,,"FIRST CLASS POSTAGE",AOE,6226.74,"See Note Above",2011-04-01,2011-09-30
"SENATOR CHARLES J. FUSCHILLO, JR.","ALLOCATED OPERATIONAL EXPENSES",,,,"BULK RATE POSTAGE",AOE,73129.68,"See Note Above",2011-04-01,2011-09-30
"SENATOR CHARLES J. FUSCHILLO, JR.","ALLOCATED OPERATIONAL EXPENSES",,,,"LONG DISTANCE TELEPHONE",AOE,89.86,"See Note Above",2011-04-01,2011-09-30
"SENATOR CHARLES J. FUSCHILLO, JR.","ALLOCATED OPERATIONAL EXPENSES",,,,"OFFICE SUPPLIES",AOE,2126.92,"See Note Above",2011-04-01,2011-09-30
"SENATOR PATRICK M. GALLIVAN","PERSONAL SERVICE","GALLIVAN, PATRICK M",2011-03-31,2011-09-28,MEMBER,RA,39749.97,,2011-04-01,2011-09-30
"SENATOR PATRICK M. GALLIVAN","PERSONAL SERVICE","GALLIVAN, PATRICK M",,2011-04-13,"CHAIR SEN COMM ON SOCIAL SERVICES",RA,9375.00,,2011-04-01,2011-09-30
"SENATOR PATRICK M. GALLIVAN","PERSONAL SERVICE","ALDINGER, TODD J",2011-03-17,2011-09-14,"LEGISLATIVE BUDGET ANALYST",RA,16125.00,,2011-04-01,2011-09-30
"SENATOR PATRICK M. GALLIVAN","PERSONAL SERVICE","BAYNES JR, ANTHONY J",2011-03-17,2011-09-14,"CHIEF OF STAFF",RA,37500.06,,2011-04-01,2011-09-30
"SENATOR PATRICK M. GALLIVAN","PERSONAL SERVICE","BIRYLA, GREGORY R",2011-03-17,2011-09-14,"DIRECTOR OF COMMUNICATIONS",RA,17500.08,,2011-04-01,2011-09-30
"SENATOR PATRICK M. GALLIVAN","PERSONAL SERVICE","BRYAN, KEITH S",2011-03-17,2011-09-14,"DIR. DIST OFF OPER & CONSTNT AFFAIRS",RA,26000.00,,2011-04-01,2011-09-30
"SENATOR PATRICK M. GALLIVAN","PERSONAL SERVICE","CALANDRA, DOMINIC M",2011-03-14,2011-09-14,"COMMUNITY REPRESENTATIVE",SA,7630.83,,2011-04-01,2011-09-30
"SENATOR PATRICK M. GALLIVAN","PERSONAL SERVICE","CHWIECKO, ANNE F",2011-03-17,2011-09-14,"COMMUNITY REPRESENTATIVE",RA,17500.08,,2011-04-01,2011-09-30
"SENATOR PATRICK M. GALLIVAN","PERSONAL SERVICE","DALTON, CALLEN T",2011-04-28,2011-07-08,"CONSTITUENT SERVICE AIDE",TE,3590.00,,2011-04-01,2011-09-30
"SENATOR PATRICK M. GALLIVAN","PERSONAL SERVICE","HARRISON, JOAN M",,2011-04-13,"LUMP SUM VACATION PAYMENT",VA,293.32,"PAYMENT FOR SERVICES RENDERED PRIOR TO MARCH 17, 2011",2011-04-01,2011-09-30
"SENATOR PATRICK M. GALLIVAN","PERSONAL SERVICE","HOPKINS, EILEEN N",2011-03-17,2011-09-14,"DISTRICT OPERATIONS MANAGER",RA,20000.11,,2011-04-01,2011-09-30
"SENATOR PATRICK M. GALLIVAN","PERSONAL SERVICE","IRWIN, ROXANNE",2011-03-17,2011-09-14,"OFFICE MANAGER",RA,22500.01,,2011-04-01,2011-09-30
"SENATOR PATRICK M. GALLIVAN","PERSONAL SERVICE","JOHNSON, SUSAN J",2011-03-17,2011-09-14,"COMMUNITY REPRESENTATIVE",RA,17500.08,,2011-04-01,2011-09-30
"SENATOR PATRICK M. GALLIVAN","PERSONAL SERVICE","RIEMAN, MARK N",2011-03-17,2011-09-14,"SENIOR ADVISOR",SA,15000.05,,2011-04-01,2011-09-30
"SENATOR PATRICK M. GALLIVAN","PERSONAL SERVICE","SERDIOUK, DENIS",2011-03-17,2011-09-14,"LEGISLATIVE DIRECTOR",RA,16500.12,,2011-04-01,2011-09-30
"SENATOR PATRICK M. GALLIVAN","PERSONAL SERVICE","WING, BRIAN J",2011-05-01,2011-09-14,"SENIOR COMMITTEE ADVISOR",SA,15411.42,,2011-04-01,2011-09-30
"SENATOR PATRICK M. GALLIVAN","MAINTENANCE & OPERATIONS","AT&T DIRECT MARKETING",,2011-04-05,"D.O. TELEPHONE SERVICES - VOUCHER# 1873",VENDOR,30.29,,2011-04-01,2011-09-30
"SENATOR PATRICK M. GALLIVAN","MAINTENANCE & OPERATIONS",VERIZON,,2011-04-21,"D.O. TELEPHONE SERVICES - VOUCHER# 2010",VENDOR,183.14,,2011-04-01,2011-09-30
"SENATOR PATRICK M. GALLIVAN","MAINTENANCE & OPERATIONS","CHARLES RICHARDSON",,2011-04-27,"SUBSCRIPTIONS/PUBLICATIONS - VOUCHER# 2371",VENDOR,134.40,,2011-04-01,2011-09-30
"SENATOR PATRICK M. GALLIVAN","MAINTENANCE & OPERATIONS","FRONTIER COMMUNICATIONS OF ROCHESTER, INC.",,2011-04-27,"D.O. TELEPHONE SERVICES - VOUCHER# 2367",VENDOR,42.17,,2011-04-01,2011-09-30
"SENATOR PATRICK M. GALLIVAN","MAINTENANCE & OPERATIONS","NATIONAL FUEL GAS DISTRIBUTION  CORP",,2011-04-27,"D.O. GAS SERVICE - VOUCHER# 2396",VENDOR,118.03,,2011-04-01,2011-09-30
"SENATOR PATRICK M. GALLIVAN","MAINTENANCE & OPERATIONS","PDQ FORESTREAM CENTER, LLC",,2011-04-27,"D.O. LEASE - VOUCHER# 2416",VENDOR,1986.40,,2011-04-01,2011-09-30
"SENATOR PATRICK M. GALLIVAN","MAINTENANCE & OPERATIONS","STANG CONSTRUCTION INC.",,2011-04-27,"D.O. RENOVATIONS - VOUCHER# 2389",VENDOR,8337.00,,2011-04-01,2011-09-30
"SENATOR PATRICK M. GALLIVAN","MAINTENANCE & OPERATIONS","AT&T DIRECT MARKETING",,2011-05-10,"D.O. TELEPHONE SERVICES - VOUCHER# 2615",VENDOR,13.06,,2011-04-01,2011-09-30
"SENATOR PATRICK M. GALLIVAN","MAINTENANCE & OPERATIONS","CHARLES RICHARDSON",,2011-05-18,"SUBSCRIPTIONS/PUBLICATIONS - VOUCHER# 2788",VENDOR,41.30,,2011-04-01,2011-09-30
"SENATOR PATRICK M. GALLIVAN","MAINTENANCE & OPERATIONS",NYSEG,,2011-05-18,"D.O. ELECTRIC SERVICE - VOUCHER# 2830",VENDOR,282.99,,2011-04-01,2011-09-30
"SENATOR PATRICK M. GALLIVAN","MAINTENANCE & OPERATIONS","PDQ FORESTREAM CENTER, LLC",,2011-05-24,"D.O. LEASE - VOUCHER# 2955",VENDOR,1986.40,,2011-04-01,2011-09-30
"SENATOR PATRICK M. GALLIVAN","MAINTENANCE & OPERATIONS","NATIONAL FUEL GAS DISTRIBUTION  CORP",,2011-06-01,"D.O. GAS SERVICE - VOUCHER# 3155",VENDOR,53.92,,2011-04-01,2011-09-30
"SENATOR PATRICK M. GALLIVAN","MAINTENANCE & OPERATIONS",VERIZON,,2011-06-01,"D.O. TELEPHONE SERVICES - VOUCHER# 3092",VENDOR,122.26,,2011-04-01,2011-09-30
"SENATOR PATRICK M. GALLIVAN","MAINTENANCE & OPERATIONS","FRONTIER COMMUNICATIONS OF ROCHESTER, INC.",,2011-06-07,"D.O. TELEPHONE SERVICES - VOUCHER# 3240",VENDOR,42.63,,2011-04-01,2011-09-30
"SENATOR PATRICK M. GALLIVAN","MAINTENANCE & OPERATIONS","FRONTIER TELEPHONE OF ROCHESTER INC.",,2011-06-07,"D.O. TELEPHONE SERVICES - VOUCHER# 3241",VENDOR,22.94,,2011-04-01,2011-09-30
"SENATOR PATRICK M. GALLIVAN","MAINTENANCE & OPERATIONS",VERIZON,,2011-06-07,"D.O. TELEPHONE SERVICES - VOUCHER# 3224",VENDOR,161.30,,2011-04-01,2011-09-30
"SENATOR PATRICK M. GALLIVAN","MAINTENANCE & OPERATIONS","AT&T DIRECT MARKETING",,2011-06-14,"D.O. TELEPHONE SERVICES - VOUCHER# 3364",VENDOR,11.55,,2011-04-01,2011-09-30
"SENATOR PATRICK M. GALLIVAN","MAINTENANCE & OPERATIONS","CHARLES RICHARDSON",,2011-06-14,"SUBSCRIPTIONS/PUBLICATIONS - VOUCHER# 3386",VENDOR,70.80,,2011-04-01,2011-09-30
"SENATOR PATRICK M. GALLIVAN","MAINTENANCE & OPERATIONS","FRONTIER COMMUNICATIONS OF ROCHESTER, INC.",,2011-06-29,"D.O. TELEPHONE SERVICES - VOUCHER# 3655",VENDOR,41.71,,2011-04-01,2011-09-30
"SENATOR PATRICK M. GALLIVAN","MAINTENANCE & OPERATIONS","FRONTIER TELEPHONE OF ROCHESTER INC.",,2011-06-29,"D.O. TELEPHONE SERVICES - VOUCHER# 3656",VENDOR,244.84,,2011-04-01,2011-09-30
"SENATOR PATRICK M. GALLIVAN","MAINTENANCE & OPERATIONS","NATIONAL FUEL GAS DISTRIBUTION  CORP",,2011-06-29,"D.O. GAS SERVICE - VOUCHER# 3686",VENDOR,41.18,,2011-04-01,2011-09-30
"SENATOR PATRICK M. GALLIVAN","MAINTENANCE & OPERATIONS","PDQ FORESTREAM CENTER, LLC",,2011-06-29,"D.O. LEASE - VOUCHER# 3709",VENDOR,1986.40,,2011-04-01,2011-09-30
"SENATOR PATRICK M. GALLIVAN","MAINTENANCE & OPERATIONS","AT&T DIRECT MARKETING",,2011-07-06,"D.O. TELEPHONE SERVICES - VOUCHER# 3831",VENDOR,15.55,,2011-04-01,2011-09-30
"SENATOR PATRICK M. GALLIVAN","MAINTENANCE & OPERATIONS",VERIZON,,2011-07-12,"D.O. TELEPHONE SERVICES - VOUCHER# 3937",VENDOR,160.25,,2011-04-01,2011-09-30
"SENATOR PATRICK M. GALLIVAN","MAINTENANCE & OPERATIONS","FRONTIER COMMUNICATIONS OF ROCHESTER, INC.",,2011-07-19,"D.O. TELEPHONE SERVICES - VOUCHER# 4049",VENDOR,41.54,,2011-04-01,2011-09-30
"SENATOR PATRICK M. GALLIVAN","MAINTENANCE & OPERATIONS","FRONTIER TELEPHONE OF ROCHESTER INC.",,2011-07-19,"D.O. TELEPHONE SERVICES - VOUCHER# 4050",VENDOR,47.11,,2011-04-01,2011-09-30
"SENATOR PATRICK M. GALLIVAN","MAINTENANCE & OPERATIONS",NYSEG,,2011-07-19,"D.O. ELECTRIC SERVICE - VOUCHER# 4094",VENDOR,307.93,,2011-04-01,2011-09-30
"SENATOR PATRICK M. GALLIVAN","MAINTENANCE & OPERATIONS","CHARLES RICHARDSON",,2011-07-26,"SUBSCRIPTIONS/PUBLICATIONS - VOUCHER# 4146",VENDOR,112.10,,2011-04-01,2011-09-30
"SENATOR PATRICK M. GALLIVAN","MAINTENANCE & OPERATIONS","PDQ FORESTREAM CENTER, LLC",,2011-07-26,"D.O. LEASE - VOUCHER# 4188",VENDOR,1986.40,,2011-04-01,2011-09-30
"SENATOR PATRICK M. GALLIVAN","MAINTENANCE & OPERATIONS","AT&T DIRECT MARKETING",,2011-08-02,"D.O. TELEPHONE SERVICES - VOUCHER# 4273",VENDOR,7.49,,2011-04-01,2011-09-30
"SENATOR PATRICK M. GALLIVAN","MAINTENANCE & OPERATIONS","BATAVIA NEWSPAPER CORPORATION DBA/BATAVIA DAILY NEWS",,2011-08-02,"SUBSCRIPTIONS/PUBLICATIONS - VOUCHER# 4305",VENDOR,257.95,,2011-04-01,2011-09-30
"SENATOR PATRICK M. GALLIVAN","MAINTENANCE & OPERATIONS","NATIONAL FUEL GAS DISTRIBUTION  CORP",,2011-08-02,"D.O. GAS SERVICE - VOUCHER# 4325",VENDOR,38.46,,2011-04-01,2011-09-30
"SENATOR PATRICK M. GALLIVAN","MAINTENANCE & OPERATIONS","THE BUFFALO NEWS, INC.",,2011-08-02,"SUBSCRIPTIONS/PUBLICATIONS - VOUCHER# 4306",VENDOR,234.00,,2011-04-01,2011-09-30
"SENATOR PATRICK M. GALLIVAN","MAINTENANCE & OPERATIONS","GATEHOUSE MEDIA NY HOLDINGS DBA/MESSENGER POST MEDIA",,2011-08-10,"SUBSCRIPTIONS/PUBLICATIONS - VOUCHER# 4394",VENDOR,211.50,,2011-04-01,2011-09-30
"SENATOR PATRICK M. GALLIVAN","MAINTENANCE & OPERATIONS","COMPLETE JANITORIAL MAINTENANC",,2011-08-16,"D.O. CLEANING - VOUCHER# 4502",VENDOR,205.00,,2011-04-01,2011-09-30
"SENATOR PATRICK M. GALLIVAN","MAINTENANCE & OPERATIONS","FRONTIER COMMUNICATIONS OF ROCHESTER, INC.",,2011-08-16,"D.O. TELEPHONE SERVICES - VOUCHER# 4463",VENDOR,41.97,,2011-04-01,2011-09-30
"SENATOR PATRICK M. GALLIVAN","MAINTENANCE & OPERATIONS","FRONTIER TELEPHONE OF ROCHESTER INC.",,2011-08-16,"D.O. TELEPHONE SERVICES - VOUCHER# 4464",VENDOR,39.85,,2011-04-01,2011-09-30
"SENATOR PATRICK M. GALLIVAN","MAINTENANCE & OPERATIONS",VERIZON,,2011-08-16,"D.O. TELEPHONE SERVICES - VOUCHER# 4448",VENDOR,159.34,,2011-04-01,2011-09-30
"SENATOR PATRICK M. GALLIVAN","MAINTENANCE & OPERATIONS","NATIONAL FUEL GAS DISTRIBUTION  CORP",,2011-08-23,"D.O. GAS SERVICE - VOUCHER# 4632",VENDOR,20.80,,2011-04-01,2011-09-30
"SENATOR PATRICK M. GALLIVAN","MAINTENANCE & OPERATIONS","PDQ FORESTREAM CENTER, LLC",,2011-08-23,"D.O. LEASE - VOUCHER# 4649",VENDOR,1986.40,,2011-04-01,2011-09-30
"SENATOR PATRICK M. GALLIVAN","MAINTENANCE & OPERATIONS","NATIONAL FUEL GAS DISTRIBUTION  CORP",,2011-08-30,"D.O. GAS SERVICE - VOUCHER# 4759",VENDOR,18.08,,2011-04-01,2011-09-30
"SENATOR PATRICK M. GALLIVAN","MAINTENANCE & OPERATIONS","MAILFINANCE INC. DBA HASLER",,2011-09-08,"D.O. MAILING EQUIPMENT LEASE - VOUCHER# 4812",VENDOR,299.94,,2011-04-01,2011-09-30
"SENATOR PATRICK M. GALLIVAN","MAINTENANCE & OPERATIONS","COMPLETE JANITORIAL MAINTENANC",,2011-09-13,"D.O. CLEANING - VOUCHER# 4907",VENDOR,205.00,,2011-04-01,2011-09-30
"SENATOR PATRICK M. GALLIVAN","MAINTENANCE & OPERATIONS",NYSEG,,2011-09-13,"D.O. ELECTRIC SERVICE - VOUCHER# 4923",VENDOR,442.14,,2011-04-01,2011-09-30
"SENATOR PATRICK M. GALLIVAN","MAINTENANCE & OPERATIONS","AT&T DIRECT MARKETING",,2011-09-20,"D.O. TELEPHONE SERVICES - VOUCHER# 4972",VENDOR,2.94,,2011-04-01,2011-09-30
"SENATOR PATRICK M. GALLIVAN","MAINTENANCE & OPERATIONS","FRONTIER COMMUNICATIONS OF ROCHESTER, INC.",,2011-09-20,"D.O. TELEPHONE SERVICES - VOUCHER# 4981",VENDOR,41.61,,2011-04-01,2011-09-30
"SENATOR PATRICK M. GALLIVAN","MAINTENANCE & OPERATIONS","FRONTIER TELEPHONE OF ROCHESTER INC.",,2011-09-20,"D.O. TELEPHONE SERVICES - VOUCHER# 4982",VENDOR,38.46,,2011-04-01,2011-09-30
"SENATOR PATRICK M. GALLIVAN","MAINTENANCE & OPERATIONS","NATIONAL FUEL GAS DISTRIBUTION  CORP",,2011-09-20,"D.O. GAS SERVICE - VOUCHER# 5021",VENDOR,37.44,,2011-04-01,2011-09-30
"SENATOR PATRICK M. GALLIVAN","MAINTENANCE & OPERATIONS","PDQ FORESTREAM CENTER, LLC",,2011-09-28,"D.O. LEASE - VOUCHER# 5133",VENDOR,1986.40,,2011-04-01,2011-09-30
"SENATOR PATRICK M. GALLIVAN","MEMBER TRAVEL","GALLIVAN,PATRICK",,2011-04-13,"LEGISLATIVE DUTIES-ALBANY - VOUCHER# 1955T",VENDOR,870.00,,2011-04-01,2011-09-30
"SENATOR PATRICK M. GALLIVAN","MEMBER TRAVEL","GALLIVAN,PATRICK",,2011-04-13,"LEGISLATIVE DUTIES-ALBANY - VOUCHER# 1956T",VENDOR,705.00,,2011-04-01,2011-09-30
"SENATOR PATRICK M. GALLIVAN","MEMBER TRAVEL","GALLIVAN,PATRICK",,2011-04-18,"LEGISLATIVE DUTIES-ALBANY - VOUCHER# 2099T",VENDOR,660.00,,2011-04-01,2011-09-30
"SENATOR PATRICK M. GALLIVAN","MEMBER TRAVEL","GALLIVAN,PATRICK",,2011-05-18,"LEGISLATIVE DUTIES-ALBANY - VOUCHER# 2712T",VENDOR,375.00,,2011-04-01,2011-09-30
"SENATOR PATRICK M. GALLIVAN","MEMBER TRAVEL","GALLIVAN,PATRICK",,2011-05-24,"LEGISLATIVE DUTIES-ALBANY - VOUCHER# 2856T",VENDOR,375.00,,2011-04-01,2011-09-30
"SENATOR PATRICK M. GALLIVAN","MEMBER TRAVEL","GALLIVAN,PATRICK",,2011-06-01,"LEGISLATIVE DUTIES-ALBANY - VOUCHER# 3017T",VENDOR,375.00,,2011-04-01,2011-09-30
"SENATOR PATRICK M. GALLIVAN","MEMBER TRAVEL","GALLIVAN,PATRICK",,2011-06-07,"LEGISLATIVE DUTIES-ALBANY - VOUCHER# 3180T",VENDOR,658.00,,2011-04-01,2011-09-30
"SENATOR PATRICK M. GALLIVAN","MEMBER TRAVEL","GALLIVAN,PATRICK",,2011-06-15,"MEETING-MANHATTAN - VOUCHER# 3305T",VENDOR,106.20,,2011-04-01,2011-09-30
"SENATOR PATRICK M. GALLIVAN","MEMBER TRAVEL","GALLIVAN,PATRICK",,2011-06-21,"LEGISLATIVE DUTIES-ALBANY - VOUCHER# 3433T",VENDOR,210.00,,2011-04-01,2011-09-30
"SENATOR PATRICK M. GALLIVAN","MEMBER TRAVEL","GALLIVAN,PATRICK",,2011-06-21,"LEGISLATIVE DUTIES-ALBANY - VOUCHER# 3434T",VENDOR,375.00,,2011-04-01,2011-09-30
"SENATOR PATRICK M. GALLIVAN","MEMBER TRAVEL","GALLIVAN,PATRICK",,2011-07-06,"LEGISLATIVE DUTIES-ALBANY - VOUCHER# 3762T",VENDOR,705.00,,2011-04-01,2011-09-30
"SENATOR PATRICK M. GALLIVAN","MEMBER TRAVEL","GALLIVAN,PATRICK",,2011-07-12,"LEGISLATIVE DUTIES-ALBANY - VOUCHER# 3911T",VENDOR,705.00,,2011-04-01,2011-09-30
"SENATOR PATRICK M. GALLIVAN","MEMBER TRAVEL","GALLIVAN,PATRICK",,2011-08-30,"MEETING-ALBANY - VOUCHER# 4701T",VENDOR,710.41,,2011-04-01,2011-09-30
"SENATOR PATRICK M. GALLIVAN","STAFF TRAVEL","BAYNES,ANTHONY",,2011-04-18,"LEGISLATIVE DUTIES-ALBANY - VOUCHER# 2138T",VENDOR,208.00,,2011-04-01,2011-09-30
"SENATOR PATRICK M. GALLIVAN","STAFF TRAVEL","BAYNES,ANTHONY",,2011-04-18,"LEGISLATIVE DUTIES-ALBANY - VOUCHER# 2139T",VENDOR,178.00,,2011-04-01,2011-09-30
"SENATOR PATRICK M. GALLIVAN","STAFF TRAVEL","BAYNES,ANTHONY",,2011-04-18,"LEGISLATIVE DUTIES-ALBANY - VOUCHER# 2140T",VENDOR,267.00,,2011-04-01,2011-09-30
"SENATOR PATRICK M. GALLIVAN","STAFF TRAVEL","ALDINGER,TODD",,2011-06-14,"MEETING-MANHATTAN - VOUCHER# 3283T",VENDOR,71.00,,2011-04-01,2011-09-30
"SENATOR PATRICK M. GALLIVAN","STAFF TRAVEL","SERDIOUK,DENIS",,2011-06-14,"MEETING-MANHATTAN - VOUCHER# 3284T",VENDOR,91.00,,2011-04-01,2011-09-30
"SENATOR PATRICK M. GALLIVAN","STAFF TRAVEL","WING,BRIAN",,2011-06-21,"MEETING-MANHATTAN - VOUCHER# 3472T",VENDOR,271.60,,2011-04-01,2011-09-30
"SENATOR PATRICK M. GALLIVAN","STAFF TRAVEL","BAYNES,ANTHONY",,2011-06-29,"MEETING-MANHATTAN - VOUCHER# 3603T",VENDOR,298.00,,2011-04-01,2011-09-30
"SENATOR PATRICK M. GALLIVAN","STAFF TRAVEL","BRYAN,KEITH",,2011-08-02,"MEETING-DEPEW - VOUCHER# 4254T",VENDOR,313.45,,2011-04-01,2011-09-30
"SENATOR PATRICK M. GALLIVAN","STAFF TRAVEL","ALDINGER,TODD",,2011-08-16,"MEETING-LANCASTER - VOUCHER# 4432T",VENDOR,289.17,,2011-04-01,2011-09-30
"SENATOR PATRICK M. GALLIVAN","STAFF TRAVEL","SERDIOUK,DENIS",,2011-08-16,"CONFERENCE-SARATOGA - VOUCHER# 4417T",VENDOR,90.00,,2011-04-01,2011-09-30
"SENATOR PATRICK M. GALLIVAN","STAFF TRAVEL","WING,BRIAN",,2011-08-23,"CONFERENCE-SARATOGA - VOUCHER# 4528T",VENDOR,90.00,,2011-04-01,2011-09-30
"SENATOR PATRICK M. GALLIVAN","ALLOCATED OPERATIONAL EXPENSES",,,,"FIRST CLASS POSTAGE",AOE,1896.69,"See Note Above",2011-04-01,2011-09-30
"SENATOR PATRICK M. GALLIVAN","ALLOCATED OPERATIONAL EXPENSES",,,,"BULK RATE POSTAGE",AOE,31066.44,"See Note Above",2011-04-01,2011-09-30
"SENATOR PATRICK M. GALLIVAN","ALLOCATED OPERATIONAL EXPENSES",,,,"LONG DISTANCE TELEPHONE",AOE,194.00,"See Note Above",2011-04-01,2011-09-30
"SENATOR PATRICK M. GALLIVAN","ALLOCATED OPERATIONAL EXPENSES",,,,"OFFICE SUPPLIES",AOE,1000.48,"See Note Above",2011-04-01,2011-09-30
"SENATOR MICHAEL N. GIANARIS","PERSONAL SERVICE","GIANARIS, MICHAEL N",2011-03-31,2011-09-28,MEMBER,RA,39749.97,,2011-04-01,2011-09-30
"SENATOR MICHAEL N. GIANARIS","PERSONAL SERVICE","GIANARIS, MICHAEL N",,2011-04-13,"RNKG MIN MEM SEN COMM ON CODES",RA,8250.00,,2011-04-01,2011-09-30
"SENATOR MICHAEL N. GIANARIS","PERSONAL SERVICE","ADAMS, LEONARD R",2011-03-17,2011-09-14,"OPERATIONS COORDINATOR",RA,26692.49,,2011-04-01,2011-09-30
"SENATOR MICHAEL N. GIANARIS","PERSONAL SERVICE","ADAMS-SARTHOU, ANNA B",2011-03-17,2011-09-14,"DIRECTOR OF COMMUNICATIONS",RA,27048.10,,2011-04-01,2011-09-30
"SENATOR MICHAEL N. GIANARIS","PERSONAL SERVICE","LISI, MARTINA M",2011-03-17,2011-09-14,"OFFICE MANAGER/ALBANY",RA,21380.84,,2011-04-01,2011-09-30
"SENATOR MICHAEL N. GIANARIS","PERSONAL SERVICE","MURPHY, MICHAEL T",2011-03-17,2011-08-03,"DEPUTY CHIEF OF STAFF/COMMUNICATIONS",RA,26653.90,,2011-04-01,2011-09-30
"SENATOR MICHAEL N. GIANARIS","PERSONAL SERVICE","POVEROMO, ROSE MARIE",2011-03-17,2011-09-14,"COMMUNITY LIAISON",SA,5230.80,,2011-04-01,2011-09-30
"SENATOR MICHAEL N. GIANARIS","PERSONAL SERVICE","ROZEN, DAVID A",2011-08-17,2011-09-14,"LEGISLATIVE COUNSEL",RA,3580.78,,2011-04-01,2011-09-30
"SENATOR MICHAEL N. GIANARIS","PERSONAL SERVICE","SAIS, MICHAEL D",2011-03-17,2011-09-14,"CHIEF OF STAFF",RA,40307.76,,2011-04-01,2011-09-30
"SENATOR MICHAEL N. GIANARIS","PERSONAL SERVICE","STATHATOS, IRENE",2011-03-17,2011-09-14,"DEPUTY CHIEF OF STAFF/OPERATIONS",RA,32682.76,,2011-04-01,2011-09-30
"SENATOR MICHAEL N. GIANARIS","PERSONAL SERVICE","ZAINI, NELLA Y",2011-03-17,2011-09-14,"DISTRICT OFFICE MANAGER",RA,18048.14,,2011-04-01,2011-09-30
"SENATOR MICHAEL N. GIANARIS","MAINTENANCE & OPERATIONS","AT&T DIRECT MARKETING",,2011-04-05,"D.O. TELEPHONE SERVICES - VOUCHER# 1873",VENDOR,11.80,,2011-04-01,2011-09-30
"SENATOR MICHAEL N. GIANARIS","MAINTENANCE & OPERATIONS","SAIS,MICHAEL",,2011-04-05,"REIMBURSEMENT FOR SUBSCRIPTIONS/PUBLICATIONS - VOUCHER# 1884",VENDOR,51.85,,2011-04-01,2011-09-30
"SENATOR MICHAEL N. GIANARIS","MAINTENANCE & OPERATIONS",CON-EDISON,,2011-04-18,"D.O. GAS SERVICE - VOUCHER# 2246",VENDOR,262.24,,2011-04-01,2011-09-30
"SENATOR MICHAEL N. GIANARIS","MAINTENANCE & OPERATIONS","GLOBAL CLEANING SERVICES INC",,2011-04-18,"D.O. CLEANING - VOUCHER# 2223",VENDOR,150.00,,2011-04-01,2011-09-30
"SENATOR MICHAEL N. GIANARIS","MAINTENANCE & OPERATIONS",VERIZON,,2011-04-21,"D.O. TELEPHONE SERVICES - VOUCHER# 2010",VENDOR,614.51,,2011-04-01,2011-09-30
"SENATOR MICHAEL N. GIANARIS","MAINTENANCE & OPERATIONS","BRUCITITTA LEASING CORP",,2011-04-27,"D.O. LEASE - VOUCHER# 2447",VENDOR,4000.00,,2011-04-01,2011-09-30
"SENATOR MICHAEL N. GIANARIS","MAINTENANCE & OPERATIONS","AT&T DIRECT MARKETING",,2011-05-10,"D.O. TELEPHONE SERVICES - VOUCHER# 2615",VENDOR,1.66,,2011-04-01,2011-09-30
"SENATOR MICHAEL N. GIANARIS","MAINTENANCE & OPERATIONS",CON-EDISON,,2011-05-18,"D.O. GAS SERVICE - VOUCHER# 2838",VENDOR,174.08,,2011-04-01,2011-09-30
"SENATOR MICHAEL N. GIANARIS","MAINTENANCE & OPERATIONS","GLOBAL CLEANING SERVICES INC",,2011-05-18,"D.O. CLEANING - VOUCHER# 2808",VENDOR,150.00,,2011-04-01,2011-09-30
"SENATOR MICHAEL N. GIANARIS","MAINTENANCE & OPERATIONS","BRUCITITTA LEASING CORP",,2011-05-24,"D.O. LEASE - VOUCHER# 2987",VENDOR,4000.00,,2011-04-01,2011-09-30
"SENATOR MICHAEL N. GIANARIS","MAINTENANCE & OPERATIONS",VERIZON,,2011-06-01,"D.O. TELEPHONE SERVICES - VOUCHER# 3092",VENDOR,198.97,,2011-04-01,2011-09-30
"SENATOR MICHAEL N. GIANARIS","MAINTENANCE & OPERATIONS",VERIZON,,2011-06-07,"D.O. TELEPHONE SERVICES - VOUCHER# 3224",VENDOR,195.81,,2011-04-01,2011-09-30
"SENATOR MICHAEL N. GIANARIS","MAINTENANCE & OPERATIONS","AT&T DIRECT MARKETING",,2011-06-14,"D.O. TELEPHONE SERVICES - VOUCHER# 3364",VENDOR,2.70,,2011-04-01,2011-09-30
"SENATOR MICHAEL N. GIANARIS","MAINTENANCE & OPERATIONS",CON-EDISON,,2011-06-21,"D.O. GAS SERVICE - VOUCHER# 3559",VENDOR,74.13,,2011-04-01,2011-09-30
"SENATOR MICHAEL N. GIANARIS","MAINTENANCE & OPERATIONS","GLOBAL CLEANING SERVICES INC",,2011-06-21,"D.O. CLEANING - VOUCHER# 3543",VENDOR,150.00,,2011-04-01,2011-09-30
"SENATOR MICHAEL N. GIANARIS","MAINTENANCE & OPERATIONS","BRUCITITTA LEASING CORP",,2011-06-29,"D.O. LEASE - VOUCHER# 3742",VENDOR,4000.00,,2011-04-01,2011-09-30
"SENATOR MICHAEL N. GIANARIS","MAINTENANCE & OPERATIONS","AT&T DIRECT MARKETING",,2011-07-06,"D.O. TELEPHONE SERVICES - VOUCHER# 3831",VENDOR,0.56,,2011-04-01,2011-09-30
"SENATOR MICHAEL N. GIANARIS","MAINTENANCE & OPERATIONS",VERIZON,,2011-07-12,"D.O. TELEPHONE SERVICES - VOUCHER# 3937",VENDOR,191.51,,2011-04-01,2011-09-30
"SENATOR MICHAEL N. GIANARIS","MAINTENANCE & OPERATIONS",CON-EDISON,,2011-07-19,"D.O. GAS SERVICE - VOUCHER# 4102",VENDOR,76.13,,2011-04-01,2011-09-30
"SENATOR MICHAEL N. GIANARIS","MAINTENANCE & OPERATIONS","BRUCITITTA LEASING CORP",,2011-07-26,"D.O. LEASE - VOUCHER# 4221",VENDOR,4000.00,,2011-04-01,2011-09-30
"SENATOR MICHAEL N. GIANARIS","MAINTENANCE & OPERATIONS","AT&T DIRECT MARKETING",,2011-08-02,"D.O. TELEPHONE SERVICES - VOUCHER# 4273",VENDOR,0.19,,2011-04-01,2011-09-30
"SENATOR MICHAEL N. GIANARIS","MAINTENANCE & OPERATIONS",CON-EDISON,,2011-08-16,"D.O. GAS SERVICE - VOUCHER# 4522",VENDOR,72.25,,2011-04-01,2011-09-30
"SENATOR MICHAEL N. GIANARIS","MAINTENANCE & OPERATIONS",VERIZON,,2011-08-16,"D.O. TELEPHONE SERVICES - VOUCHER# 4448",VENDOR,210.71,,2011-04-01,2011-09-30
"SENATOR MICHAEL N. GIANARIS","MAINTENANCE & OPERATIONS","BRUCITITTA LEASING CORP",,2011-08-23,"D.O. LEASE - VOUCHER# 4682",VENDOR,4000.00,,2011-04-01,2011-09-30
"SENATOR MICHAEL N. GIANARIS","MAINTENANCE & OPERATIONS","GLOBAL CLEANING SERVICES INC",,2011-08-23,"D.O. CLEANING - VOUCHER# 4617",VENDOR,150.00,,2011-04-01,2011-09-30
"SENATOR MICHAEL N. GIANARIS","MAINTENANCE & OPERATIONS","MAILFINANCE INC. DBA HASLER",,2011-09-08,"D.O. MAILING EQUIPMENT LEASE - VOUCHER# 4812",VENDOR,149.97,,2011-04-01,2011-09-30
"SENATOR MICHAEL N. GIANARIS","MAINTENANCE & OPERATIONS","AT&T DIRECT MARKETING",,2011-09-20,"D.O. TELEPHONE SERVICES - VOUCHER# 4972",VENDOR,1.04,,2011-04-01,2011-09-30
"SENATOR MICHAEL N. GIANARIS","MAINTENANCE & OPERATIONS",CON-EDISON,,2011-09-20,"D.O. GAS SERVICE - VOUCHER# 5027",VENDOR,70.30,,2011-04-01,2011-09-30
